{"text_format":"1","workbook":"xlsx","n_sheets":7,"sheets":["Competition","Members","Events","Fees","Scores","Classified Scores","Competitor Scores"],"not_rendered":{"charts":0,"images":0,"macros":1,"external_links":0,"defined_names":3,"comments":0,"pivot_tables":0},"unopened":[],"bounds":{"document_bytes":16777216,"sheet_cells":100000,"rows_first":2000,"rows_last":500,"rows_between":2000,"halvings":0,"cell_chars":16384,"cell_head_chars":4096},"cells_cut":0,"cells_raw":0,"read":"whole","date_system":"1900"}

{"sheet":"Competition","index":0,"n_rows":594,"n_cols":13,"rows_kept":594,"cut":false,"hidden":false,"merged":[[0,2,0,5],[1,7,1,8],[1,3,1,5],[2,0,2,8]]}
[null,null,"Handgun Metallic Silhouette"]
["Range:",null,"Competition:",null,null,null,"Date:"]
[]
["PNZ No.","Name","Event","Class","C","P","T","R","Total",null,"Events",null,"Description "]
[null,{"$f":"VLOOKUP($A5,Members,2,FALSE)","v":{"$error":"#N/A"}},null,{"$f":"VLOOKUP($A5,Members,VLOOKUP(C5,Events,2,FALSE),FALSE)","v":{"$error":"#N/A"}},null,null,null,null,{"$f":"SUM(E5:H5)","v":0},null,"BBR",3,"Big Bore Revolver"]
[null,{"$error":"#N/A"},null,{"$f":"VLOOKUP($A6,Members,VLOOKUP(C6,Events,2,FALSE),FALSE)","v":{"$error":"#N/A"}},null,null,null,null,0,null,"BBP",4,"Big Bore Production"]
[null,{"$error":"#N/A"},null,{"$f":"VLOOKUP($A7,Members,VLOOKUP(C7,Events,2,FALSE),FALSE)","v":{"$error":"#N/A"}},null,null,null,null,0,null,"BBS",5,"Big Bore Standing"]
[null,{"$error":"#N/A"},null,{"$f":"VLOOKUP($A8,Members,VLOOKUP(C8,Events,2,FALSE),FALSE)","v":{"$error":"#N/A"}},null,null,null,null,0,null,"BBU",6,"Big Bore Unlimited"]
[null,{"$error":"#N/A"},null,{"$f":"VLOOKUP($A9,Members,VLOOKUP(C9,Events,2,FALSE),FALSE)","v":{"$error":"#N/A"}},null,null,null,null,0,null,"BBUS",7,"Big Bore Unlimited Standing"]
[null,{"$error":"#N/A"},null,{"$error":"#N/A"},null,null,null,null,0,null,"BBUAS",8,"Big Bore Unlimited Any Sight"]
[null,{"$error":"#N/A"},null,{"$error":"#N/A"},null,null,null,null,0,null,"BBUHS",9,"Big Bore Unlimited Half Size"]
[null,{"$error":"#N/A"},null,{"$error":"#N/A"},null,null,null,null,0,null,"BBUASHS",10,"Big Bore Unlimited Any Sight Half Size "]
[null,{"$error":"#N/A"},null,{"$error":"#N/A"},null,null,null,null,0,null,"SBR",11,"Small Bore Revolver"]
[null,{"$error":"#N/A"},null,{"$error":"#N/A"},null,null,null,null,0,null,"SBP",12,"Small Bore Production "]
[null,{"$error":"#N/A"},null,{"$error":"#N/A"},null,null,null,null,0,null,"SBS",13,"Small Bore Standing"]
[null,{"$error":"#N/A"},null,{"$error":"#N/A"},null,null,null,null,0,null,"SBU",14,"Small Bore Unlimited"]
[null,{"$error":"#N/A"},null,{"$error":"#N/A"},null,null,null,null,0,null,"SBUS",15,"Small Bore Unlimited Standing"]
[null,{"$error":"#N/A"},null,{"$error":"#N/A"},null,null,null,null,0,null,"SBUAS",16,"Small Bore Unlimited Any Sight"]
[null,{"$error":"#N/A"},null,{"$error":"#N/A"},null,null,null,null,0,null,"SBUFS",17,"Small Bore Unlimited Fifth Scale"]
[null,{"$error":"#N/A"},null,{"$f":"VLOOKUP($A20,Members,VLOOKUP(C20,Events,2,FALSE),FALSE)","v":{"$error":"#N/A"}},null,null,null,null,0,null,"SBUASFS",18,"Small Bore Unlimited Any Sight Fifth Scale"]
[null,{"$error":"#N/A"},null,{"$error":"#N/A"},null,null,null,null,0,null,"FPP",19,"Field Pistol Production"]
[null,{"$error":"#N/A"},null,{"$f":"VLOOKUP($A22,Members,VLOOKUP(C22,Events,2,FALSE),FALSE)","v":{"$error":"#N/A"}},null,null,null,null,0,null,"FPAS",20,"Field Pistol Any Sight"]
[null,{"$error":"#N/A"},null,{"$error":"#N/A"},null,null,null,null,0]
[null,{"$error":"#N/A"},null,{"$error":"#N/A"},null,null,null,null,0,null,null,null,"For overall event scores"]
[null,{"$error":"#N/A"},null,{"$error":"#N/A"},null,null,null,null,0]
[null,{"$error":"#N/A"},null,{"$error":"#N/A"},null,null,null,null,0,null,null,null,"For classified event scores"]
[null,{"$error":"#N/A"},null,{"$error":"#N/A"},null,null,null,null,0]
[null,{"$error":"#N/A"},null,{"$error":"#N/A"},null,null,null,null,0,null,null,null,"For scores by competitor "]
[null,{"$error":"#N/A"},null,{"$error":"#N/A"},null,null,null,null,0]
[null,{"$error":"#N/A"},null,{"$error":"#N/A"},null,null,null,null,0]
[null,{"$error":"#N/A"},null,{"$error":"#N/A"},null,null,null,null,0]
[null,{"$error":"#N/A"},null,{"$error":"#N/A"},null,null,null,null,0]
[null,{"$error":"#N/A"},null,{"$error":"#N/A"},null,null,null,null,0]
[null,{"$error":"#N/A"},null,{"$error":"#N/A"},null,null,null,null,0]
[null,{"$error":"#N/A"},null,{"$error":"#N/A"},null,null,null,null,0]
[null,{"$error":"#N/A"},null,{"$error":"#N/A"},null,null,null,null,0]
[null,{"$error":"#N/A"},null,{"$error":"#N/A"},null,null,null,null,0]
[null,{"$error":"#N/A"},null,{"$error":"#N/A"},null,null,null,null,0]
[null,{"$error":"#N/A"},null,{"$error":"#N/A"},null,null,null,null,0]
[null,{"$error":"#N/A"},null,{"$f":"VLOOKUP($A40,Members,VLOOKUP(C40,Events,2,FALSE),FALSE)","v":{"$error":"#N/A"}},null,null,null,null,0]
[null,{"$error":"#N/A"},null,{"$f":"VLOOKUP($A41,Members,VLOOKUP(C41,Events,2,FALSE),FALSE)","v":{"$error":"#N/A"}},null,null,null,null,0]
[null,{"$error":"#N/A"},null,{"$f":"VLOOKUP($A42,Members,VLOOKUP(C42,Events,2,FALSE),FALSE)","v":{"$error":"#N/A"}},null,null,null,null,0]
[null,{"$error":"#N/A"},null,{"$f":"VLOOKUP($A43,Members,VLOOKUP(C43,Events,2,FALSE),FALSE)","v":{"$error":"#N/A"}},null,null,null,null,0]
[null,{"$error":"#N/A"},null,{"$f":"VLOOKUP($A44,Members,VLOOKUP(C44,Events,2,FALSE),FALSE)","v":{"$error":"#N/A"}},null,null,null,null,0]
[null,{"$error":"#N/A"},null,{"$error":"#N/A"},null,null,null,null,0]
[null,{"$error":"#N/A"},null,{"$error":"#N/A"},null,null,null,null,0]
[null,{"$error":"#N/A"},null,{"$error":"#N/A"},null,null,null,null,0]
[null,{"$error":"#N/A"},null,{"$error":"#N/A"},null,null,null,null,0]
[null,{"$error":"#N/A"},null,{"$error":"#N/A"},null,null,null,null,0]
[null,{"$error":"#N/A"},null,{"$error":"#N/A"},null,null,null,null,0]
[null,{"$error":"#N/A"},null,{"$error":"#N/A"},null,null,null,null,0]
[null,{"$error":"#N/A"},null,{"$error":"#N/A"},null,null,null,null,0]
[null,{"$error":"#N/A"},null,{"$f":"VLOOKUP($A53,Members,VLOOKUP(C53,Events,2,FALSE),FALSE)","v":{"$error":"#N/A"}},null,null,null,null,0]
[null,{"$error":"#N/A"},null,{"$f":"VLOOKUP($A54,Members,VLOOKUP(C54,Events,2,FALSE),FALSE)","v":{"$error":"#N/A"}},null,null,null,null,0]
[null,{"$error":"#N/A"},null,{"$error":"#N/A"},null,null,null,null,0]
[null,{"$error":"#N/A"},null,{"$f":"VLOOKUP($A56,Members,VLOOKUP(C56,Events,2,FALSE),FALSE)","v":{"$error":"#N/A"}},null,null,null,null,0]
[null,{"$error":"#N/A"},null,{"$error":"#N/A"},null,null,null,null,0]
[null,{"$error":"#N/A"},null,{"$error":"#N/A"},null,null,null,null,0]
[null,{"$error":"#N/A"},null,{"$error":"#N/A"},null,null,null,null,0]
[null,{"$error":"#N/A"},null,{"$error":"#N/A"},null,null,null,null,0]
[null,{"$error":"#N/A"},null,{"$error":"#N/A"},null,null,null,null,0]
[null,{"$error":"#N/A"},null,{"$error":"#N/A"},null,null,null,null,0]
[null,{"$error":"#N/A"},null,{"$error":"#N/A"},null,null,null,null,0]
[null,{"$error":"#N/A"},null,{"$error":"#N/A"},null,null,null,null,0]
[null,{"$error":"#N/A"},null,{"$error":"#N/A"},null,null,null,null,0]
[null,{"$error":"#N/A"},null,{"$error":"#N/A"},null,null,null,null,0]
[null,{"$error":"#N/A"},null,{"$error":"#N/A"},null,null,null,null,0]
[null,{"$error":"#N/A"},null,{"$error":"#N/A"},null,null,null,null,0]
[null,{"$f":"VLOOKUP($A69,Members,2,FALSE)","v":{"$error":"#N/A"}},null,{"$error":"#N/A"},null,null,null,null,{"$f":"SUM(E69:H69)","v":0}]
[null,{"$error":"#N/A"},null,{"$error":"#N/A"},null,null,null,null,0]
[null,{"$error":"#N/A"},null,{"$error":"#N/A"},null,null,null,null,0]
[null,{"$error":"#N/A"},null,{"$error":"#N/A"},null,null,null,null,0]
[null,{"$error":"#N/A"},null,{"$error":"#N/A"},null,null,null,null,0]
[null,{"$error":"#N/A"},null,{"$f":"VLOOKUP($A74,Members,VLOOKUP(C74,Events,2,FALSE),FALSE)","v":{"$error":"#N/A"}},null,null,null,null,0]
[null,{"$error":"#N/A"},null,{"$error":"#N/A"},null,null,null,null,0]
[null,{"$error":"#N/A"},null,{"$error":"#N/A"},null,null,null,null,0]
[null,{"$error":"#N/A"},null,{"$error":"#N/A"},null,null,null,null,0]
[null,{"$error":"#N/A"},null,{"$error":"#N/A"},null,null,null,null,0]
[null,{"$error":"#N/A"},null,{"$error":"#N/A"},null,null,null,null,0]
[null,{"$error":"#N/A"},null,{"$error":"#N/A"},null,null,null,null,0]
[null,{"$error":"#N/A"},null,{"$error":"#N/A"},null,null,null,null,0]
[null,{"$error":"#N/A"},null,{"$f":"VLOOKUP($A82,Members,VLOOKUP(C82,Events,2,FALSE),FALSE)","v":{"$error":"#N/A"}},null,null,null,null,0]
[null,{"$error":"#N/A"},null,{"$f":"VLOOKUP($A83,Members,VLOOKUP(C83,Events,2,FALSE),FALSE)","v":{"$error":"#N/A"}},null,null,null,null,0]
[null,{"$error":"#N/A"},null,{"$f":"VLOOKUP($A84,Members,VLOOKUP(C84,Events,2,FALSE),FALSE)","v":{"$error":"#N/A"}},null,null,null,null,0]
[null,{"$error":"#N/A"},null,{"$f":"VLOOKUP($A85,Members,VLOOKUP(C85,Events,2,FALSE),FALSE)","v":{"$error":"#N/A"}},null,null,null,null,0]
[null,{"$error":"#N/A"},null,{"$f":"VLOOKUP($A86,Members,VLOOKUP(C86,Events,2,FALSE),FALSE)","v":{"$error":"#N/A"}},null,null,null,null,0]
[null,{"$error":"#N/A"},null,{"$f":"VLOOKUP($A87,Members,VLOOKUP(C87,Events,2,FALSE),FALSE)","v":{"$error":"#N/A"}},null,null,null,null,0]
[null,{"$error":"#N/A"},null,{"$f":"VLOOKUP($A88,Members,VLOOKUP(C88,Events,2,FALSE),FALSE)","v":{"$error":"#N/A"}},null,null,null,null,0]
[null,{"$error":"#N/A"},null,{"$f":"VLOOKUP($A89,Members,VLOOKUP(C89,Events,2,FALSE),FALSE)","v":{"$error":"#N/A"}},null,null,null,null,0]
[null,{"$error":"#N/A"},null,{"$f":"VLOOKUP($A90,Members,VLOOKUP(C90,Events,2,FALSE),FALSE)","v":{"$error":"#N/A"}},null,null,null,null,0]
[null,{"$error":"#N/A"},null,{"$f":"VLOOKUP($A91,Members,VLOOKUP(C91,Events,2,FALSE),FALSE)","v":{"$error":"#N/A"}},null,null,null,null,0]
[null,{"$error":"#N/A"},null,{"$f":"VLOOKUP($A92,Members,VLOOKUP(C92,Events,2,FALSE),FALSE)","v":{"$error":"#N/A"}},null,null,null,null,0]
[null,{"$error":"#N/A"},null,{"$error":"#N/A"},null,null,null,null,0]
[null,{"$error":"#N/A"},null,{"$f":"VLOOKUP($A94,Members,VLOOKUP(C94,Events,2,FALSE),FALSE)","v":{"$error":"#N/A"}},null,null,null,null,0]
[null,{"$error":"#N/A"},null,{"$error":"#N/A"},null,null,null,null,0]
[null,{"$error":"#N/A"},null,{"$error":"#N/A"},null,null,null,null,0]
[null,{"$error":"#N/A"},null,{"$error":"#N/A"},null,null,null,null,0]
[null,{"$error":"#N/A"},null,{"$error":"#N/A"},null,null,null,null,0]
[null,{"$error":"#N/A"},null,{"$error":"#N/A"},null,null,null,null,0]
[null,{"$error":"#N/A"},null,{"$error":"#N/A"},null,null,null,null,0]
[null,{"$error":"#N/A"},null,{"$error":"#N/A"},null,null,null,null,0]
[null,{"$error":"#N/A"},null,{"$error":"#N/A"},null,null,null,null,0]
[null,{"$error":"#N/A"},null,{"$f":"VLOOKUP($A103,Members,VLOOKUP(C103,Events,2,FALSE),FALSE)","v":{"$error":"#N/A"}},null,null,null,null,0]
[null,{"$error":"#N/A"},null,{"$error":"#N/A"},null,null,null,null,0]
[null,{"$error":"#N/A"},null,{"$error":"#N/A"},null,null,null,null,0]
[null,{"$error":"#N/A"},null,{"$error":"#N/A"},null,null,null,null,0]
[null,{"$error":"#N/A"},null,{"$error":"#N/A"},null,null,null,null,0]
[null,{"$error":"#N/A"},null,{"$error":"#N/A"},null,null,null,null,0]
[null,{"$error":"#N/A"},null,{"$error":"#N/A"},null,null,null,null,0]
[null,{"$error":"#N/A"},null,{"$error":"#N/A"},null,null,null,null,0]
[null,{"$error":"#N/A"},null,{"$error":"#N/A"},null,null,null,null,0]
[null,{"$error":"#N/A"},null,{"$error":"#N/A"},null,null,null,null,0]
[null,{"$error":"#N/A"},null,{"$error":"#N/A"},null,null,null,null,0]
[null,{"$error":"#N/A"},null,{"$error":"#N/A"},null,null,null,null,0]
[null,{"$error":"#N/A"},null,{"$error":"#N/A"},null,null,null,null,0]
[null,{"$error":"#N/A"},null,{"$error":"#N/A"},null,null,null,null,0]
[null,{"$error":"#N/A"},null,{"$error":"#N/A"},null,null,null,null,0]
[null,{"$error":"#N/A"},null,{"$error":"#N/A"},null,null,null,null,0]
[null,{"$error":"#N/A"},null,{"$error":"#N/A"},null,null,null,null,0]
[null,{"$error":"#N/A"},null,{"$error":"#N/A"},null,null,null,null,0]
[null,{"$error":"#N/A"},null,{"$error":"#N/A"},null,null,null,null,0]
[null,{"$error":"#N/A"},null,{"$error":"#N/A"},null,null,null,null,0]
[null,{"$error":"#N/A"},null,{"$error":"#N/A"},null,null,null,null,0]
[null,{"$error":"#N/A"},null,{"$error":"#N/A"},null,null,null,null,0]
[null,{"$error":"#N/A"},null,{"$error":"#N/A"},null,null,null,null,0]
[null,{"$error":"#N/A"},null,{"$error":"#N/A"},null,null,null,null,0]
[null,{"$error":"#N/A"},null,{"$error":"#N/A"},null,null,null,null,0]
[null,{"$error":"#N/A"},null,{"$error":"#N/A"},null,null,null,null,0]
[null,{"$error":"#N/A"},null,{"$error":"#N/A"},null,null,null,null,0]
[null,{"$error":"#N/A"},null,{"$error":"#N/A"},null,null,null,null,0]
[null,{"$error":"#N/A"},null,{"$error":"#N/A"},null,null,null,null,0]
[null,{"$error":"#N/A"},null,{"$error":"#N/A"},null,null,null,null,0]
[null,{"$f":"VLOOKUP($A133,Members,2,FALSE)","v":{"$error":"#N/A"}},null,{"$error":"#N/A"},null,null,null,null,{"$f":"SUM(E133:H133)","v":0}]
[null,{"$error":"#N/A"},null,{"$error":"#N/A"},null,null,null,null,0]
[null,{"$error":"#N/A"},null,{"$error":"#N/A"},null,null,null,null,0]
[null,{"$error":"#N/A"},null,{"$error":"#N/A"},null,null,null,null,0]
[null,{"$error":"#N/A"},null,{"$error":"#N/A"},null,null,null,null,0]
[null,{"$error":"#N/A"},null,{"$error":"#N/A"},null,null,null,null,0]
[null,{"$error":"#N/A"},null,{"$error":"#N/A"},null,null,null,null,0]
[null,{"$error":"#N/A"},null,{"$error":"#N/A"},null,null,null,null,0]
[null,{"$error":"#N/A"},null,{"$error":"#N/A"},null,null,null,null,0]
[null,{"$error":"#N/A"},null,{"$error":"#N/A"},null,null,null,null,0]
[null,{"$error":"#N/A"},null,{"$error":"#N/A"},null,null,null,null,0]
[null,{"$error":"#N/A"},null,{"$error":"#N/A"},null,null,null,null,0]
[null,{"$error":"#N/A"},null,{"$error":"#N/A"},null,null,null,null,0]
[null,{"$error":"#N/A"},null,{"$error":"#N/A"},null,null,null,null,0]
[null,{"$error":"#N/A"},null,{"$error":"#N/A"},null,null,null,null,0]
[null,{"$error":"#N/A"},null,{"$error":"#N/A"},null,null,null,null,0]
[null,{"$error":"#N/A"},null,{"$error":"#N/A"},null,null,null,null,0]
[null,{"$error":"#N/A"},null,{"$error":"#N/A"},null,null,null,null,0]
[null,{"$error":"#N/A"},null,{"$error":"#N/A"},null,null,null,null,0]
[null,{"$error":"#N/A"},null,{"$error":"#N/A"},null,null,null,null,0]
[null,{"$error":"#N/A"},null,{"$error":"#N/A"},null,null,null,null,0]
[null,{"$error":"#N/A"},null,{"$error":"#N/A"},null,null,null,null,0]
[null,{"$error":"#N/A"},null,{"$error":"#N/A"},null,null,null,null,0]
[null,{"$error":"#N/A"},null,{"$error":"#N/A"},null,null,null,null,0]
[null,{"$error":"#N/A"},null,{"$error":"#N/A"},null,null,null,null,0]
[null,{"$error":"#N/A"},null,{"$error":"#N/A"},null,null,null,null,0]
[null,{"$error":"#N/A"},null,{"$error":"#N/A"},null,null,null,null,0]
[null,{"$error":"#N/A"},null,{"$error":"#N/A"},null,null,null,null,0]
[null,{"$error":"#N/A"},null,{"$error":"#N/A"},null,null,null,null,0]
[null,{"$error":"#N/A"},null,{"$error":"#N/A"},null,null,null,null,0]
[null,{"$error":"#N/A"},null,{"$error":"#N/A"},null,null,null,null,0]
[null,{"$error":"#N/A"},null,{"$error":"#N/A"},null,null,null,null,0]
[null,{"$error":"#N/A"},null,{"$error":"#N/A"},null,null,null,null,0]
[null,{"$error":"#N/A"},null,{"$error":"#N/A"},null,null,null,null,0]
[null,{"$error":"#N/A"},null,{"$f":"VLOOKUP($A167,Members,VLOOKUP(C167,Events,2,FALSE),FALSE)","v":{"$error":"#N/A"}},null,null,null,null,0]
[null,{"$error":"#N/A"},null,{"$error":"#N/A"},null,null,null,null,0]
[null,{"$error":"#N/A"},null,{"$error":"#N/A"},null,null,null,null,0]
[null,{"$error":"#N/A"},null,{"$error":"#N/A"},null,null,null,null,0]
[null,{"$error":"#N/A"},null,{"$error":"#N/A"},null,null,null,null,0]
[null,{"$error":"#N/A"},null,{"$error":"#N/A"},null,null,null,null,0]
[null,{"$error":"#N/A"},null,{"$error":"#N/A"},null,null,null,null,0]
[null,{"$error":"#N/A"},null,{"$error":"#N/A"},null,null,null,null,0]
[null,{"$error":"#N/A"},null,{"$error":"#N/A"},null,null,null,null,0]
[null,{"$error":"#N/A"},null,{"$error":"#N/A"},null,null,null,null,0]
[null,{"$error":"#N/A"},null,{"$error":"#N/A"},null,null,null,null,0]
[null,{"$error":"#N/A"},null,{"$error":"#N/A"},null,null,null,null,0]
[null,{"$error":"#N/A"},null,{"$error":"#N/A"},null,null,null,null,0]
[null,{"$error":"#N/A"},null,{"$error":"#N/A"},null,null,null,null,0]
[null,{"$error":"#N/A"},null,{"$error":"#N/A"},null,null,null,null,0]
[null,{"$error":"#N/A"},null,{"$error":"#N/A"},null,null,null,null,0]
[null,{"$error":"#N/A"},null,{"$error":"#N/A"},null,null,null,null,0]
[null,{"$error":"#N/A"},null,{"$error":"#N/A"},null,null,null,null,0]
[null,{"$error":"#N/A"},null,{"$error":"#N/A"},null,null,null,null,0]
[null,{"$error":"#N/A"},null,{"$error":"#N/A"},null,null,null,null,0]
[null,{"$error":"#N/A"},null,{"$error":"#N/A"},null,null,null,null,0]
[null,{"$error":"#N/A"},null,{"$error":"#N/A"},null,null,null,null,0]
[null,{"$error":"#N/A"},null,{"$error":"#N/A"},null,null,null,null,0]
[null,{"$error":"#N/A"},null,{"$error":"#N/A"},null,null,null,null,0]
[null,{"$error":"#N/A"},null,{"$error":"#N/A"},null,null,null,null,0]
[null,{"$error":"#N/A"},null,{"$error":"#N/A"},null,null,null,null,0]
[null,{"$error":"#N/A"},null,{"$error":"#N/A"},null,null,null,null,0]
[null,{"$error":"#N/A"},null,{"$error":"#N/A"},null,null,null,null,0]
[null,{"$error":"#N/A"},null,{"$error":"#N/A"},null,null,null,null,0]
[null,{"$error":"#N/A"},null,{"$error":"#N/A"},null,null,null,null,0]
[null,{"$f":"VLOOKUP($A197,Members,2,FALSE)","v":{"$error":"#N/A"}},null,{"$error":"#N/A"},null,null,null,null,{"$f":"SUM(E197:H197)","v":0}]
[null,{"$error":"#N/A"},null,{"$error":"#N/A"},null,null,null,null,0]
[null,{"$error":"#N/A"},null,{"$error":"#N/A"},null,null,null,null,0]
[null,{"$error":"#N/A"},null,{"$error":"#N/A"},null,null,null,null,0]
[null,{"$error":"#N/A"},null,{"$error":"#N/A"},null,null,null,null,0]
[null,{"$error":"#N/A"},null,{"$error":"#N/A"},null,null,null,null,0]
[null,{"$error":"#N/A"},null,{"$error":"#N/A"},null,null,null,null,0]
[null,{"$error":"#N/A"},null,{"$error":"#N/A"},null,null,null,null,0]
[null,{"$error":"#N/A"},null,{"$error":"#N/A"},null,null,null,null,0]
[null,{"$error":"#N/A"},null,{"$error":"#N/A"},null,null,null,null,0]
[null,{"$error":"#N/A"},null,{"$error":"#N/A"},null,null,null,null,0]
[null,{"$error":"#N/A"},null,{"$error":"#N/A"},null,null,null,null,0]
[null,{"$error":"#N/A"},null,{"$error":"#N/A"},null,null,null,null,0]
[null,{"$error":"#N/A"},null,{"$error":"#N/A"},null,null,null,null,0]
[null,{"$error":"#N/A"},null,{"$error":"#N/A"},null,null,null,null,0]
[null,{"$error":"#N/A"},null,{"$error":"#N/A"},null,null,null,null,0]
[null,{"$error":"#N/A"},null,{"$error":"#N/A"},null,null,null,null,0]
[null,{"$error":"#N/A"},null,{"$error":"#N/A"},null,null,null,null,0]
[null,{"$error":"#N/A"},null,{"$error":"#N/A"},null,null,null,null,0]
[null,{"$error":"#N/A"},null,{"$error":"#N/A"},null,null,null,null,0]
[null,{"$error":"#N/A"},null,{"$error":"#N/A"},null,null,null,null,0]
[null,{"$error":"#N/A"},null,{"$error":"#N/A"},null,null,null,null,0]
[null,{"$error":"#N/A"},null,{"$error":"#N/A"},null,null,null,null,0]
[null,{"$error":"#N/A"},null,{"$error":"#N/A"},null,null,null,null,0]
[null,{"$error":"#N/A"},null,{"$error":"#N/A"},null,null,null,null,0]
[null,{"$error":"#N/A"},null,{"$error":"#N/A"},null,null,null,null,0]
[null,{"$error":"#N/A"},null,{"$error":"#N/A"},null,null,null,null,0]
[null,{"$error":"#N/A"},null,{"$error":"#N/A"},null,null,null,null,0]
[null,{"$error":"#N/A"},null,{"$error":"#N/A"},null,null,null,null,0]
[null,{"$error":"#N/A"},null,{"$error":"#N/A"},null,null,null,null,0]
[null,{"$error":"#N/A"},null,{"$error":"#N/A"},null,null,null,null,0]
[null,{"$error":"#N/A"},null,{"$error":"#N/A"},null,null,null,null,0]
[null,{"$error":"#N/A"},null,{"$error":"#N/A"},null,null,null,null,0]
[null,{"$error":"#N/A"},null,{"$error":"#N/A"},null,null,null,null,0]
[null,{"$error":"#N/A"},null,{"$f":"VLOOKUP($A231,Members,VLOOKUP(C231,Events,2,FALSE),FALSE)","v":{"$error":"#N/A"}},null,null,null,null,0]
[null,{"$error":"#N/A"},null,{"$error":"#N/A"},null,null,null,null,0]
[null,{"$error":"#N/A"},null,{"$error":"#N/A"},null,null,null,null,0]
[null,{"$error":"#N/A"},null,{"$error":"#N/A"},null,null,null,null,0]
[null,{"$error":"#N/A"},null,{"$error":"#N/A"},null,null,null,null,0]
[null,{"$error":"#N/A"},null,{"$error":"#N/A"},null,null,null,null,0]
[null,{"$error":"#N/A"},null,{"$error":"#N/A"},null,null,null,null,0]
[null,{"$error":"#N/A"},null,{"$error":"#N/A"},null,null,null,null,0]
[null,{"$error":"#N/A"},null,{"$error":"#N/A"},null,null,null,null,0]
[null,{"$error":"#N/A"},null,{"$error":"#N/A"},null,null,null,null,0]
[null,{"$error":"#N/A"},null,{"$error":"#N/A"},null,null,null,null,0]
[null,{"$error":"#N/A"},null,{"$error":"#N/A"},null,null,null,null,0]
[null,{"$error":"#N/A"},null,{"$error":"#N/A"},null,null,null,null,0]
[null,{"$error":"#N/A"},null,{"$error":"#N/A"},null,null,null,null,0]
[null,{"$error":"#N/A"},null,{"$error":"#N/A"},null,null,null,null,0]
[null,{"$error":"#N/A"},null,{"$error":"#N/A"},null,null,null,null,0]
[null,{"$error":"#N/A"},null,{"$error":"#N/A"},null,null,null,null,0]
[null,{"$error":"#N/A"},null,{"$error":"#N/A"},null,null,null,null,0]
[null,{"$error":"#N/A"},null,{"$error":"#N/A"},null,null,null,null,0]
[null,{"$error":"#N/A"},null,{"$error":"#N/A"},null,null,null,null,0]
[null,{"$error":"#N/A"},null,{"$error":"#N/A"},null,null,null,null,0]
[null,{"$error":"#N/A"},null,{"$error":"#N/A"},null,null,null,null,0]
[null,{"$error":"#N/A"},null,{"$error":"#N/A"},null,null,null,null,0]
[null,{"$error":"#N/A"},null,{"$error":"#N/A"},null,null,null,null,0]
[null,{"$error":"#N/A"},null,{"$error":"#N/A"},null,null,null,null,0]
[null,{"$error":"#N/A"},null,{"$error":"#N/A"},null,null,null,null,0]
[null,{"$error":"#N/A"},null,{"$error":"#N/A"},null,null,null,null,0]
[null,{"$error":"#N/A"},null,{"$error":"#N/A"},null,null,null,null,0]
[null,{"$error":"#N/A"},null,{"$error":"#N/A"},null,null,null,null,0]
[null,{"$error":"#N/A"},null,{"$error":"#N/A"},null,null,null,null,0]
[null,{"$f":"VLOOKUP($A261,Members,2,FALSE)","v":{"$error":"#N/A"}},null,{"$error":"#N/A"},null,null,null,null,{"$f":"SUM(E261:H261)","v":0}]
[null,{"$error":"#N/A"},null,{"$error":"#N/A"},null,null,null,null,0]
[null,{"$error":"#N/A"},null,{"$error":"#N/A"},null,null,null,null,0]
[null,{"$error":"#N/A"},null,{"$error":"#N/A"},null,null,null,null,0]
[null,{"$error":"#N/A"},null,{"$error":"#N/A"},null,null,null,null,0]
[null,{"$error":"#N/A"},null,{"$error":"#N/A"},null,null,null,null,0]
[null,{"$error":"#N/A"},null,{"$error":"#N/A"},null,null,null,null,0]
[null,{"$error":"#N/A"},null,{"$error":"#N/A"},null,null,null,null,0]
[null,{"$error":"#N/A"},null,{"$error":"#N/A"},null,null,null,null,0]
[null,{"$error":"#N/A"},null,{"$error":"#N/A"},null,null,null,null,0]
[null,{"$error":"#N/A"},null,{"$error":"#N/A"},null,null,null,null,0]
[null,{"$error":"#N/A"},null,{"$error":"#N/A"},null,null,null,null,0]
[null,{"$error":"#N/A"},null,{"$error":"#N/A"},null,null,null,null,0]
[null,{"$error":"#N/A"},null,{"$error":"#N/A"},null,null,null,null,0]
[null,{"$error":"#N/A"},null,{"$error":"#N/A"},null,null,null,null,0]
[null,{"$error":"#N/A"},null,{"$error":"#N/A"},null,null,null,null,0]
[null,{"$error":"#N/A"},null,{"$error":"#N/A"},null,null,null,null,0]
[null,{"$error":"#N/A"},null,{"$error":"#N/A"},null,null,null,null,0]
[null,{"$error":"#N/A"},null,{"$error":"#N/A"},null,null,null,null,0]
[null,{"$error":"#N/A"},null,{"$error":"#N/A"},null,null,null,null,0]
[null,{"$error":"#N/A"},null,{"$error":"#N/A"},null,null,null,null,0]
[null,{"$error":"#N/A"},null,{"$error":"#N/A"},null,null,null,null,0]
[null,{"$error":"#N/A"},null,{"$error":"#N/A"},null,null,null,null,0]
[null,{"$error":"#N/A"},null,{"$error":"#N/A"},null,null,null,null,0]
[null,{"$error":"#N/A"},null,{"$error":"#N/A"},null,null,null,null,0]
[null,{"$error":"#N/A"},null,{"$error":"#N/A"},null,null,null,null,0]
[null,{"$error":"#N/A"},null,{"$error":"#N/A"},null,null,null,null,0]
[null,{"$error":"#N/A"},null,{"$error":"#N/A"},null,null,null,null,0]
[null,{"$error":"#N/A"},null,{"$error":"#N/A"},null,null,null,null,0]
[null,{"$error":"#N/A"},null,{"$error":"#N/A"},null,null,null,null,0]
[null,{"$error":"#N/A"},null,{"$error":"#N/A"},null,null,null,null,0]
[null,{"$error":"#N/A"},null,{"$error":"#N/A"},null,null,null,null,0]
[null,{"$error":"#N/A"},null,{"$error":"#N/A"},null,null,null,null,0]
[null,{"$error":"#N/A"},null,{"$error":"#N/A"},null,null,null,null,0]
[null,{"$error":"#N/A"},null,{"$f":"VLOOKUP($A295,Members,VLOOKUP(C295,Events,2,FALSE),FALSE)","v":{"$error":"#N/A"}},null,null,null,null,0]
[null,{"$error":"#N/A"},null,{"$error":"#N/A"},null,null,null,null,0]
[null,{"$error":"#N/A"},null,{"$error":"#N/A"},null,null,null,null,0]
[null,{"$error":"#N/A"},null,{"$error":"#N/A"},null,null,null,null,0]
[null,{"$error":"#N/A"},null,{"$error":"#N/A"},null,null,null,null,0]
[null,{"$error":"#N/A"},null,{"$error":"#N/A"},null,null,null,null,0]
[null,{"$error":"#N/A"},null,{"$error":"#N/A"},null,null,null,null,0]
[null,{"$error":"#N/A"},null,{"$error":"#N/A"},null,null,null,null,0]
[null,{"$error":"#N/A"},null,{"$error":"#N/A"},null,null,null,null,0]
[null,{"$error":"#N/A"},null,{"$error":"#N/A"},null,null,null,null,0]
[null,{"$error":"#N/A"},null,{"$error":"#N/A"},null,null,null,null,0]
[null,{"$error":"#N/A"},null,{"$error":"#N/A"},null,null,null,null,0]
[null,{"$error":"#N/A"},null,{"$error":"#N/A"},null,null,null,null,0]
[null,{"$error":"#N/A"},null,{"$error":"#N/A"},null,null,null,null,0]
[null,{"$error":"#N/A"},null,{"$error":"#N/A"},null,null,null,null,0]
[null,{"$error":"#N/A"},null,{"$error":"#N/A"},null,null,null,null,0]
[null,{"$error":"#N/A"},null,{"$error":"#N/A"},null,null,null,null,0]
[null,{"$error":"#N/A"},null,{"$error":"#N/A"},null,null,null,null,0]
[null,{"$error":"#N/A"},null,{"$error":"#N/A"},null,null,null,null,0]
[null,{"$error":"#N/A"},null,{"$error":"#N/A"},null,null,null,null,0]
[null,{"$error":"#N/A"},null,{"$error":"#N/A"},null,null,null,null,0]
[null,{"$error":"#N/A"},null,{"$error":"#N/A"},null,null,null,null,0]
[null,{"$error":"#N/A"},null,{"$error":"#N/A"},null,null,null,null,0]
[null,{"$error":"#N/A"},null,{"$error":"#N/A"},null,null,null,null,0]
[null,{"$error":"#N/A"},null,{"$error":"#N/A"},null,null,null,null,0]
[null,{"$error":"#N/A"},null,{"$error":"#N/A"},null,null,null,null,0]
[null,{"$error":"#N/A"},null,{"$error":"#N/A"},null,null,null,null,0]
[null,{"$error":"#N/A"},null,{"$error":"#N/A"},null,null,null,null,0]
[null,{"$error":"#N/A"},null,{"$error":"#N/A"},null,null,null,null,0]
[null,{"$error":"#N/A"},null,{"$error":"#N/A"},null,null,null,null,0]
[null,{"$f":"VLOOKUP($A325,Members,2,FALSE)","v":{"$error":"#N/A"}},null,{"$error":"#N/A"},null,null,null,null,{"$f":"SUM(E325:H325)","v":0}]
[null,{"$error":"#N/A"},null,{"$error":"#N/A"},null,null,null,null,0]
[null,{"$error":"#N/A"},null,{"$error":"#N/A"},null,null,null,null,0]
[null,{"$error":"#N/A"},null,{"$error":"#N/A"},null,null,null,null,0]
[null,{"$error":"#N/A"},null,{"$error":"#N/A"},null,null,null,null,0]
[null,{"$error":"#N/A"},null,{"$error":"#N/A"},null,null,null,null,0]
[null,{"$error":"#N/A"},null,{"$error":"#N/A"},null,null,null,null,0]
[null,{"$error":"#N/A"},null,{"$error":"#N/A"},null,null,null,null,0]
[null,{"$error":"#N/A"},null,{"$error":"#N/A"},null,null,null,null,0]
[null,{"$error":"#N/A"},null,{"$error":"#N/A"},null,null,null,null,0]
[null,{"$error":"#N/A"},null,{"$error":"#N/A"},null,null,null,null,0]
[null,{"$error":"#N/A"},null,{"$error":"#N/A"},null,null,null,null,0]
[null,{"$error":"#N/A"},null,{"$error":"#N/A"},null,null,null,null,0]
[null,{"$error":"#N/A"},null,{"$error":"#N/A"},null,null,null,null,0]
[null,{"$error":"#N/A"},null,{"$error":"#N/A"},null,null,null,null,0]
[null,{"$error":"#N/A"},null,{"$error":"#N/A"},null,null,null,null,0]
[null,{"$error":"#N/A"},null,{"$error":"#N/A"},null,null,null,null,0]
[null,{"$error":"#N/A"},null,{"$error":"#N/A"},null,null,null,null,0]
[null,{"$error":"#N/A"},null,{"$error":"#N/A"},null,null,null,null,0]
[null,{"$error":"#N/A"},null,{"$error":"#N/A"},null,null,null,null,0]
[null,{"$error":"#N/A"},null,{"$error":"#N/A"},null,null,null,null,0]
[null,{"$error":"#N/A"},null,{"$error":"#N/A"},null,null,null,null,0]
[null,{"$error":"#N/A"},null,{"$error":"#N/A"},null,null,null,null,0]
[null,{"$error":"#N/A"},null,{"$error":"#N/A"},null,null,null,null,0]
[null,{"$error":"#N/A"},null,{"$error":"#N/A"},null,null,null,null,0]
[null,{"$error":"#N/A"},null,{"$error":"#N/A"},null,null,null,null,0]
[null,{"$error":"#N/A"},null,{"$error":"#N/A"},null,null,null,null,0]
[null,{"$error":"#N/A"},null,{"$error":"#N/A"},null,null,null,null,0]
[null,{"$error":"#N/A"},null,{"$error":"#N/A"},null,null,null,null,0]
[null,{"$error":"#N/A"},null,{"$error":"#N/A"},null,null,null,null,0]
[null,{"$error":"#N/A"},null,{"$error":"#N/A"},null,null,null,null,0]
[null,{"$error":"#N/A"},null,{"$error":"#N/A"},null,null,null,null,0]
[null,{"$error":"#N/A"},null,{"$error":"#N/A"},null,null,null,null,0]
[null,{"$error":"#N/A"},null,{"$error":"#N/A"},null,null,null,null,0]
[null,{"$error":"#N/A"},null,{"$f":"VLOOKUP($A359,Members,VLOOKUP(C359,Events,2,FALSE),FALSE)","v":{"$error":"#N/A"}},null,null,null,null,0]
[null,{"$error":"#N/A"},null,{"$error":"#N/A"},null,null,null,null,0]
[null,{"$error":"#N/A"},null,{"$error":"#N/A"},null,null,null,null,0]
[null,{"$error":"#N/A"},null,{"$error":"#N/A"},null,null,null,null,0]
[null,{"$error":"#N/A"},null,{"$error":"#N/A"},null,null,null,null,0]
[null,{"$error":"#N/A"},null,{"$error":"#N/A"},null,null,null,null,0]
[null,{"$error":"#N/A"},null,{"$error":"#N/A"},null,null,null,null,0]
[null,{"$error":"#N/A"},null,{"$error":"#N/A"},null,null,null,null,0]
[null,{"$error":"#N/A"},null,{"$error":"#N/A"},null,null,null,null,0]
[null,{"$error":"#N/A"},null,{"$error":"#N/A"},null,null,null,null,0]
[null,{"$error":"#N/A"},null,{"$error":"#N/A"},null,null,null,null,0]
[null,{"$error":"#N/A"},null,{"$error":"#N/A"},null,null,null,null,0]
[null,{"$error":"#N/A"},null,{"$error":"#N/A"},null,null,null,null,0]
[null,{"$error":"#N/A"},null,{"$error":"#N/A"},null,null,null,null,0]
[null,{"$error":"#N/A"},null,{"$error":"#N/A"},null,null,null,null,0]
[null,{"$error":"#N/A"},null,{"$error":"#N/A"},null,null,null,null,0]
[null,{"$error":"#N/A"},null,{"$error":"#N/A"},null,null,null,null,0]
[null,{"$error":"#N/A"},null,{"$error":"#N/A"},null,null,null,null,0]
[null,{"$error":"#N/A"},null,{"$error":"#N/A"},null,null,null,null,0]
[null,{"$error":"#N/A"},null,{"$error":"#N/A"},null,null,null,null,0]
[null,{"$error":"#N/A"},null,{"$error":"#N/A"},null,null,null,null,0]
[null,{"$error":"#N/A"},null,{"$error":"#N/A"},null,null,null,null,0]
[null,{"$error":"#N/A"},null,{"$error":"#N/A"},null,null,null,null,0]
[null,{"$error":"#N/A"},null,{"$error":"#N/A"},null,null,null,null,0]
[null,{"$error":"#N/A"},null,{"$error":"#N/A"},null,null,null,null,0]
[null,{"$error":"#N/A"},null,{"$error":"#N/A"},null,null,null,null,0]
[null,{"$error":"#N/A"},null,{"$error":"#N/A"},null,null,null,null,0]
[null,{"$error":"#N/A"},null,{"$error":"#N/A"},null,null,null,null,0]
[null,{"$error":"#N/A"},null,{"$error":"#N/A"},null,null,null,null,0]
[null,{"$error":"#N/A"},null,{"$error":"#N/A"},null,null,null,null,0]
[null,{"$f":"VLOOKUP($A389,Members,2,FALSE)","v":{"$error":"#N/A"}},null,{"$error":"#N/A"},null,null,null,null,{"$f":"SUM(E389:H389)","v":0}]
[null,{"$error":"#N/A"},null,{"$error":"#N/A"},null,null,null,null,0]
[null,{"$error":"#N/A"},null,{"$error":"#N/A"},null,null,null,null,0]
[null,{"$error":"#N/A"},null,{"$error":"#N/A"},null,null,null,null,0]
[null,{"$error":"#N/A"},null,{"$error":"#N/A"},null,null,null,null,0]
[null,{"$error":"#N/A"},null,{"$error":"#N/A"},null,null,null,null,0]
[null,{"$error":"#N/A"},null,{"$error":"#N/A"},null,null,null,null,0]
[null,{"$error":"#N/A"},null,{"$error":"#N/A"},null,null,null,null,0]
[null,{"$error":"#N/A"},null,{"$error":"#N/A"},null,null,null,null,0]
[null,{"$error":"#N/A"},null,{"$error":"#N/A"},null,null,null,null,0]
[null,{"$error":"#N/A"},null,{"$error":"#N/A"},null,null,null,null,0]
[null,{"$error":"#N/A"},null,{"$error":"#N/A"},null,null,null,null,0]
[null,{"$error":"#N/A"},null,{"$error":"#N/A"},null,null,null,null,0]
[null,{"$error":"#N/A"},null,{"$error":"#N/A"},null,null,null,null,0]
[null,{"$error":"#N/A"},null,{"$error":"#N/A"},null,null,null,null,0]
[null,{"$error":"#N/A"},null,{"$error":"#N/A"},null,null,null,null,0]
[null,{"$error":"#N/A"},null,{"$error":"#N/A"},null,null,null,null,0]
[null,{"$error":"#N/A"},null,{"$error":"#N/A"},null,null,null,null,0]
[null,{"$error":"#N/A"},null,{"$error":"#N/A"},null,null,null,null,0]
[null,{"$error":"#N/A"},null,{"$error":"#N/A"},null,null,null,null,0]
[null,{"$error":"#N/A"},null,{"$error":"#N/A"},null,null,null,null,0]
[null,{"$error":"#N/A"},null,{"$error":"#N/A"},null,null,null,null,0]
[null,{"$error":"#N/A"},null,{"$error":"#N/A"},null,null,null,null,0]
[null,{"$error":"#N/A"},null,{"$error":"#N/A"},null,null,null,null,0]
[null,{"$error":"#N/A"},null,{"$error":"#N/A"},null,null,null,null,0]
[null,{"$error":"#N/A"},null,{"$error":"#N/A"},null,null,null,null,0]
[null,{"$error":"#N/A"},null,{"$error":"#N/A"},null,null,null,null,0]
[null,{"$error":"#N/A"},null,{"$error":"#N/A"},null,null,null,null,0]
[null,{"$error":"#N/A"},null,{"$error":"#N/A"},null,null,null,null,0]
[null,{"$error":"#N/A"},null,{"$error":"#N/A"},null,null,null,null,0]
[null,{"$error":"#N/A"},null,{"$error":"#N/A"},null,null,null,null,0]
[null,{"$error":"#N/A"},null,{"$error":"#N/A"},null,null,null,null,0]
[null,{"$error":"#N/A"},null,{"$error":"#N/A"},null,null,null,null,0]
[null,{"$error":"#N/A"},null,{"$error":"#N/A"},null,null,null,null,0]
[null,{"$error":"#N/A"},null,{"$f":"VLOOKUP($A423,Members,VLOOKUP(C423,Events,2,FALSE),FALSE)","v":{"$error":"#N/A"}},null,null,null,null,0]
[null,{"$error":"#N/A"},null,{"$error":"#N/A"},null,null,null,null,0]
[null,{"$error":"#N/A"},null,{"$error":"#N/A"},null,null,null,null,0]
[null,{"$error":"#N/A"},null,{"$error":"#N/A"},null,null,null,null,0]
[null,{"$error":"#N/A"},null,{"$error":"#N/A"},null,null,null,null,0]
[null,{"$error":"#N/A"},null,{"$error":"#N/A"},null,null,null,null,0]
[null,{"$error":"#N/A"},null,{"$error":"#N/A"},null,null,null,null,0]
[null,{"$error":"#N/A"},null,{"$error":"#N/A"},null,null,null,null,0]
[null,{"$error":"#N/A"},null,{"$error":"#N/A"},null,null,null,null,0]
[null,{"$error":"#N/A"},null,{"$error":"#N/A"},null,null,null,null,0]
[null,{"$error":"#N/A"},null,{"$error":"#N/A"},null,null,null,null,0]
[null,{"$error":"#N/A"},null,{"$error":"#N/A"},null,null,null,null,0]
[null,{"$error":"#N/A"},null,{"$error":"#N/A"},null,null,null,null,0]
[null,{"$error":"#N/A"},null,{"$error":"#N/A"},null,null,null,null,0]
[null,{"$error":"#N/A"},null,{"$error":"#N/A"},null,null,null,null,0]
[null,{"$error":"#N/A"},null,{"$error":"#N/A"},null,null,null,null,0]
[null,{"$error":"#N/A"},null,{"$error":"#N/A"},null,null,null,null,0]
[null,{"$error":"#N/A"},null,{"$error":"#N/A"},null,null,null,null,0]
[null,{"$error":"#N/A"},null,{"$error":"#N/A"},null,null,null,null,0]
[null,{"$error":"#N/A"},null,{"$error":"#N/A"},null,null,null,null,0]
[null,{"$error":"#N/A"},null,{"$error":"#N/A"},null,null,null,null,0]
[null,{"$error":"#N/A"},null,{"$error":"#N/A"},null,null,null,null,0]
[null,{"$error":"#N/A"},null,{"$error":"#N/A"},null,null,null,null,0]
[null,{"$error":"#N/A"},null,{"$error":"#N/A"},null,null,null,null,0]
[null,{"$error":"#N/A"},null,{"$error":"#N/A"},null,null,null,null,0]
[null,{"$error":"#N/A"},null,{"$error":"#N/A"},null,null,null,null,0]
[null,{"$error":"#N/A"},null,{"$error":"#N/A"},null,null,null,null,0]
[null,{"$error":"#N/A"},null,{"$error":"#N/A"},null,null,null,null,0]
[null,{"$error":"#N/A"},null,{"$error":"#N/A"},null,null,null,null,0]
[null,{"$error":"#N/A"},null,{"$error":"#N/A"},null,null,null,null,0]
[null,{"$f":"VLOOKUP($A453,Members,2,FALSE)","v":{"$error":"#N/A"}},null,{"$error":"#N/A"},null,null,null,null,{"$f":"SUM(E453:H453)","v":0}]
[null,{"$error":"#N/A"},null,{"$error":"#N/A"},null,null,null,null,0]
[null,{"$error":"#N/A"},null,{"$error":"#N/A"},null,null,null,null,0]
[null,{"$error":"#N/A"},null,{"$error":"#N/A"},null,null,null,null,0]
[null,{"$error":"#N/A"},null,{"$error":"#N/A"},null,null,null,null,0]
[null,{"$error":"#N/A"},null,{"$error":"#N/A"},null,null,null,null,0]
[null,{"$error":"#N/A"},null,{"$error":"#N/A"},null,null,null,null,0]
[null,{"$error":"#N/A"},null,{"$error":"#N/A"},null,null,null,null,0]
[null,{"$error":"#N/A"},null,{"$error":"#N/A"},null,null,null,null,0]
[null,{"$error":"#N/A"},null,{"$error":"#N/A"},null,null,null,null,0]
[null,{"$error":"#N/A"},null,{"$error":"#N/A"},null,null,null,null,0]
[null,{"$error":"#N/A"},null,{"$error":"#N/A"},null,null,null,null,0]
[null,{"$error":"#N/A"},null,{"$error":"#N/A"},null,null,null,null,0]
[null,{"$error":"#N/A"},null,{"$error":"#N/A"},null,null,null,null,0]
[null,{"$error":"#N/A"},null,{"$error":"#N/A"},null,null,null,null,0]
[null,{"$error":"#N/A"},null,{"$error":"#N/A"},null,null,null,null,0]
[null,{"$error":"#N/A"},null,{"$error":"#N/A"},null,null,null,null,0]
[null,{"$error":"#N/A"},null,{"$error":"#N/A"},null,null,null,null,0]
[null,{"$error":"#N/A"},null,{"$error":"#N/A"},null,null,null,null,0]
[null,{"$error":"#N/A"},null,{"$error":"#N/A"},null,null,null,null,0]
[null,{"$error":"#N/A"},null,{"$error":"#N/A"},null,null,null,null,0]
[null,{"$error":"#N/A"},null,{"$error":"#N/A"},null,null,null,null,0]
[null,{"$error":"#N/A"},null,{"$error":"#N/A"},null,null,null,null,0]
[null,{"$error":"#N/A"},null,{"$error":"#N/A"},null,null,null,null,0]
[null,{"$error":"#N/A"},null,{"$error":"#N/A"},null,null,null,null,0]
[null,{"$error":"#N/A"},null,{"$error":"#N/A"},null,null,null,null,0]
[null,{"$error":"#N/A"},null,{"$error":"#N/A"},null,null,null,null,0]
[null,{"$error":"#N/A"},null,{"$error":"#N/A"},null,null,null,null,0]
[null,{"$error":"#N/A"},null,{"$error":"#N/A"},null,null,null,null,0]
[null,{"$error":"#N/A"},null,{"$error":"#N/A"},null,null,null,null,0]
[null,{"$error":"#N/A"},null,{"$error":"#N/A"},null,null,null,null,0]
[null,{"$error":"#N/A"},null,{"$error":"#N/A"},null,null,null,null,0]
[null,{"$error":"#N/A"},null,{"$error":"#N/A"},null,null,null,null,0]
[null,{"$error":"#N/A"},null,{"$error":"#N/A"},null,null,null,null,0]
[null,{"$error":"#N/A"},null,{"$f":"VLOOKUP($A487,Members,VLOOKUP(C487,Events,2,FALSE),FALSE)","v":{"$error":"#N/A"}},null,null,null,null,0]
[null,{"$error":"#N/A"},null,{"$error":"#N/A"},null,null,null,null,0]
[null,{"$error":"#N/A"},null,{"$error":"#N/A"},null,null,null,null,0]
[null,{"$error":"#N/A"},null,{"$error":"#N/A"},null,null,null,null,0]
[null,{"$error":"#N/A"},null,{"$error":"#N/A"},null,null,null,null,0]
[null,{"$error":"#N/A"},null,{"$error":"#N/A"},null,null,null,null,0]
[null,{"$error":"#N/A"},null,{"$error":"#N/A"},null,null,null,null,0]
[null,{"$error":"#N/A"},null,{"$error":"#N/A"},null,null,null,null,0]
[null,{"$error":"#N/A"},null,{"$error":"#N/A"},null,null,null,null,0]
[null,{"$error":"#N/A"},null,{"$error":"#N/A"},null,null,null,null,0]
[null,{"$error":"#N/A"},null,{"$error":"#N/A"},null,null,null,null,0]
[null,{"$error":"#N/A"},null,{"$error":"#N/A"},null,null,null,null,0]
[null,{"$error":"#N/A"},null,{"$error":"#N/A"},null,null,null,null,0]
[null,{"$error":"#N/A"},null,{"$error":"#N/A"},null,null,null,null,0]
[null,{"$error":"#N/A"},null,{"$error":"#N/A"},null,null,null,null,0]
[null,{"$error":"#N/A"},null,{"$error":"#N/A"},null,null,null,null,0]
[null,{"$error":"#N/A"},null,{"$error":"#N/A"},null,null,null,null,0]
[null,{"$error":"#N/A"},null,{"$error":"#N/A"},null,null,null,null,0]
[null,{"$error":"#N/A"},null,{"$error":"#N/A"},null,null,null,null,0]
[null,{"$error":"#N/A"},null,{"$error":"#N/A"},null,null,null,null,0]
[null,{"$error":"#N/A"},null,{"$error":"#N/A"},null,null,null,null,0]
[null,{"$error":"#N/A"},null,{"$error":"#N/A"},null,null,null,null,0]
[null,{"$error":"#N/A"},null,{"$error":"#N/A"},null,null,null,null,0]
[null,{"$error":"#N/A"},null,{"$error":"#N/A"},null,null,null,null,0]
[null,{"$error":"#N/A"},null,{"$error":"#N/A"},null,null,null,null,0]
[null,{"$error":"#N/A"},null,{"$error":"#N/A"},null,null,null,null,0]
[null,{"$error":"#N/A"},null,{"$error":"#N/A"},null,null,null,null,0]
[null,{"$error":"#N/A"},null,{"$error":"#N/A"},null,null,null,null,0]
[null,{"$error":"#N/A"},null,{"$error":"#N/A"},null,null,null,null,0]
[null,{"$error":"#N/A"},null,{"$error":"#N/A"},null,null,null,null,0]
[null,{"$f":"VLOOKUP($A517,Members,2,FALSE)","v":{"$error":"#N/A"}},null,{"$error":"#N/A"},null,null,null,null,{"$f":"SUM(E517:H517)","v":0}]
[null,{"$error":"#N/A"},null,{"$error":"#N/A"},null,null,null,null,0]
[null,{"$error":"#N/A"},null,{"$error":"#N/A"},null,null,null,null,0]
[null,{"$error":"#N/A"},null,{"$error":"#N/A"},null,null,null,null,0]
[null,{"$error":"#N/A"},null,{"$error":"#N/A"},null,null,null,null,0]
[null,{"$error":"#N/A"},null,{"$error":"#N/A"},null,null,null,null,0]
[null,{"$error":"#N/A"},null,{"$error":"#N/A"},null,null,null,null,0]
[null,{"$error":"#N/A"},null,{"$error":"#N/A"},null,null,null,null,0]
[null,{"$error":"#N/A"},null,{"$error":"#N/A"},null,null,null,null,0]
[null,{"$error":"#N/A"},null,{"$error":"#N/A"},null,null,null,null,0]
[null,{"$error":"#N/A"},null,{"$error":"#N/A"},null,null,null,null,0]
[null,{"$error":"#N/A"},null,{"$error":"#N/A"},null,null,null,null,0]
[null,{"$error":"#N/A"},null,{"$error":"#N/A"},null,null,null,null,0]
[null,{"$error":"#N/A"},null,{"$error":"#N/A"},null,null,null,null,0]
[null,{"$error":"#N/A"},null,{"$error":"#N/A"},null,null,null,null,0]
[null,{"$error":"#N/A"},null,{"$error":"#N/A"},null,null,null,null,0]
[null,{"$error":"#N/A"},null,{"$error":"#N/A"},null,null,null,null,0]
[null,{"$error":"#N/A"},null,{"$error":"#N/A"},null,null,null,null,0]
[null,{"$error":"#N/A"},null,{"$error":"#N/A"},null,null,null,null,0]
[null,{"$error":"#N/A"},null,{"$error":"#N/A"},null,null,null,null,0]
[null,{"$error":"#N/A"},null,{"$error":"#N/A"},null,null,null,null,0]
[null,{"$error":"#N/A"},null,{"$error":"#N/A"},null,null,null,null,0]
[null,{"$error":"#N/A"},null,{"$error":"#N/A"},null,null,null,null,0]
[null,{"$error":"#N/A"},null,{"$error":"#N/A"},null,null,null,null,0]
[null,{"$error":"#N/A"},null,{"$error":"#N/A"},null,null,null,null,0]
[null,{"$error":"#N/A"},null,{"$error":"#N/A"},null,null,null,null,0]
[null,{"$error":"#N/A"},null,{"$error":"#N/A"},null,null,null,null,0]
[null,{"$error":"#N/A"},null,{"$error":"#N/A"},null,null,null,null,0]
[null,{"$error":"#N/A"},null,{"$error":"#N/A"},null,null,null,null,0]
[null,{"$error":"#N/A"},null,{"$error":"#N/A"},null,null,null,null,0]
[null,{"$error":"#N/A"},null,{"$error":"#N/A"},null,null,null,null,0]
[null,{"$error":"#N/A"},null,{"$error":"#N/A"},null,null,null,null,0]
[null,{"$error":"#N/A"},null,{"$error":"#N/A"},null,null,null,null,0]
[null,{"$error":"#N/A"},null,{"$error":"#N/A"},null,null,null,null,0]
[null,{"$error":"#N/A"},null,{"$f":"VLOOKUP($A551,Members,VLOOKUP(C551,Events,2,FALSE),FALSE)","v":{"$error":"#N/A"}},null,null,null,null,0]
[null,{"$error":"#N/A"},null,{"$error":"#N/A"},null,null,null,null,0]
[null,{"$error":"#N/A"},null,{"$error":"#N/A"},null,null,null,null,0]
[null,{"$error":"#N/A"},null,{"$error":"#N/A"},null,null,null,null,0]
[null,{"$error":"#N/A"},null,{"$error":"#N/A"},null,null,null,null,0]
[null,{"$error":"#N/A"},null,{"$error":"#N/A"},null,null,null,null,0]
[null,{"$error":"#N/A"},null,{"$error":"#N/A"},null,null,null,null,0]
[null,{"$error":"#N/A"},null,{"$error":"#N/A"},null,null,null,null,0]
[null,{"$error":"#N/A"},null,{"$error":"#N/A"},null,null,null,null,0]
[null,{"$error":"#N/A"},null,{"$error":"#N/A"},null,null,null,null,0]
[null,{"$error":"#N/A"},null,{"$error":"#N/A"},null,null,null,null,0]
[null,{"$error":"#N/A"},null,{"$error":"#N/A"},null,null,null,null,0]
[null,{"$error":"#N/A"},null,{"$error":"#N/A"},null,null,null,null,0]
[null,{"$error":"#N/A"},null,{"$error":"#N/A"},null,null,null,null,0]
[null,{"$error":"#N/A"},null,{"$error":"#N/A"},null,null,null,null,0]
[null,{"$error":"#N/A"},null,{"$error":"#N/A"},null,null,null,null,0]
[null,{"$error":"#N/A"},null,{"$error":"#N/A"},null,null,null,null,0]
[null,{"$error":"#N/A"},null,{"$error":"#N/A"},null,null,null,null,0]
[null,{"$error":"#N/A"},null,{"$error":"#N/A"},null,null,null,null,0]
[null,{"$error":"#N/A"},null,{"$error":"#N/A"},null,null,null,null,0]
[null,{"$error":"#N/A"},null,{"$error":"#N/A"},null,null,null,null,0]
[null,{"$error":"#N/A"},null,{"$error":"#N/A"},null,null,null,null,0]
[null,{"$error":"#N/A"},null,{"$error":"#N/A"},null,null,null,null,0]
[null,{"$error":"#N/A"},null,{"$error":"#N/A"},null,null,null,null,0]
[null,{"$error":"#N/A"},null,{"$error":"#N/A"},null,null,null,null,0]
[null,{"$error":"#N/A"},null,{"$error":"#N/A"},null,null,null,null,0]
[null,{"$error":"#N/A"},null,{"$error":"#N/A"},null,null,null,null,0]
[null,{"$error":"#N/A"},null,{"$error":"#N/A"},null,null,null,null,0]
[null,{"$error":"#N/A"},null,{"$error":"#N/A"},null,null,null,null,0]
[null,{"$error":"#N/A"},null,{"$error":"#N/A"},null,null,null,null,0]
[null,{"$f":"VLOOKUP($A581,Members,2,FALSE)","v":{"$error":"#N/A"}},null,{"$error":"#N/A"},null,null,null,null,{"$f":"SUM(E581:H581)","v":0}]
[null,{"$error":"#N/A"},null,{"$error":"#N/A"},null,null,null,null,0]
[null,{"$error":"#N/A"},null,{"$error":"#N/A"},null,null,null,null,0]
[null,{"$error":"#N/A"},null,{"$error":"#N/A"},null,null,null,null,0]
[null,{"$error":"#N/A"},null,{"$error":"#N/A"},null,null,null,null,0]
[null,{"$error":"#N/A"},null,{"$error":"#N/A"},null,null,null,null,0]
[null,{"$error":"#N/A"},null,{"$error":"#N/A"},null,null,null,null,0]
[null,{"$error":"#N/A"},null,{"$error":"#N/A"},null,null,null,null,0]
[null,{"$error":"#N/A"},null,{"$error":"#N/A"},null,null,null,null,0]
[null,{"$error":"#N/A"},null,{"$error":"#N/A"},null,null,null,null,0]
[null,{"$error":"#N/A"},null,{"$error":"#N/A"},null,null,null,null,0]
[null,{"$error":"#N/A"},null,{"$error":"#N/A"},null,null,null,null,0]
[null,{"$error":"#N/A"},null,{"$error":"#N/A"},null,null,null,null,0]
[null,{"$error":"#N/A"},null,{"$error":"#N/A"},null,null,null,null,0]

{"sheet":"Members","index":1,"n_rows":32,"n_cols":29,"rows_kept":32,"cut":false,"hidden":false,"merged":[[0,0,0,1],[1,0,1,19]]}
["HMS Members",null,null,null,null,null,null,"Leg Up",null,"UC","Unclassified"]
["Note: Add new members to this table with their respective classifications. Member not included here won't be found. PNZ or any unique number will work.",null,null,null,null,null,null,null,null,null,null,null,null,null,null,null,null,null,null,null,null,null,null,null,"Classification Range"]
["PNZ No.","Name","BBR","BBS","BBP","BBU","BBUS","BBUAS","BBUHS","BBUASHS","SBR","SBS","SBP","SBU","SBUS","SBUAS","SBUFS","SBUASFS","FPP","FPAS",null,"Event Category","UC","C","B","A","AA","AAA","INT"]
[9402,"Anderson G","INT","INT","INT","INT","INT","INT","INT","INT","INT","INT","INT","INT","INT","INT","INT","INT","INT","INT"]
["2129A","Batty B","C","UC","UC","UC","UC","UC","UC","UC","UC","AA","UC","UC","UC","AAA","UC","UC","AA","AA",null,"P, R, UFS, UHS","Unclassified","0 - 10","11 - 17","18 - 23","24 - 32","33 - 37","38 - 40"]
[17419,"Booth G","A","AAA","AAA","AAA","UC","UC","AA","UC","UC","AAA","AAA","AAA","AA","UC","AA","UC","AAA","AA"]
["4188A","Burrows G","UC","A","UC","UC","B","UC","UC","UC","UC","UC","UC","UC","UC","UC","UC","UC","B","UC",null,"Unlimited","Unclassified","0 - 17","18 - 24","25 - 29","30 - 36","37 - 39",40]
["5224A","Courtney S","UC","UC","UC","AAA","UC","UC","UC","UC","UC","A","AA","AA","UC","UC","A","AA","A","UC"]
["2039A","Dickson P","UC","UC","UC","UC","UC","UC","UC","UC","UC","AA","UC","UC","UC","UC","UC","UC","A","A",null,"UAS, UASHS, UASFS","Unclassified","N/A","N/A","N/A","0 - 36","37 - 39",40]
["2575A","Felton B","UC","UC","UC","UC","UC","A","UC","UC","UC","UC","UC","UC","UC","UC","UC","UC","UC","UC"]
[22,"Gwerder D","UC","UC","AA","AA","UC","AA","UC","UC","UC","UC","A","B","UC","UC","UC","UC","UC","UC",null,"FPP","Unclassified","N/A","0 - 7","8 - 15","16 - 22","23 - 29","30 - 40"]
[17,"Hall A","UC","UC","UC","UC","UC","UC","UC","UC","UC","UC","UC","UC","UC","UC","UC","UC","UC","UC"]
["3201A","Hart J","AA","B","AA","AA","UC","UC","B","UC","AA","A","AA","A","UC","UC","UC","UC","AA","B",null,"S","Unclassified","N/A","0 - 7","8 - 15","16 - 21","22 - 27","28 - 40"]
[25,"Hinricks C","UC","UC","UC","UC","UC","UC","UC","UC","UC","UC","UC","UC","UC","AAA","UC","UC","UC","UC"]
["8985A","Lewer D","AA","UC","AA","AA","A","AA","UC","AA","A","UC","AA","A","UC","AAA","UC","UC","UC","UC",null,"US, FPAS","Unclassified","N/A","0 - 14","15 - 21","22 - 29","30 - 35","36 - 40"]
[22852,"Mathieson D","UC","UC","UC","UC","UC","UC","UC","UC","UC","UC","UC","UC","UC","AAA","UC","UC","UC","UC"]
["2564A","Murphy P","UC","AAA","AAA","UC","A","INT","UC","AA","UC","UC","UC","UC","UC","UC","UC","UC","UC","UC"]
["5125A","Oulds R","UC","UC","INT","INT","AAA","INT","AAA","INT","UC","UC","UC","UC","UC","INT","UC","UC","UC","UC"]
[5216,"Pask G","UC","B","UC","AA","UC","UC","UC","UC","UC","UC","UC","UC","UC","AA","UC","UC","UC","B"]
["2542A","Payne P","UC","A","UC","UC","B","AA","UC","UC","UC","A","UC","UC","UC","AAA","UC","UC","AA","AA"]
["7743A","Powell B","UC","B","AA","A","UC","AA","UC","UC","UC","A","AA","B","UC","AA","UC","UC","A","B"]
[22877,"Rencher M","UC","UC","UC","UC","UC","UC","UC","UC","UC","UC","UC","UC","UC","UC","UC","UC","UC","UC"]
["4056A","Rounthwaite M","UC","UC","UC","UC","UC","UC","UC","UC","AAA","AA","AAA","AAA","UC","AAA","UC","UC","UC","UC"]
["3260A","Sanders E","AAA","AA","INT","INT","UC","INT","AAA","AAA","UC","AAA","UC","AAA","UC","UC","AA","UC","AAA","AAA"]
["7909A","Sinclair D","UC","UC","A","UC","UC","UC","UC","UC","UC","UC","UC","AAA","UC","UC","UC","UC","UC","UC"]
["3250A","Sinclair K","INT","INT","INT","INT","UC","UC","UC","UC","UC","UC","UC","UC","UC","UC","UC","UC","UC","UC"]
["2563A","Sloane P","UC","AA","AAA","AAA","UC","AAA","AA","AA","UC","UC","UC","AAA","UC","AAA","UC","AAA","UC","UC"]
[22855,"Talpos O","AAA","AA","AA","C","UC","UC","AA","AA","A","B","AA","AA","UC","UC","A","UC","UC","UC"]
[22861,"Templar H","UC","UC","UC","UC","UC","UC","UC","UC","UC","A","A","B","UC","AAA","UC","AA","UC","UC"]
["2580A","Templar I","UC","AAA","AAA","UC","UC","UC","UC","UC","UC","A","AAA","UC","AAA","UC","UC","UC","AAA","AAA"]
[7510,"Templeton M","UC","UC","INT","INT","UC","AAA","AAA","UC","AAA","AAA","AAA","AAA","UC","AAA","AAA","UC","UC","UC"]
["8997A","Wheeler L","UC","UC","UC","UC","UC","UC","UC","UC","A","UC","A","UC","UC","UC","UC","UC","UC","UC"]

{"sheet":"Events","index":2,"n_rows":19,"n_cols":9,"rows_kept":19,"cut":false,"hidden":false,"merged":[]}
["Events",null,"Description ","C","B","A","AA","AAA","INT"]
["BBR",3,"Big Bore Revolver","0-10","11-17","18-23","24-32","33-37","38-40"]
["BBS",4,"Big Bore Standing","N/A","0-7","8-15","16-21","22-27","28-40"]
["BBP",5,"Big Bore Production","0-10","11-17","18-23","24-32","33-37","38-40"]
["BBU",6,"Big Bore Unlimited","0-17","18-24","25-29","30-36","37-39",40]
["BBUS",7,"Big Bore Unlimited Standing","N/A","0-14","15-21","22-29","30-35","36-40"]
["BBUAS",8,"Big Bore Unlimited Any Sight","N/A","N/A","N/A","0-36","37-39",40]
["BBUHS",9,"Big Bore Unlimited Half Size","0-10","11-17","18-23","24-32","33-37","38-40"]
["BBUASHS",10,"Big Bore Unlimited Any Sight Half Size ","N/A","N/A","N/A","0-36","37-39",40]
["SBR",11,"Small Bore Revolver","0-10","11-17","18-23","24-32","33-37","38-40"]
["SBS",12,"Small Bore Standing","N/A","0-7","8-15","16-21","22-27","28-40"]
["SBP",13,"Small Bore Production ","0-10","11-17","18-23","24-32","33-37","38-40"]
["SBU",14,"Small Bore Unlimited","0-17","18-24","25-29","30-36","37-39",40]
["SBUS",15,"Small Bore Unlimited Standing","N/A","0-14","15-21","22-29","30-35","36-40"]
["SBUAS",16,"Small Bore Unlimited Any Sight","N/A","N/A","N/A","0-36","37-39",40]
["SBUFS",17,"Small Bore Unlimited Fifth Scale","0-10","11-17","18-23","24-32","33-37","38-40"]
["SBUASFS",18,"Small Bore Unlimited Any Sight Fifth Scale","N/A","N/A","N/A","0-36","37-39",40]
["FPP",19,"Field Pistol Production","N/A","0-7","8-15","16-22","23-29","30-40"]
["FPAS",20,"Field Pistol Any Sight","N/A","0-14","15-21","22-29","30-35","36-40"]

{"sheet":"Fees","index":3,"n_rows":50,"n_cols":8,"rows_kept":50,"cut":false,"hidden":false,"merged":[[0,2,0,5],[1,3,1,5],[1,7,1,8]]}
[null,null,"Handgun Metallic Silhouette"]
["Range:",{"$f":"Competition!B2","v":0},"Event:",{"$f":"Competition!D2","v":0},null,null,"Date:",{"$f":"Competition!H2","v":"00:00:00"}]
["Total Fee:",{"$f":"SUM(C5:C50)","v":0},"Total Events",{"$f":"SUM(D5:D50)","v":0}]
["PNZ No.","Name","Fees Paid","No. of Events",null,null,"Cost","No. of Events"]
[null,{"$f":"IF(ISNA(VLOOKUP($A5,Members,2,FALSE)),\"\",VLOOKUP($A5,Members,2,FALSE))","v":""},null,{"$f":"IF(ISNA(VLOOKUP(C5,$G$5:$H$22,2,FALSE)),\"\",VLOOKUP(C5,$G$5:$H$22,2,FALSE))","v":""},null,null,10,1]
[null,"",null,{"$f":"IF(ISNA(VLOOKUP(C6,$G$5:$H$22,2,FALSE)),\"\",VLOOKUP(C6,$G$5:$H$22,2,FALSE))","v":""},null,null,20,2]
[null,"",null,"",null,null,30,3]
[null,"",null,"",null,null,40,4]
[null,"",null,"",null,null,48,5]
[null,"",null,"",null,null,56,6]
[null,"",null,"",null,null,64,7]
[null,"",null,"",null,null,72,8]
[null,"",null,"",null,null,80,9]
[null,"",null,"",null,null,88,10]
[null,"",null,"",null,null,96,11]
[null,"",null,"",null,null,104,12]
[null,"",null,"",null,null,112,13]
[null,"",null,"",null,null,120,14]
[null,"",null,"",null,null,128,15]
[null,"",null,"",null,null,136,16]
[null,"",null,"",null,null,144,17]
[null,"",null,"",null,null,150,18]
[null,"",null,""]
[null,"",null,""]
[null,"",null,""]
[null,"",null,""]
[null,"",null,""]
[null,"",null,""]
[null,"",null,""]
[null,"",null,""]
[null,"",null,""]
[null,"",null,""]
[null,"",null,""]
[null,"",null,""]
[null,"",null,""]
[null,"",null,""]
[null,"",null,""]
[null,"",null,""]
[null,"",null,""]
[null,"",null,""]
[null,"",null,""]
[null,"",null,""]
[null,"",null,""]
[null,"",null,""]
[null,"",null,""]
[null,"",null,""]
[null,"",null,""]
[null,"",null,""]
[null,"",null,""]
[null,"",null,""]

{"sheet":"Scores","index":4,"n_rows":594,"n_cols":9,"rows_kept":594,"cut":false,"hidden":false,"merged":[[0,2,0,5],[1,3,1,5],[1,7,1,8],[2,0,2,8]]}
[null,null,"Handgun Metallic Silhouette"]
["Range:","Tokoroa","Competition:","Nationals 2018",null,null,"Date:","2018-11-01"]
[]
["PNZ No.","Name","Event","Class","C","P","T","R","Total"]
[null,{"$f":"VLOOKUP($A5,Members,2,FALSE)","v":{"$error":"#N/A"}},null,{"$f":"VLOOKUP($A5,Members,VLOOKUP(C5,Events,2,FALSE),FALSE)","v":{"$error":"#N/A"}},null,null,null,null,{"$f":"SUM(E5:H5)","v":0}]
[null,{"$error":"#N/A"},null,{"$error":"#N/A"},null,null,null,null,0]
[null,{"$error":"#N/A"},null,{"$error":"#N/A"},null,null,null,null,0]
[null,{"$error":"#N/A"},null,{"$error":"#N/A"},null,null,null,null,0]
[null,{"$error":"#N/A"},null,{"$error":"#N/A"},null,null,null,null,0]
[null,{"$error":"#N/A"},null,{"$error":"#N/A"},null,null,null,null,0]
[null,{"$error":"#N/A"},null,{"$error":"#N/A"},null,null,null,null,0]
[null,{"$error":"#N/A"},null,{"$error":"#N/A"},null,null,null,null,0]
[null,{"$error":"#N/A"},null,{"$error":"#N/A"},null,null,null,null,0]
[null,{"$error":"#N/A"},null,{"$error":"#N/A"},null,null,null,null,0]
[null,{"$error":"#N/A"},null,{"$error":"#N/A"},null,null,null,null,0]
[null,{"$error":"#N/A"},null,{"$error":"#N/A"},null,null,null,null,0]
[null,{"$error":"#N/A"},null,{"$error":"#N/A"},null,null,null,null,0]
[null,{"$error":"#N/A"},null,{"$error":"#N/A"},null,null,null,null,0]
[null,{"$error":"#N/A"},null,{"$error":"#N/A"},null,null,null,null,0]
[null,{"$error":"#N/A"},null,{"$error":"#N/A"},null,null,null,null,0]
[null,{"$error":"#N/A"},null,{"$error":"#N/A"},null,null,null,null,0]
[null,{"$error":"#N/A"},null,{"$error":"#N/A"},null,null,null,null,0]
[null,{"$error":"#N/A"},null,{"$error":"#N/A"},null,null,null,null,0]
[null,{"$error":"#N/A"},null,{"$error":"#N/A"},null,null,null,null,0]
[null,{"$error":"#N/A"},null,{"$error":"#N/A"},null,null,null,null,0]
[null,{"$error":"#N/A"},null,{"$error":"#N/A"},null,null,null,null,0]
[null,{"$error":"#N/A"},null,{"$error":"#N/A"},null,null,null,null,0]
[null,{"$error":"#N/A"},null,{"$error":"#N/A"},null,null,null,null,0]
[null,{"$error":"#N/A"},null,{"$error":"#N/A"},null,null,null,null,0]
[null,{"$error":"#N/A"},null,{"$error":"#N/A"},null,null,null,null,0]
[null,{"$error":"#N/A"},null,{"$error":"#N/A"},null,null,null,null,0]
[null,{"$error":"#N/A"},null,{"$error":"#N/A"},null,null,null,null,0]
[null,{"$error":"#N/A"},null,{"$error":"#N/A"},null,null,null,null,0]
[null,{"$error":"#N/A"},null,{"$error":"#N/A"},null,null,null,null,0]
[null,{"$error":"#N/A"},null,{"$error":"#N/A"},null,null,null,null,0]
[null,{"$error":"#N/A"},null,{"$error":"#N/A"},null,null,null,null,0]
[null,{"$error":"#N/A"},null,{"$error":"#N/A"},null,null,null,null,0]
[null,{"$error":"#N/A"},null,{"$error":"#N/A"},null,null,null,null,0]
[null,{"$error":"#N/A"},null,{"$error":"#N/A"},null,null,null,null,0]
[null,{"$error":"#N/A"},null,{"$error":"#N/A"},null,null,null,null,0]
[null,{"$error":"#N/A"},null,{"$error":"#N/A"},null,null,null,null,0]
[null,{"$error":"#N/A"},null,{"$error":"#N/A"},null,null,null,null,0]
[null,{"$error":"#N/A"},null,{"$error":"#N/A"},null,null,null,null,0]
[null,{"$error":"#N/A"},null,{"$error":"#N/A"},null,null,null,null,0]
[null,{"$error":"#N/A"},null,{"$error":"#N/A"},null,null,null,null,0]
[null,{"$error":"#N/A"},null,{"$error":"#N/A"},null,null,null,null,0]
[null,{"$error":"#N/A"},null,{"$error":"#N/A"},null,null,null,null,0]
[null,{"$error":"#N/A"},null,{"$error":"#N/A"},null,null,null,null,0]
[null,{"$error":"#N/A"},null,{"$error":"#N/A"},null,null,null,null,0]
[null,{"$error":"#N/A"},null,{"$error":"#N/A"},null,null,null,null,0]
[null,{"$error":"#N/A"},null,{"$error":"#N/A"},null,null,null,null,0]
[null,{"$error":"#N/A"},null,{"$error":"#N/A"},null,null,null,null,0]
[null,{"$error":"#N/A"},null,{"$error":"#N/A"},null,null,null,null,0]
[null,{"$error":"#N/A"},null,{"$error":"#N/A"},null,null,null,null,0]
[null,{"$error":"#N/A"},null,{"$error":"#N/A"},null,null,null,null,0]
[null,{"$error":"#N/A"},null,{"$error":"#N/A"},null,null,null,null,0]
[null,{"$error":"#N/A"},null,{"$error":"#N/A"},null,null,null,null,0]
[null,{"$error":"#N/A"},null,{"$error":"#N/A"},null,null,null,null,0]
[null,{"$error":"#N/A"},null,{"$error":"#N/A"},null,null,null,null,0]
[null,{"$error":"#N/A"},null,{"$error":"#N/A"},null,null,null,null,0]
[null,{"$error":"#N/A"},null,{"$error":"#N/A"},null,null,null,null,0]
[null,{"$error":"#N/A"},null,{"$error":"#N/A"},null,null,null,null,0]
[null,{"$error":"#N/A"},null,{"$error":"#N/A"},null,null,null,null,0]
[null,{"$error":"#N/A"},null,{"$error":"#N/A"},null,null,null,null,0]
[null,{"$error":"#N/A"},null,{"$error":"#N/A"},null,null,null,null,0]
[null,{"$error":"#N/A"},null,{"$error":"#N/A"},null,null,null,null,0]
[null,{"$error":"#N/A"},null,{"$error":"#N/A"},null,null,null,null,0]
[null,{"$error":"#N/A"},null,{"$error":"#N/A"},null,null,null,null,0]
[null,{"$f":"VLOOKUP($A69,Members,2,FALSE)","v":{"$error":"#N/A"}},null,{"$f":"VLOOKUP($A69,Members,VLOOKUP(C69,Events,2,FALSE),FALSE)","v":{"$error":"#N/A"}},null,null,null,null,{"$f":"SUM(E69:H69)","v":0}]
[null,{"$error":"#N/A"},null,{"$error":"#N/A"},null,null,null,null,0]
[null,{"$error":"#N/A"},null,{"$error":"#N/A"},null,null,null,null,0]
[null,{"$error":"#N/A"},null,{"$error":"#N/A"},null,null,null,null,0]
[null,{"$error":"#N/A"},null,{"$error":"#N/A"},null,null,null,null,0]
[null,{"$error":"#N/A"},null,{"$error":"#N/A"},null,null,null,null,0]
[null,{"$error":"#N/A"},null,{"$error":"#N/A"},null,null,null,null,0]
[null,{"$error":"#N/A"},null,{"$error":"#N/A"},null,null,null,null,0]
[null,{"$error":"#N/A"},null,{"$error":"#N/A"},null,null,null,null,0]
[null,{"$error":"#N/A"},null,{"$error":"#N/A"},null,null,null,null,0]
[null,{"$error":"#N/A"},null,{"$error":"#N/A"},null,null,null,null,0]
[null,{"$error":"#N/A"},null,{"$error":"#N/A"},null,null,null,null,0]
[null,{"$error":"#N/A"},null,{"$error":"#N/A"},null,null,null,null,0]
[null,{"$error":"#N/A"},null,{"$error":"#N/A"},null,null,null,null,0]
[null,{"$error":"#N/A"},null,{"$error":"#N/A"},null,null,null,null,0]
[null,{"$error":"#N/A"},null,{"$error":"#N/A"},null,null,null,null,0]
[null,{"$error":"#N/A"},null,{"$error":"#N/A"},null,null,null,null,0]
[null,{"$error":"#N/A"},null,{"$error":"#N/A"},null,null,null,null,0]
[null,{"$error":"#N/A"},null,{"$error":"#N/A"},null,null,null,null,0]
[null,{"$error":"#N/A"},null,{"$error":"#N/A"},null,null,null,null,0]
[null,{"$error":"#N/A"},null,{"$error":"#N/A"},null,null,null,null,0]
[null,{"$error":"#N/A"},null,{"$error":"#N/A"},null,null,null,null,0]
[null,{"$error":"#N/A"},null,{"$error":"#N/A"},null,null,null,null,0]
[null,{"$error":"#N/A"},null,{"$error":"#N/A"},null,null,null,null,0]
[null,{"$error":"#N/A"},null,{"$error":"#N/A"},null,null,null,null,0]
[null,{"$error":"#N/A"},null,{"$error":"#N/A"},null,null,null,null,0]
[null,{"$error":"#N/A"},null,{"$error":"#N/A"},null,null,null,null,0]
[null,{"$error":"#N/A"},null,{"$error":"#N/A"},null,null,null,null,0]
[null,{"$error":"#N/A"},null,{"$error":"#N/A"},null,null,null,null,0]
[null,{"$error":"#N/A"},null,{"$error":"#N/A"},null,null,null,null,0]
[null,{"$error":"#N/A"},null,{"$error":"#N/A"},null,null,null,null,0]
[null,{"$error":"#N/A"},null,{"$error":"#N/A"},null,null,null,null,0]
[null,{"$error":"#N/A"},null,{"$error":"#N/A"},null,null,null,null,0]
[null,{"$error":"#N/A"},null,{"$error":"#N/A"},null,null,null,null,0]
[null,{"$error":"#N/A"},null,{"$error":"#N/A"},null,null,null,null,0]
[null,{"$error":"#N/A"},null,{"$error":"#N/A"},null,null,null,null,0]
[null,{"$error":"#N/A"},null,{"$error":"#N/A"},null,null,null,null,0]
[null,{"$error":"#N/A"},null,{"$error":"#N/A"},null,null,null,null,0]
[null,{"$error":"#N/A"},null,{"$error":"#N/A"},null,null,null,null,0]
[null,{"$error":"#N/A"},null,{"$error":"#N/A"},null,null,null,null,0]
[null,{"$error":"#N/A"},null,{"$error":"#N/A"},null,null,null,null,0]
[null,{"$error":"#N/A"},null,{"$error":"#N/A"},null,null,null,null,0]
[null,{"$error":"#N/A"},null,{"$error":"#N/A"},null,null,null,null,0]
[null,{"$error":"#N/A"},null,{"$error":"#N/A"},null,null,null,null,0]
[null,{"$error":"#N/A"},null,{"$error":"#N/A"},null,null,null,null,0]
[null,{"$error":"#N/A"},null,{"$error":"#N/A"},null,null,null,null,0]
[null,{"$error":"#N/A"},null,{"$error":"#N/A"},null,null,null,null,0]
[null,{"$error":"#N/A"},null,{"$error":"#N/A"},null,null,null,null,0]
[null,{"$error":"#N/A"},null,{"$error":"#N/A"},null,null,null,null,0]
[null,{"$error":"#N/A"},null,{"$error":"#N/A"},null,null,null,null,0]
[null,{"$error":"#N/A"},null,{"$error":"#N/A"},null,null,null,null,0]
[null,{"$error":"#N/A"},null,{"$error":"#N/A"},null,null,null,null,0]
[null,{"$error":"#N/A"},null,{"$error":"#N/A"},null,null,null,null,0]
[null,{"$error":"#N/A"},null,{"$error":"#N/A"},null,null,null,null,0]
[null,{"$error":"#N/A"},null,{"$error":"#N/A"},null,null,null,null,0]
[null,{"$error":"#N/A"},null,{"$error":"#N/A"},null,null,null,null,0]
[null,{"$error":"#N/A"},null,{"$error":"#N/A"},null,null,null,null,0]
[null,{"$error":"#N/A"},null,{"$error":"#N/A"},null,null,null,null,0]
[null,{"$error":"#N/A"},null,{"$error":"#N/A"},null,null,null,null,0]
[null,{"$error":"#N/A"},null,{"$error":"#N/A"},null,null,null,null,0]
[null,{"$error":"#N/A"},null,{"$error":"#N/A"},null,null,null,null,0]
[null,{"$error":"#N/A"},null,{"$error":"#N/A"},null,null,null,null,0]
[null,{"$error":"#N/A"},null,{"$error":"#N/A"},null,null,null,null,0]
[null,{"$error":"#N/A"},null,{"$error":"#N/A"},null,null,null,null,0]
[null,{"$f":"VLOOKUP($A133,Members,2,FALSE)","v":{"$error":"#N/A"}},null,{"$f":"VLOOKUP($A133,Members,VLOOKUP(C133,Events,2,FALSE),FALSE)","v":{"$error":"#N/A"}},null,null,null,null,{"$f":"SUM(E133:H133)","v":0}]
[null,{"$error":"#N/A"},null,{"$error":"#N/A"},null,null,null,null,0]
[null,{"$error":"#N/A"},null,{"$error":"#N/A"},null,null,null,null,0]
[null,{"$error":"#N/A"},null,{"$error":"#N/A"},null,null,null,null,0]
[null,{"$error":"#N/A"},null,{"$error":"#N/A"},null,null,null,null,0]
[null,{"$error":"#N/A"},null,{"$error":"#N/A"},null,null,null,null,0]
[null,{"$error":"#N/A"},null,{"$error":"#N/A"},null,null,null,null,0]
[null,{"$error":"#N/A"},null,{"$error":"#N/A"},null,null,null,null,0]
[null,{"$error":"#N/A"},null,{"$error":"#N/A"},null,null,null,null,0]
[null,{"$error":"#N/A"},null,{"$error":"#N/A"},null,null,null,null,0]
[null,{"$error":"#N/A"},null,{"$error":"#N/A"},null,null,null,null,0]
[null,{"$error":"#N/A"},null,{"$error":"#N/A"},null,null,null,null,0]
[null,{"$error":"#N/A"},null,{"$error":"#N/A"},null,null,null,null,0]
[null,{"$error":"#N/A"},null,{"$error":"#N/A"},null,null,null,null,0]
[null,{"$error":"#N/A"},null,{"$error":"#N/A"},null,null,null,null,0]
[null,{"$error":"#N/A"},null,{"$error":"#N/A"},null,null,null,null,0]
[null,{"$error":"#N/A"},null,{"$error":"#N/A"},null,null,null,null,0]
[null,{"$error":"#N/A"},null,{"$error":"#N/A"},null,null,null,null,0]
[null,{"$error":"#N/A"},null,{"$error":"#N/A"},null,null,null,null,0]
[null,{"$error":"#N/A"},null,{"$error":"#N/A"},null,null,null,null,0]
[null,{"$error":"#N/A"},null,{"$error":"#N/A"},null,null,null,null,0]
[null,{"$error":"#N/A"},null,{"$error":"#N/A"},null,null,null,null,0]
[null,{"$error":"#N/A"},null,{"$error":"#N/A"},null,null,null,null,0]
[null,{"$error":"#N/A"},null,{"$error":"#N/A"},null,null,null,null,0]
[null,{"$error":"#N/A"},null,{"$error":"#N/A"},null,null,null,null,0]
[null,{"$error":"#N/A"},null,{"$error":"#N/A"},null,null,null,null,0]
[null,{"$error":"#N/A"},null,{"$error":"#N/A"},null,null,null,null,0]
[null,{"$error":"#N/A"},null,{"$error":"#N/A"},null,null,null,null,0]
[null,{"$error":"#N/A"},null,{"$error":"#N/A"},null,null,null,null,0]
[null,{"$error":"#N/A"},null,{"$error":"#N/A"},null,null,null,null,0]
[null,{"$error":"#N/A"},null,{"$error":"#N/A"},null,null,null,null,0]
[null,{"$error":"#N/A"},null,{"$error":"#N/A"},null,null,null,null,0]
[null,{"$error":"#N/A"},null,{"$error":"#N/A"},null,null,null,null,0]
[null,{"$error":"#N/A"},null,{"$error":"#N/A"},null,null,null,null,0]
[null,{"$error":"#N/A"},null,{"$error":"#N/A"},null,null,null,null,0]
[null,{"$error":"#N/A"},null,{"$error":"#N/A"},null,null,null,null,0]
[null,{"$error":"#N/A"},null,{"$error":"#N/A"},null,null,null,null,0]
[null,{"$error":"#N/A"},null,{"$error":"#N/A"},null,null,null,null,0]
[null,{"$error":"#N/A"},null,{"$error":"#N/A"},null,null,null,null,0]
[null,{"$error":"#N/A"},null,{"$error":"#N/A"},null,null,null,null,0]
[null,{"$error":"#N/A"},null,{"$error":"#N/A"},null,null,null,null,0]
[null,{"$error":"#N/A"},null,{"$error":"#N/A"},null,null,null,null,0]
[null,{"$error":"#N/A"},null,{"$error":"#N/A"},null,null,null,null,0]
[null,{"$error":"#N/A"},null,{"$error":"#N/A"},null,null,null,null,0]
[null,{"$error":"#N/A"},null,{"$error":"#N/A"},null,null,null,null,0]
[null,{"$error":"#N/A"},null,{"$error":"#N/A"},null,null,null,null,0]
[null,{"$error":"#N/A"},null,{"$error":"#N/A"},null,null,null,null,0]
[null,{"$error":"#N/A"},null,{"$error":"#N/A"},null,null,null,null,0]
[null,{"$error":"#N/A"},null,{"$error":"#N/A"},null,null,null,null,0]
[null,{"$error":"#N/A"},null,{"$error":"#N/A"},null,null,null,null,0]
[null,{"$error":"#N/A"},null,{"$error":"#N/A"},null,null,null,null,0]
[null,{"$error":"#N/A"},null,{"$error":"#N/A"},null,null,null,null,0]
[null,{"$error":"#N/A"},null,{"$error":"#N/A"},null,null,null,null,0]
[null,{"$error":"#N/A"},null,{"$error":"#N/A"},null,null,null,null,0]
[null,{"$error":"#N/A"},null,{"$error":"#N/A"},null,null,null,null,0]
[null,{"$error":"#N/A"},null,{"$error":"#N/A"},null,null,null,null,0]
[null,{"$error":"#N/A"},null,{"$error":"#N/A"},null,null,null,null,0]
[null,{"$error":"#N/A"},null,{"$error":"#N/A"},null,null,null,null,0]
[null,{"$error":"#N/A"},null,{"$error":"#N/A"},null,null,null,null,0]
[null,{"$error":"#N/A"},null,{"$error":"#N/A"},null,null,null,null,0]
[null,{"$error":"#N/A"},null,{"$error":"#N/A"},null,null,null,null,0]
[null,{"$error":"#N/A"},null,{"$error":"#N/A"},null,null,null,null,0]
[null,{"$error":"#N/A"},null,{"$error":"#N/A"},null,null,null,null,0]
[null,{"$error":"#N/A"},null,{"$error":"#N/A"},null,null,null,null,0]
[null,{"$f":"VLOOKUP($A197,Members,2,FALSE)","v":{"$error":"#N/A"}},null,{"$f":"VLOOKUP($A197,Members,VLOOKUP(C197,Events,2,FALSE),FALSE)","v":{"$error":"#N/A"}},null,null,null,null,{"$f":"SUM(E197:H197)","v":0}]
[null,{"$error":"#N/A"},null,{"$error":"#N/A"},null,null,null,null,0]
[null,{"$error":"#N/A"},null,{"$error":"#N/A"},null,null,null,null,0]
[null,{"$error":"#N/A"},null,{"$error":"#N/A"},null,null,null,null,0]
[null,{"$error":"#N/A"},null,{"$error":"#N/A"},null,null,null,null,0]
[null,{"$error":"#N/A"},null,{"$error":"#N/A"},null,null,null,null,0]
[null,{"$error":"#N/A"},null,{"$error":"#N/A"},null,null,null,null,0]
[null,{"$error":"#N/A"},null,{"$error":"#N/A"},null,null,null,null,0]
[null,{"$error":"#N/A"},null,{"$error":"#N/A"},null,null,null,null,0]
[null,{"$error":"#N/A"},null,{"$error":"#N/A"},null,null,null,null,0]
[null,{"$error":"#N/A"},null,{"$error":"#N/A"},null,null,null,null,0]
[null,{"$error":"#N/A"},null,{"$error":"#N/A"},null,null,null,null,0]
[null,{"$error":"#N/A"},null,{"$error":"#N/A"},null,null,null,null,0]
[null,{"$error":"#N/A"},null,{"$error":"#N/A"},null,null,null,null,0]
[null,{"$error":"#N/A"},null,{"$error":"#N/A"},null,null,null,null,0]
[null,{"$error":"#N/A"},null,{"$error":"#N/A"},null,null,null,null,0]
[null,{"$error":"#N/A"},null,{"$error":"#N/A"},null,null,null,null,0]
[null,{"$error":"#N/A"},null,{"$error":"#N/A"},null,null,null,null,0]
[null,{"$error":"#N/A"},null,{"$error":"#N/A"},null,null,null,null,0]
[null,{"$error":"#N/A"},null,{"$error":"#N/A"},null,null,null,null,0]
[null,{"$error":"#N/A"},null,{"$error":"#N/A"},null,null,null,null,0]
[null,{"$error":"#N/A"},null,{"$error":"#N/A"},null,null,null,null,0]
[null,{"$error":"#N/A"},null,{"$error":"#N/A"},null,null,null,null,0]
[null,{"$error":"#N/A"},null,{"$error":"#N/A"},null,null,null,null,0]
[null,{"$error":"#N/A"},null,{"$error":"#N/A"},null,null,null,null,0]
[null,{"$error":"#N/A"},null,{"$error":"#N/A"},null,null,null,null,0]
[null,{"$error":"#N/A"},null,{"$error":"#N/A"},null,null,null,null,0]
[null,{"$error":"#N/A"},null,{"$error":"#N/A"},null,null,null,null,0]
[null,{"$error":"#N/A"},null,{"$error":"#N/A"},null,null,null,null,0]
[null,{"$error":"#N/A"},null,{"$error":"#N/A"},null,null,null,null,0]
[null,{"$error":"#N/A"},null,{"$error":"#N/A"},null,null,null,null,0]
[null,{"$error":"#N/A"},null,{"$error":"#N/A"},null,null,null,null,0]
[null,{"$error":"#N/A"},null,{"$error":"#N/A"},null,null,null,null,0]
[null,{"$error":"#N/A"},null,{"$error":"#N/A"},null,null,null,null,0]
[null,{"$error":"#N/A"},null,{"$error":"#N/A"},null,null,null,null,0]
[null,{"$error":"#N/A"},null,{"$error":"#N/A"},null,null,null,null,0]
[null,{"$error":"#N/A"},null,{"$error":"#N/A"},null,null,null,null,0]
[null,{"$error":"#N/A"},null,{"$error":"#N/A"},null,null,null,null,0]
[null,{"$error":"#N/A"},null,{"$error":"#N/A"},null,null,null,null,0]
[null,{"$error":"#N/A"},null,{"$error":"#N/A"},null,null,null,null,0]
[null,{"$error":"#N/A"},null,{"$error":"#N/A"},null,null,null,null,0]
[null,{"$error":"#N/A"},null,{"$error":"#N/A"},null,null,null,null,0]
[null,{"$error":"#N/A"},null,{"$error":"#N/A"},null,null,null,null,0]
[null,{"$error":"#N/A"},null,{"$error":"#N/A"},null,null,null,null,0]
[null,{"$error":"#N/A"},null,{"$error":"#N/A"},null,null,null,null,0]
[null,{"$error":"#N/A"},null,{"$error":"#N/A"},null,null,null,null,0]
[null,{"$error":"#N/A"},null,{"$error":"#N/A"},null,null,null,null,0]
[null,{"$error":"#N/A"},null,{"$error":"#N/A"},null,null,null,null,0]
[null,{"$error":"#N/A"},null,{"$error":"#N/A"},null,null,null,null,0]
[null,{"$error":"#N/A"},null,{"$error":"#N/A"},null,null,null,null,0]
[null,{"$error":"#N/A"},null,{"$error":"#N/A"},null,null,null,null,0]
[null,{"$error":"#N/A"},null,{"$error":"#N/A"},null,null,null,null,0]
[null,{"$error":"#N/A"},null,{"$error":"#N/A"},null,null,null,null,0]
[null,{"$error":"#N/A"},null,{"$error":"#N/A"},null,null,null,null,0]
[null,{"$error":"#N/A"},null,{"$error":"#N/A"},null,null,null,null,0]
[null,{"$error":"#N/A"},null,{"$error":"#N/A"},null,null,null,null,0]
[null,{"$error":"#N/A"},null,{"$error":"#N/A"},null,null,null,null,0]
[null,{"$error":"#N/A"},null,{"$error":"#N/A"},null,null,null,null,0]
[null,{"$error":"#N/A"},null,{"$error":"#N/A"},null,null,null,null,0]
[null,{"$error":"#N/A"},null,{"$error":"#N/A"},null,null,null,null,0]
[null,{"$error":"#N/A"},null,{"$error":"#N/A"},null,null,null,null,0]
[null,{"$error":"#N/A"},null,{"$error":"#N/A"},null,null,null,null,0]
[null,{"$error":"#N/A"},null,{"$error":"#N/A"},null,null,null,null,0]
[null,{"$error":"#N/A"},null,{"$error":"#N/A"},null,null,null,null,0]
[null,{"$f":"VLOOKUP($A261,Members,2,FALSE)","v":{"$error":"#N/A"}},null,{"$f":"VLOOKUP($A261,Members,VLOOKUP(C261,Events,2,FALSE),FALSE)","v":{"$error":"#N/A"}},null,null,null,null,{"$f":"SUM(E261:H261)","v":0}]
[null,{"$error":"#N/A"},null,{"$error":"#N/A"},null,null,null,null,0]
[null,{"$error":"#N/A"},null,{"$error":"#N/A"},null,null,null,null,0]
[null,{"$error":"#N/A"},null,{"$error":"#N/A"},null,null,null,null,0]
[null,{"$error":"#N/A"},null,{"$error":"#N/A"},null,null,null,null,0]
[null,{"$error":"#N/A"},null,{"$error":"#N/A"},null,null,null,null,0]
[null,{"$error":"#N/A"},null,{"$error":"#N/A"},null,null,null,null,0]
[null,{"$error":"#N/A"},null,{"$error":"#N/A"},null,null,null,null,0]
[null,{"$error":"#N/A"},null,{"$error":"#N/A"},null,null,null,null,0]
[null,{"$error":"#N/A"},null,{"$error":"#N/A"},null,null,null,null,0]
[null,{"$error":"#N/A"},null,{"$error":"#N/A"},null,null,null,null,0]
[null,{"$error":"#N/A"},null,{"$error":"#N/A"},null,null,null,null,0]
[null,{"$error":"#N/A"},null,{"$error":"#N/A"},null,null,null,null,0]
[null,{"$error":"#N/A"},null,{"$error":"#N/A"},null,null,null,null,0]
[null,{"$error":"#N/A"},null,{"$error":"#N/A"},null,null,null,null,0]
[null,{"$error":"#N/A"},null,{"$error":"#N/A"},null,null,null,null,0]
[null,{"$error":"#N/A"},null,{"$error":"#N/A"},null,null,null,null,0]
[null,{"$error":"#N/A"},null,{"$error":"#N/A"},null,null,null,null,0]
[null,{"$error":"#N/A"},null,{"$error":"#N/A"},null,null,null,null,0]
[null,{"$error":"#N/A"},null,{"$error":"#N/A"},null,null,null,null,0]
[null,{"$error":"#N/A"},null,{"$error":"#N/A"},null,null,null,null,0]
[null,{"$error":"#N/A"},null,{"$error":"#N/A"},null,null,null,null,0]
[null,{"$error":"#N/A"},null,{"$error":"#N/A"},null,null,null,null,0]
[null,{"$error":"#N/A"},null,{"$error":"#N/A"},null,null,null,null,0]
[null,{"$error":"#N/A"},null,{"$error":"#N/A"},null,null,null,null,0]
[null,{"$error":"#N/A"},null,{"$error":"#N/A"},null,null,null,null,0]
[null,{"$error":"#N/A"},null,{"$error":"#N/A"},null,null,null,null,0]
[null,{"$error":"#N/A"},null,{"$error":"#N/A"},null,null,null,null,0]
[null,{"$error":"#N/A"},null,{"$error":"#N/A"},null,null,null,null,0]
[null,{"$error":"#N/A"},null,{"$error":"#N/A"},null,null,null,null,0]
[null,{"$error":"#N/A"},null,{"$error":"#N/A"},null,null,null,null,0]
[null,{"$error":"#N/A"},null,{"$error":"#N/A"},null,null,null,null,0]
[null,{"$error":"#N/A"},null,{"$error":"#N/A"},null,null,null,null,0]
[null,{"$error":"#N/A"},null,{"$error":"#N/A"},null,null,null,null,0]
[null,{"$error":"#N/A"},null,{"$error":"#N/A"},null,null,null,null,0]
[null,{"$error":"#N/A"},null,{"$error":"#N/A"},null,null,null,null,0]
[null,{"$error":"#N/A"},null,{"$error":"#N/A"},null,null,null,null,0]
[null,{"$error":"#N/A"},null,{"$error":"#N/A"},null,null,null,null,0]
[null,{"$error":"#N/A"},null,{"$error":"#N/A"},null,null,null,null,0]
[null,{"$error":"#N/A"},null,{"$error":"#N/A"},null,null,null,null,0]
[null,{"$error":"#N/A"},null,{"$error":"#N/A"},null,null,null,null,0]
[null,{"$error":"#N/A"},null,{"$error":"#N/A"},null,null,null,null,0]
[null,{"$error":"#N/A"},null,{"$error":"#N/A"},null,null,null,null,0]
[null,{"$error":"#N/A"},null,{"$error":"#N/A"},null,null,null,null,0]
[null,{"$error":"#N/A"},null,{"$error":"#N/A"},null,null,null,null,0]
[null,{"$error":"#N/A"},null,{"$error":"#N/A"},null,null,null,null,0]
[null,{"$error":"#N/A"},null,{"$error":"#N/A"},null,null,null,null,0]
[null,{"$error":"#N/A"},null,{"$error":"#N/A"},null,null,null,null,0]
[null,{"$error":"#N/A"},null,{"$error":"#N/A"},null,null,null,null,0]
[null,{"$error":"#N/A"},null,{"$error":"#N/A"},null,null,null,null,0]
[null,{"$error":"#N/A"},null,{"$error":"#N/A"},null,null,null,null,0]
[null,{"$error":"#N/A"},null,{"$error":"#N/A"},null,null,null,null,0]
[null,{"$error":"#N/A"},null,{"$error":"#N/A"},null,null,null,null,0]
[null,{"$error":"#N/A"},null,{"$error":"#N/A"},null,null,null,null,0]
[null,{"$error":"#N/A"},null,{"$error":"#N/A"},null,null,null,null,0]
[null,{"$error":"#N/A"},null,{"$error":"#N/A"},null,null,null,null,0]
[null,{"$error":"#N/A"},null,{"$error":"#N/A"},null,null,null,null,0]
[null,{"$error":"#N/A"},null,{"$error":"#N/A"},null,null,null,null,0]
[null,{"$error":"#N/A"},null,{"$error":"#N/A"},null,null,null,null,0]
[null,{"$error":"#N/A"},null,{"$error":"#N/A"},null,null,null,null,0]
[null,{"$error":"#N/A"},null,{"$error":"#N/A"},null,null,null,null,0]
[null,{"$error":"#N/A"},null,{"$error":"#N/A"},null,null,null,null,0]
[null,{"$error":"#N/A"},null,{"$error":"#N/A"},null,null,null,null,0]
[null,{"$error":"#N/A"},null,{"$error":"#N/A"},null,null,null,null,0]
[null,{"$f":"VLOOKUP($A325,Members,2,FALSE)","v":{"$error":"#N/A"}},null,{"$f":"VLOOKUP($A325,Members,VLOOKUP(C325,Events,2,FALSE),FALSE)","v":{"$error":"#N/A"}},null,null,null,null,{"$f":"SUM(E325:H325)","v":0}]
[null,{"$error":"#N/A"},null,{"$error":"#N/A"},null,null,null,null,0]
[null,{"$error":"#N/A"},null,{"$error":"#N/A"},null,null,null,null,0]
[null,{"$error":"#N/A"},null,{"$error":"#N/A"},null,null,null,null,0]
[null,{"$error":"#N/A"},null,{"$error":"#N/A"},null,null,null,null,0]
[null,{"$error":"#N/A"},null,{"$error":"#N/A"},null,null,null,null,0]
[null,{"$error":"#N/A"},null,{"$error":"#N/A"},null,null,null,null,0]
[null,{"$error":"#N/A"},null,{"$error":"#N/A"},null,null,null,null,0]
[null,{"$error":"#N/A"},null,{"$error":"#N/A"},null,null,null,null,0]
[null,{"$error":"#N/A"},null,{"$error":"#N/A"},null,null,null,null,0]
[null,{"$error":"#N/A"},null,{"$error":"#N/A"},null,null,null,null,0]
[null,{"$error":"#N/A"},null,{"$error":"#N/A"},null,null,null,null,0]
[null,{"$error":"#N/A"},null,{"$error":"#N/A"},null,null,null,null,0]
[null,{"$error":"#N/A"},null,{"$error":"#N/A"},null,null,null,null,0]
[null,{"$error":"#N/A"},null,{"$error":"#N/A"},null,null,null,null,0]
[null,{"$error":"#N/A"},null,{"$error":"#N/A"},null,null,null,null,0]
[null,{"$error":"#N/A"},null,{"$error":"#N/A"},null,null,null,null,0]
[null,{"$error":"#N/A"},null,{"$error":"#N/A"},null,null,null,null,0]
[null,{"$error":"#N/A"},null,{"$error":"#N/A"},null,null,null,null,0]
[null,{"$error":"#N/A"},null,{"$error":"#N/A"},null,null,null,null,0]
[null,{"$error":"#N/A"},null,{"$error":"#N/A"},null,null,null,null,0]
[null,{"$error":"#N/A"},null,{"$error":"#N/A"},null,null,null,null,0]
[null,{"$error":"#N/A"},null,{"$error":"#N/A"},null,null,null,null,0]
[null,{"$error":"#N/A"},null,{"$error":"#N/A"},null,null,null,null,0]
[null,{"$error":"#N/A"},null,{"$error":"#N/A"},null,null,null,null,0]
[null,{"$error":"#N/A"},null,{"$error":"#N/A"},null,null,null,null,0]
[null,{"$error":"#N/A"},null,{"$error":"#N/A"},null,null,null,null,0]
[null,{"$error":"#N/A"},null,{"$error":"#N/A"},null,null,null,null,0]
[null,{"$error":"#N/A"},null,{"$error":"#N/A"},null,null,null,null,0]
[null,{"$error":"#N/A"},null,{"$error":"#N/A"},null,null,null,null,0]
[null,{"$error":"#N/A"},null,{"$error":"#N/A"},null,null,null,null,0]
[null,{"$error":"#N/A"},null,{"$error":"#N/A"},null,null,null,null,0]
[null,{"$error":"#N/A"},null,{"$error":"#N/A"},null,null,null,null,0]
[null,{"$error":"#N/A"},null,{"$error":"#N/A"},null,null,null,null,0]
[null,{"$error":"#N/A"},null,{"$error":"#N/A"},null,null,null,null,0]
[null,{"$error":"#N/A"},null,{"$error":"#N/A"},null,null,null,null,0]
[null,{"$error":"#N/A"},null,{"$error":"#N/A"},null,null,null,null,0]
[null,{"$error":"#N/A"},null,{"$error":"#N/A"},null,null,null,null,0]
[null,{"$error":"#N/A"},null,{"$error":"#N/A"},null,null,null,null,0]
[null,{"$error":"#N/A"},null,{"$error":"#N/A"},null,null,null,null,0]
[null,{"$error":"#N/A"},null,{"$error":"#N/A"},null,null,null,null,0]
[null,{"$error":"#N/A"},null,{"$error":"#N/A"},null,null,null,null,0]
[null,{"$error":"#N/A"},null,{"$error":"#N/A"},null,null,null,null,0]
[null,{"$error":"#N/A"},null,{"$error":"#N/A"},null,null,null,null,0]
[null,{"$error":"#N/A"},null,{"$error":"#N/A"},null,null,null,null,0]
[null,{"$error":"#N/A"},null,{"$error":"#N/A"},null,null,null,null,0]
[null,{"$error":"#N/A"},null,{"$error":"#N/A"},null,null,null,null,0]
[null,{"$error":"#N/A"},null,{"$error":"#N/A"},null,null,null,null,0]
[null,{"$error":"#N/A"},null,{"$error":"#N/A"},null,null,null,null,0]
[null,{"$error":"#N/A"},null,{"$error":"#N/A"},null,null,null,null,0]
[null,{"$error":"#N/A"},null,{"$error":"#N/A"},null,null,null,null,0]
[null,{"$error":"#N/A"},null,{"$error":"#N/A"},null,null,null,null,0]
[null,{"$error":"#N/A"},null,{"$error":"#N/A"},null,null,null,null,0]
[null,{"$error":"#N/A"},null,{"$error":"#N/A"},null,null,null,null,0]
[null,{"$error":"#N/A"},null,{"$error":"#N/A"},null,null,null,null,0]
[null,{"$error":"#N/A"},null,{"$error":"#N/A"},null,null,null,null,0]
[null,{"$error":"#N/A"},null,{"$error":"#N/A"},null,null,null,null,0]
[null,{"$error":"#N/A"},null,{"$error":"#N/A"},null,null,null,null,0]
[null,{"$error":"#N/A"},null,{"$error":"#N/A"},null,null,null,null,0]
[null,{"$error":"#N/A"},null,{"$error":"#N/A"},null,null,null,null,0]
[null,{"$error":"#N/A"},null,{"$error":"#N/A"},null,null,null,null,0]
[null,{"$error":"#N/A"},null,{"$error":"#N/A"},null,null,null,null,0]
[null,{"$error":"#N/A"},null,{"$error":"#N/A"},null,null,null,null,0]
[null,{"$error":"#N/A"},null,{"$error":"#N/A"},null,null,null,null,0]
[null,{"$f":"VLOOKUP($A389,Members,2,FALSE)","v":{"$error":"#N/A"}},null,{"$f":"VLOOKUP($A389,Members,VLOOKUP(C389,Events,2,FALSE),FALSE)","v":{"$error":"#N/A"}},null,null,null,null,{"$f":"SUM(E389:H389)","v":0}]
[null,{"$error":"#N/A"},null,{"$error":"#N/A"},null,null,null,null,0]
[null,{"$error":"#N/A"},null,{"$error":"#N/A"},null,null,null,null,0]
[null,{"$error":"#N/A"},null,{"$error":"#N/A"},null,null,null,null,0]
[null,{"$error":"#N/A"},null,{"$error":"#N/A"},null,null,null,null,0]
[null,{"$error":"#N/A"},null,{"$error":"#N/A"},null,null,null,null,0]
[null,{"$error":"#N/A"},null,{"$error":"#N/A"},null,null,null,null,0]
[null,{"$error":"#N/A"},null,{"$error":"#N/A"},null,null,null,null,0]
[null,{"$error":"#N/A"},null,{"$error":"#N/A"},null,null,null,null,0]
[null,{"$error":"#N/A"},null,{"$error":"#N/A"},null,null,null,null,0]
[null,{"$error":"#N/A"},null,{"$error":"#N/A"},null,null,null,null,0]
[null,{"$error":"#N/A"},null,{"$error":"#N/A"},null,null,null,null,0]
[null,{"$error":"#N/A"},null,{"$error":"#N/A"},null,null,null,null,0]
[null,{"$error":"#N/A"},null,{"$error":"#N/A"},null,null,null,null,0]
[null,{"$error":"#N/A"},null,{"$error":"#N/A"},null,null,null,null,0]
[null,{"$error":"#N/A"},null,{"$error":"#N/A"},null,null,null,null,0]
[null,{"$error":"#N/A"},null,{"$error":"#N/A"},null,null,null,null,0]
[null,{"$error":"#N/A"},null,{"$error":"#N/A"},null,null,null,null,0]
[null,{"$error":"#N/A"},null,{"$error":"#N/A"},null,null,null,null,0]
[null,{"$error":"#N/A"},null,{"$error":"#N/A"},null,null,null,null,0]
[null,{"$error":"#N/A"},null,{"$error":"#N/A"},null,null,null,null,0]
[null,{"$error":"#N/A"},null,{"$error":"#N/A"},null,null,null,null,0]
[null,{"$error":"#N/A"},null,{"$error":"#N/A"},null,null,null,null,0]
[null,{"$error":"#N/A"},null,{"$error":"#N/A"},null,null,null,null,0]
[null,{"$error":"#N/A"},null,{"$error":"#N/A"},null,null,null,null,0]
[null,{"$error":"#N/A"},null,{"$error":"#N/A"},null,null,null,null,0]
[null,{"$error":"#N/A"},null,{"$error":"#N/A"},null,null,null,null,0]
[null,{"$error":"#N/A"},null,{"$error":"#N/A"},null,null,null,null,0]
[null,{"$error":"#N/A"},null,{"$error":"#N/A"},null,null,null,null,0]
[null,{"$error":"#N/A"},null,{"$error":"#N/A"},null,null,null,null,0]
[null,{"$error":"#N/A"},null,{"$error":"#N/A"},null,null,null,null,0]
[null,{"$error":"#N/A"},null,{"$error":"#N/A"},null,null,null,null,0]
[null,{"$error":"#N/A"},null,{"$error":"#N/A"},null,null,null,null,0]
[null,{"$error":"#N/A"},null,{"$error":"#N/A"},null,null,null,null,0]
[null,{"$error":"#N/A"},null,{"$error":"#N/A"},null,null,null,null,0]
[null,{"$error":"#N/A"},null,{"$error":"#N/A"},null,null,null,null,0]
[null,{"$error":"#N/A"},null,{"$error":"#N/A"},null,null,null,null,0]
[null,{"$error":"#N/A"},null,{"$error":"#N/A"},null,null,null,null,0]
[null,{"$error":"#N/A"},null,{"$error":"#N/A"},null,null,null,null,0]
[null,{"$error":"#N/A"},null,{"$error":"#N/A"},null,null,null,null,0]
[null,{"$error":"#N/A"},null,{"$error":"#N/A"},null,null,null,null,0]
[null,{"$error":"#N/A"},null,{"$error":"#N/A"},null,null,null,null,0]
[null,{"$error":"#N/A"},null,{"$error":"#N/A"},null,null,null,null,0]
[null,{"$error":"#N/A"},null,{"$error":"#N/A"},null,null,null,null,0]
[null,{"$error":"#N/A"},null,{"$error":"#N/A"},null,null,null,null,0]
[null,{"$error":"#N/A"},null,{"$error":"#N/A"},null,null,null,null,0]
[null,{"$error":"#N/A"},null,{"$error":"#N/A"},null,null,null,null,0]
[null,{"$error":"#N/A"},null,{"$error":"#N/A"},null,null,null,null,0]
[null,{"$error":"#N/A"},null,{"$error":"#N/A"},null,null,null,null,0]
[null,{"$error":"#N/A"},null,{"$error":"#N/A"},null,null,null,null,0]
[null,{"$error":"#N/A"},null,{"$error":"#N/A"},null,null,null,null,0]
[null,{"$error":"#N/A"},null,{"$error":"#N/A"},null,null,null,null,0]
[null,{"$error":"#N/A"},null,{"$error":"#N/A"},null,null,null,null,0]
[null,{"$error":"#N/A"},null,{"$error":"#N/A"},null,null,null,null,0]
[null,{"$error":"#N/A"},null,{"$error":"#N/A"},null,null,null,null,0]
[null,{"$error":"#N/A"},null,{"$error":"#N/A"},null,null,null,null,0]
[null,{"$error":"#N/A"},null,{"$error":"#N/A"},null,null,null,null,0]
[null,{"$error":"#N/A"},null,{"$error":"#N/A"},null,null,null,null,0]
[null,{"$error":"#N/A"},null,{"$error":"#N/A"},null,null,null,null,0]
[null,{"$error":"#N/A"},null,{"$error":"#N/A"},null,null,null,null,0]
[null,{"$error":"#N/A"},null,{"$error":"#N/A"},null,null,null,null,0]
[null,{"$error":"#N/A"},null,{"$error":"#N/A"},null,null,null,null,0]
[null,{"$error":"#N/A"},null,{"$error":"#N/A"},null,null,null,null,0]
[null,{"$error":"#N/A"},null,{"$error":"#N/A"},null,null,null,null,0]
[null,{"$f":"VLOOKUP($A453,Members,2,FALSE)","v":{"$error":"#N/A"}},null,{"$f":"VLOOKUP($A453,Members,VLOOKUP(C453,Events,2,FALSE),FALSE)","v":{"$error":"#N/A"}},null,null,null,null,{"$f":"SUM(E453:H453)","v":0}]
[null,{"$error":"#N/A"},null,{"$error":"#N/A"},null,null,null,null,0]
[null,{"$error":"#N/A"},null,{"$error":"#N/A"},null,null,null,null,0]
[null,{"$error":"#N/A"},null,{"$error":"#N/A"},null,null,null,null,0]
[null,{"$error":"#N/A"},null,{"$error":"#N/A"},null,null,null,null,0]
[null,{"$error":"#N/A"},null,{"$error":"#N/A"},null,null,null,null,0]
[null,{"$error":"#N/A"},null,{"$error":"#N/A"},null,null,null,null,0]
[null,{"$error":"#N/A"},null,{"$error":"#N/A"},null,null,null,null,0]
[null,{"$error":"#N/A"},null,{"$error":"#N/A"},null,null,null,null,0]
[null,{"$error":"#N/A"},null,{"$error":"#N/A"},null,null,null,null,0]
[null,{"$error":"#N/A"},null,{"$error":"#N/A"},null,null,null,null,0]
[null,{"$error":"#N/A"},null,{"$error":"#N/A"},null,null,null,null,0]
[null,{"$error":"#N/A"},null,{"$error":"#N/A"},null,null,null,null,0]
[null,{"$error":"#N/A"},null,{"$error":"#N/A"},null,null,null,null,0]
[null,{"$error":"#N/A"},null,{"$error":"#N/A"},null,null,null,null,0]
[null,{"$error":"#N/A"},null,{"$error":"#N/A"},null,null,null,null,0]
[null,{"$error":"#N/A"},null,{"$error":"#N/A"},null,null,null,null,0]
[null,{"$error":"#N/A"},null,{"$error":"#N/A"},null,null,null,null,0]
[null,{"$error":"#N/A"},null,{"$error":"#N/A"},null,null,null,null,0]
[null,{"$error":"#N/A"},null,{"$error":"#N/A"},null,null,null,null,0]
[null,{"$error":"#N/A"},null,{"$error":"#N/A"},null,null,null,null,0]
[null,{"$error":"#N/A"},null,{"$error":"#N/A"},null,null,null,null,0]
[null,{"$error":"#N/A"},null,{"$error":"#N/A"},null,null,null,null,0]
[null,{"$error":"#N/A"},null,{"$error":"#N/A"},null,null,null,null,0]
[null,{"$error":"#N/A"},null,{"$error":"#N/A"},null,null,null,null,0]
[null,{"$error":"#N/A"},null,{"$error":"#N/A"},null,null,null,null,0]
[null,{"$error":"#N/A"},null,{"$error":"#N/A"},null,null,null,null,0]
[null,{"$error":"#N/A"},null,{"$error":"#N/A"},null,null,null,null,0]
[null,{"$error":"#N/A"},null,{"$error":"#N/A"},null,null,null,null,0]
[null,{"$error":"#N/A"},null,{"$error":"#N/A"},null,null,null,null,0]
[null,{"$error":"#N/A"},null,{"$error":"#N/A"},null,null,null,null,0]
[null,{"$error":"#N/A"},null,{"$error":"#N/A"},null,null,null,null,0]
[null,{"$error":"#N/A"},null,{"$error":"#N/A"},null,null,null,null,0]
[null,{"$error":"#N/A"},null,{"$error":"#N/A"},null,null,null,null,0]
[null,{"$error":"#N/A"},null,{"$error":"#N/A"},null,null,null,null,0]
[null,{"$error":"#N/A"},null,{"$error":"#N/A"},null,null,null,null,0]
[null,{"$error":"#N/A"},null,{"$error":"#N/A"},null,null,null,null,0]
[null,{"$error":"#N/A"},null,{"$error":"#N/A"},null,null,null,null,0]
[null,{"$error":"#N/A"},null,{"$error":"#N/A"},null,null,null,null,0]
[null,{"$error":"#N/A"},null,{"$error":"#N/A"},null,null,null,null,0]
[null,{"$error":"#N/A"},null,{"$error":"#N/A"},null,null,null,null,0]
[null,{"$error":"#N/A"},null,{"$error":"#N/A"},null,null,null,null,0]
[null,{"$error":"#N/A"},null,{"$error":"#N/A"},null,null,null,null,0]
[null,{"$error":"#N/A"},null,{"$error":"#N/A"},null,null,null,null,0]
[null,{"$error":"#N/A"},null,{"$error":"#N/A"},null,null,null,null,0]
[null,{"$error":"#N/A"},null,{"$error":"#N/A"},null,null,null,null,0]
[null,{"$error":"#N/A"},null,{"$error":"#N/A"},null,null,null,null,0]
[null,{"$error":"#N/A"},null,{"$error":"#N/A"},null,null,null,null,0]
[null,{"$error":"#N/A"},null,{"$error":"#N/A"},null,null,null,null,0]
[null,{"$error":"#N/A"},null,{"$error":"#N/A"},null,null,null,null,0]
[null,{"$error":"#N/A"},null,{"$error":"#N/A"},null,null,null,null,0]
[null,{"$error":"#N/A"},null,{"$error":"#N/A"},null,null,null,null,0]
[null,{"$error":"#N/A"},null,{"$error":"#N/A"},null,null,null,null,0]
[null,{"$error":"#N/A"},null,{"$error":"#N/A"},null,null,null,null,0]
[null,{"$error":"#N/A"},null,{"$error":"#N/A"},null,null,null,null,0]
[null,{"$error":"#N/A"},null,{"$error":"#N/A"},null,null,null,null,0]
[null,{"$error":"#N/A"},null,{"$error":"#N/A"},null,null,null,null,0]
[null,{"$error":"#N/A"},null,{"$error":"#N/A"},null,null,null,null,0]
[null,{"$error":"#N/A"},null,{"$error":"#N/A"},null,null,null,null,0]
[null,{"$error":"#N/A"},null,{"$error":"#N/A"},null,null,null,null,0]
[null,{"$error":"#N/A"},null,{"$error":"#N/A"},null,null,null,null,0]
[null,{"$error":"#N/A"},null,{"$error":"#N/A"},null,null,null,null,0]
[null,{"$error":"#N/A"},null,{"$error":"#N/A"},null,null,null,null,0]
[null,{"$error":"#N/A"},null,{"$error":"#N/A"},null,null,null,null,0]
[null,{"$f":"VLOOKUP($A517,Members,2,FALSE)","v":{"$error":"#N/A"}},null,{"$f":"VLOOKUP($A517,Members,VLOOKUP(C517,Events,2,FALSE),FALSE)","v":{"$error":"#N/A"}},null,null,null,null,{"$f":"SUM(E517:H517)","v":0}]
[null,{"$error":"#N/A"},null,{"$error":"#N/A"},null,null,null,null,0]
[null,{"$error":"#N/A"},null,{"$error":"#N/A"},null,null,null,null,0]
[null,{"$error":"#N/A"},null,{"$error":"#N/A"},null,null,null,null,0]
[null,{"$error":"#N/A"},null,{"$error":"#N/A"},null,null,null,null,0]
[null,{"$error":"#N/A"},null,{"$error":"#N/A"},null,null,null,null,0]
[null,{"$error":"#N/A"},null,{"$error":"#N/A"},null,null,null,null,0]
[null,{"$error":"#N/A"},null,{"$error":"#N/A"},null,null,null,null,0]
[null,{"$error":"#N/A"},null,{"$error":"#N/A"},null,null,null,null,0]
[null,{"$error":"#N/A"},null,{"$error":"#N/A"},null,null,null,null,0]
[null,{"$error":"#N/A"},null,{"$error":"#N/A"},null,null,null,null,0]
[null,{"$error":"#N/A"},null,{"$error":"#N/A"},null,null,null,null,0]
[null,{"$error":"#N/A"},null,{"$error":"#N/A"},null,null,null,null,0]
[null,{"$error":"#N/A"},null,{"$error":"#N/A"},null,null,null,null,0]
[null,{"$error":"#N/A"},null,{"$error":"#N/A"},null,null,null,null,0]
[null,{"$error":"#N/A"},null,{"$error":"#N/A"},null,null,null,null,0]
[null,{"$error":"#N/A"},null,{"$error":"#N/A"},null,null,null,null,0]
[null,{"$error":"#N/A"},null,{"$error":"#N/A"},null,null,null,null,0]
[null,{"$error":"#N/A"},null,{"$error":"#N/A"},null,null,null,null,0]
[null,{"$error":"#N/A"},null,{"$error":"#N/A"},null,null,null,null,0]
[null,{"$error":"#N/A"},null,{"$error":"#N/A"},null,null,null,null,0]
[null,{"$error":"#N/A"},null,{"$error":"#N/A"},null,null,null,null,0]
[null,{"$error":"#N/A"},null,{"$error":"#N/A"},null,null,null,null,0]
[null,{"$error":"#N/A"},null,{"$error":"#N/A"},null,null,null,null,0]
[null,{"$error":"#N/A"},null,{"$error":"#N/A"},null,null,null,null,0]
[null,{"$error":"#N/A"},null,{"$error":"#N/A"},null,null,null,null,0]
[null,{"$error":"#N/A"},null,{"$error":"#N/A"},null,null,null,null,0]
[null,{"$error":"#N/A"},null,{"$error":"#N/A"},null,null,null,null,0]
[null,{"$error":"#N/A"},null,{"$error":"#N/A"},null,null,null,null,0]
[null,{"$error":"#N/A"},null,{"$error":"#N/A"},null,null,null,null,0]
[null,{"$error":"#N/A"},null,{"$error":"#N/A"},null,null,null,null,0]
[null,{"$error":"#N/A"},null,{"$error":"#N/A"},null,null,null,null,0]
[null,{"$error":"#N/A"},null,{"$error":"#N/A"},null,null,null,null,0]
[null,{"$error":"#N/A"},null,{"$error":"#N/A"},null,null,null,null,0]
[null,{"$error":"#N/A"},null,{"$error":"#N/A"},null,null,null,null,0]
[null,{"$error":"#N/A"},null,{"$error":"#N/A"},null,null,null,null,0]
[null,{"$error":"#N/A"},null,{"$error":"#N/A"},null,null,null,null,0]
[null,{"$error":"#N/A"},null,{"$error":"#N/A"},null,null,null,null,0]
[null,{"$error":"#N/A"},null,{"$error":"#N/A"},null,null,null,null,0]
[null,{"$error":"#N/A"},null,{"$error":"#N/A"},null,null,null,null,0]
[null,{"$error":"#N/A"},null,{"$error":"#N/A"},null,null,null,null,0]
[null,{"$error":"#N/A"},null,{"$error":"#N/A"},null,null,null,null,0]
[null,{"$error":"#N/A"},null,{"$error":"#N/A"},null,null,null,null,0]
[null,{"$error":"#N/A"},null,{"$error":"#N/A"},null,null,null,null,0]
[null,{"$error":"#N/A"},null,{"$error":"#N/A"},null,null,null,null,0]
[null,{"$error":"#N/A"},null,{"$error":"#N/A"},null,null,null,null,0]
[null,{"$error":"#N/A"},null,{"$error":"#N/A"},null,null,null,null,0]
[null,{"$error":"#N/A"},null,{"$error":"#N/A"},null,null,null,null,0]
[null,{"$error":"#N/A"},null,{"$error":"#N/A"},null,null,null,null,0]
[null,{"$error":"#N/A"},null,{"$error":"#N/A"},null,null,null,null,0]
[null,{"$error":"#N/A"},null,{"$error":"#N/A"},null,null,null,null,0]
[null,{"$error":"#N/A"},null,{"$error":"#N/A"},null,null,null,null,0]
[null,{"$error":"#N/A"},null,{"$error":"#N/A"},null,null,null,null,0]
[null,{"$error":"#N/A"},null,{"$error":"#N/A"},null,null,null,null,0]
[null,{"$error":"#N/A"},null,{"$error":"#N/A"},null,null,null,null,0]
[null,{"$error":"#N/A"},null,{"$error":"#N/A"},null,null,null,null,0]
[null,{"$error":"#N/A"},null,{"$error":"#N/A"},null,null,null,null,0]
[null,{"$error":"#N/A"},null,{"$error":"#N/A"},null,null,null,null,0]
[null,{"$error":"#N/A"},null,{"$error":"#N/A"},null,null,null,null,0]
[null,{"$error":"#N/A"},null,{"$error":"#N/A"},null,null,null,null,0]
[null,{"$error":"#N/A"},null,{"$error":"#N/A"},null,null,null,null,0]
[null,{"$error":"#N/A"},null,{"$error":"#N/A"},null,null,null,null,0]
[null,{"$error":"#N/A"},null,{"$error":"#N/A"},null,null,null,null,0]
[null,{"$error":"#N/A"},null,{"$error":"#N/A"},null,null,null,null,0]
[null,{"$f":"VLOOKUP($A581,Members,2,FALSE)","v":{"$error":"#N/A"}},null,{"$f":"VLOOKUP($A581,Members,VLOOKUP(C581,Events,2,FALSE),FALSE)","v":{"$error":"#N/A"}},null,null,null,null,{"$f":"SUM(E581:H581)","v":0}]
[null,{"$error":"#N/A"},null,{"$error":"#N/A"},null,null,null,null,0]
[null,{"$error":"#N/A"},null,{"$error":"#N/A"},null,null,null,null,0]
[null,{"$error":"#N/A"},null,{"$error":"#N/A"},null,null,null,null,0]
[null,{"$error":"#N/A"},null,{"$error":"#N/A"},null,null,null,null,0]
[null,{"$error":"#N/A"},null,{"$error":"#N/A"},null,null,null,null,0]
[null,{"$error":"#N/A"},null,{"$error":"#N/A"},null,null,null,null,0]
[null,{"$error":"#N/A"},null,{"$error":"#N/A"},null,null,null,null,0]
[null,{"$error":"#N/A"},null,{"$error":"#N/A"},null,null,null,null,0]
[null,{"$error":"#N/A"},null,{"$error":"#N/A"},null,null,null,null,0]
[null,{"$error":"#N/A"},null,{"$error":"#N/A"},null,null,null,null,0]
[null,{"$error":"#N/A"},null,{"$error":"#N/A"},null,null,null,null,0]
[null,{"$error":"#N/A"},null,{"$error":"#N/A"},null,null,null,null,0]
[null,{"$error":"#N/A"},null,{"$error":"#N/A"},null,null,null,null,0]

{"sheet":"Classified Scores","index":5,"n_rows":594,"n_cols":9,"rows_kept":594,"cut":false,"hidden":false,"merged":[[0,2,0,5],[1,3,1,5],[1,7,1,8],[2,0,2,8]]}
[null,null,"Handgun Metallic Silhouette"]
["Range:","Tokoroa","Competition:","Nationals 2018",null,null,"Date:","2018-11-01"]
[]
["PNZ No.","Name","Event","Class","C","P","T","R","Total"]
[null,{"$f":"VLOOKUP($A5,Members,2,FALSE)","v":{"$error":"#N/A"}},null,{"$f":"VLOOKUP($A5,Members,VLOOKUP(C5,Events,2,FALSE),FALSE)","v":{"$error":"#N/A"}},null,null,null,null,{"$f":"SUM(E5:H5)","v":0}]
[null,{"$error":"#N/A"},null,{"$error":"#N/A"},null,null,null,null,0]
[null,{"$error":"#N/A"},null,{"$error":"#N/A"},null,null,null,null,0]
[null,{"$error":"#N/A"},null,{"$error":"#N/A"},null,null,null,null,0]
[null,{"$error":"#N/A"},null,{"$error":"#N/A"},null,null,null,null,0]
[null,{"$error":"#N/A"},null,{"$error":"#N/A"},null,null,null,null,0]
[null,{"$error":"#N/A"},null,{"$error":"#N/A"},null,null,null,null,0]
[null,{"$error":"#N/A"},null,{"$error":"#N/A"},null,null,null,null,0]
[null,{"$error":"#N/A"},null,{"$error":"#N/A"},null,null,null,null,0]
[null,{"$error":"#N/A"},null,{"$error":"#N/A"},null,null,null,null,0]
[null,{"$error":"#N/A"},null,{"$error":"#N/A"},null,null,null,null,0]
[null,{"$error":"#N/A"},null,{"$error":"#N/A"},null,null,null,null,0]
[null,{"$error":"#N/A"},null,{"$error":"#N/A"},null,null,null,null,0]
[null,{"$error":"#N/A"},null,{"$error":"#N/A"},null,null,null,null,0]
[null,{"$error":"#N/A"},null,{"$error":"#N/A"},null,null,null,null,0]
[null,{"$error":"#N/A"},null,{"$error":"#N/A"},null,null,null,null,0]
[null,{"$error":"#N/A"},null,{"$error":"#N/A"},null,null,null,null,0]
[null,{"$error":"#N/A"},null,{"$error":"#N/A"},null,null,null,null,0]
[null,{"$error":"#N/A"},null,{"$error":"#N/A"},null,null,null,null,0]
[null,{"$error":"#N/A"},null,{"$error":"#N/A"},null,null,null,null,0]
[null,{"$error":"#N/A"},null,{"$error":"#N/A"},null,null,null,null,0]
[null,{"$error":"#N/A"},null,{"$error":"#N/A"},null,null,null,null,0]
[null,{"$error":"#N/A"},null,{"$error":"#N/A"},null,null,null,null,0]
[null,{"$error":"#N/A"},null,{"$error":"#N/A"},null,null,null,null,0]
[null,{"$error":"#N/A"},null,{"$error":"#N/A"},null,null,null,null,0]
[null,{"$error":"#N/A"},null,{"$error":"#N/A"},null,null,null,null,0]
[null,{"$error":"#N/A"},null,{"$error":"#N/A"},null,null,null,null,0]
[null,{"$error":"#N/A"},null,{"$error":"#N/A"},null,null,null,null,0]
[null,{"$error":"#N/A"},null,{"$error":"#N/A"},null,null,null,null,0]
[null,{"$error":"#N/A"},null,{"$error":"#N/A"},null,null,null,null,0]
[null,{"$error":"#N/A"},null,{"$error":"#N/A"},null,null,null,null,0]
[null,{"$error":"#N/A"},null,{"$error":"#N/A"},null,null,null,null,0]
[null,{"$error":"#N/A"},null,{"$error":"#N/A"},null,null,null,null,0]
[null,{"$error":"#N/A"},null,{"$error":"#N/A"},null,null,null,null,0]
[null,{"$error":"#N/A"},null,{"$error":"#N/A"},null,null,null,null,0]
[null,{"$error":"#N/A"},null,{"$error":"#N/A"},null,null,null,null,0]
[null,{"$error":"#N/A"},null,{"$error":"#N/A"},null,null,null,null,0]
[null,{"$error":"#N/A"},null,{"$error":"#N/A"},null,null,null,null,0]
[null,{"$error":"#N/A"},null,{"$error":"#N/A"},null,null,null,null,0]
[null,{"$error":"#N/A"},null,{"$error":"#N/A"},null,null,null,null,0]
[null,{"$error":"#N/A"},null,{"$error":"#N/A"},null,null,null,null,0]
[null,{"$error":"#N/A"},null,{"$error":"#N/A"},null,null,null,null,0]
[null,{"$error":"#N/A"},null,{"$error":"#N/A"},null,null,null,null,0]
[null,{"$error":"#N/A"},null,{"$error":"#N/A"},null,null,null,null,0]
[null,{"$error":"#N/A"},null,{"$error":"#N/A"},null,null,null,null,0]
[null,{"$error":"#N/A"},null,{"$error":"#N/A"},null,null,null,null,0]
[null,{"$error":"#N/A"},null,{"$error":"#N/A"},null,null,null,null,0]
[null,{"$error":"#N/A"},null,{"$error":"#N/A"},null,null,null,null,0]
[null,{"$error":"#N/A"},null,{"$error":"#N/A"},null,null,null,null,0]
[null,{"$error":"#N/A"},null,{"$error":"#N/A"},null,null,null,null,0]
[null,{"$error":"#N/A"},null,{"$error":"#N/A"},null,null,null,null,0]
[null,{"$error":"#N/A"},null,{"$error":"#N/A"},null,null,null,null,0]
[null,{"$error":"#N/A"},null,{"$error":"#N/A"},null,null,null,null,0]
[null,{"$error":"#N/A"},null,{"$error":"#N/A"},null,null,null,null,0]
[null,{"$error":"#N/A"},null,{"$error":"#N/A"},null,null,null,null,0]
[null,{"$error":"#N/A"},null,{"$error":"#N/A"},null,null,null,null,0]
[null,{"$error":"#N/A"},null,{"$error":"#N/A"},null,null,null,null,0]
[null,{"$error":"#N/A"},null,{"$error":"#N/A"},null,null,null,null,0]
[null,{"$error":"#N/A"},null,{"$error":"#N/A"},null,null,null,null,0]
[null,{"$error":"#N/A"},null,{"$error":"#N/A"},null,null,null,null,0]
[null,{"$error":"#N/A"},null,{"$error":"#N/A"},null,null,null,null,0]
[null,{"$error":"#N/A"},null,{"$error":"#N/A"},null,null,null,null,0]
[null,{"$error":"#N/A"},null,{"$error":"#N/A"},null,null,null,null,0]
[null,{"$error":"#N/A"},null,{"$error":"#N/A"},null,null,null,null,0]
[null,{"$f":"VLOOKUP($A69,Members,2,FALSE)","v":{"$error":"#N/A"}},null,{"$f":"VLOOKUP($A69,Members,VLOOKUP(C69,Events,2,FALSE),FALSE)","v":{"$error":"#N/A"}},null,null,null,null,{"$f":"SUM(E69:H69)","v":0}]
[null,{"$error":"#N/A"},null,{"$error":"#N/A"},null,null,null,null,0]
[null,{"$error":"#N/A"},null,{"$error":"#N/A"},null,null,null,null,0]
[null,{"$error":"#N/A"},null,{"$error":"#N/A"},null,null,null,null,0]
[null,{"$error":"#N/A"},null,{"$error":"#N/A"},null,null,null,null,0]
[null,{"$error":"#N/A"},null,{"$error":"#N/A"},null,null,null,null,0]
[null,{"$error":"#N/A"},null,{"$error":"#N/A"},null,null,null,null,0]
[null,{"$error":"#N/A"},null,{"$error":"#N/A"},null,null,null,null,0]
[null,{"$error":"#N/A"},null,{"$error":"#N/A"},null,null,null,null,0]
[null,{"$error":"#N/A"},null,{"$error":"#N/A"},null,null,null,null,0]
[null,{"$error":"#N/A"},null,{"$error":"#N/A"},null,null,null,null,0]
[null,{"$error":"#N/A"},null,{"$error":"#N/A"},null,null,null,null,0]
[null,{"$error":"#N/A"},null,{"$error":"#N/A"},null,null,null,null,0]
[null,{"$error":"#N/A"},null,{"$error":"#N/A"},null,null,null,null,0]
[null,{"$error":"#N/A"},null,{"$error":"#N/A"},null,null,null,null,0]
[null,{"$error":"#N/A"},null,{"$error":"#N/A"},null,null,null,null,0]
[null,{"$error":"#N/A"},null,{"$error":"#N/A"},null,null,null,null,0]
[null,{"$error":"#N/A"},null,{"$error":"#N/A"},null,null,null,null,0]
[null,{"$error":"#N/A"},null,{"$error":"#N/A"},null,null,null,null,0]
[null,{"$error":"#N/A"},null,{"$error":"#N/A"},null,null,null,null,0]
[null,{"$error":"#N/A"},null,{"$error":"#N/A"},null,null,null,null,0]
[null,{"$error":"#N/A"},null,{"$error":"#N/A"},null,null,null,null,0]
[null,{"$error":"#N/A"},null,{"$error":"#N/A"},null,null,null,null,0]
[null,{"$error":"#N/A"},null,{"$error":"#N/A"},null,null,null,null,0]
[null,{"$error":"#N/A"},null,{"$error":"#N/A"},null,null,null,null,0]
[null,{"$error":"#N/A"},null,{"$error":"#N/A"},null,null,null,null,0]
[null,{"$error":"#N/A"},null,{"$error":"#N/A"},null,null,null,null,0]
[null,{"$error":"#N/A"},null,{"$error":"#N/A"},null,null,null,null,0]
[null,{"$error":"#N/A"},null,{"$error":"#N/A"},null,null,null,null,0]
[null,{"$error":"#N/A"},null,{"$error":"#N/A"},null,null,null,null,0]
[null,{"$error":"#N/A"},null,{"$error":"#N/A"},null,null,null,null,0]
[null,{"$error":"#N/A"},null,{"$error":"#N/A"},null,null,null,null,0]
[null,{"$error":"#N/A"},null,{"$error":"#N/A"},null,null,null,null,0]
[null,{"$error":"#N/A"},null,{"$error":"#N/A"},null,null,null,null,0]
[null,{"$error":"#N/A"},null,{"$error":"#N/A"},null,null,null,null,0]
[null,{"$error":"#N/A"},null,{"$error":"#N/A"},null,null,null,null,0]
[null,{"$error":"#N/A"},null,{"$error":"#N/A"},null,null,null,null,0]
[null,{"$error":"#N/A"},null,{"$error":"#N/A"},null,null,null,null,0]
[null,{"$error":"#N/A"},null,{"$error":"#N/A"},null,null,null,null,0]
[null,{"$error":"#N/A"},null,{"$error":"#N/A"},null,null,null,null,0]
[null,{"$error":"#N/A"},null,{"$error":"#N/A"},null,null,null,null,0]
[null,{"$error":"#N/A"},null,{"$error":"#N/A"},null,null,null,null,0]
[null,{"$error":"#N/A"},null,{"$error":"#N/A"},null,null,null,null,0]
[null,{"$error":"#N/A"},null,{"$error":"#N/A"},null,null,null,null,0]
[null,{"$error":"#N/A"},null,{"$error":"#N/A"},null,null,null,null,0]
[null,{"$error":"#N/A"},null,{"$error":"#N/A"},null,null,null,null,0]
[null,{"$error":"#N/A"},null,{"$error":"#N/A"},null,null,null,null,0]
[null,{"$error":"#N/A"},null,{"$error":"#N/A"},null,null,null,null,0]
[null,{"$error":"#N/A"},null,{"$error":"#N/A"},null,null,null,null,0]
[null,{"$error":"#N/A"},null,{"$error":"#N/A"},null,null,null,null,0]
[null,{"$error":"#N/A"},null,{"$error":"#N/A"},null,null,null,null,0]
[null,{"$error":"#N/A"},null,{"$error":"#N/A"},null,null,null,null,0]
[null,{"$error":"#N/A"},null,{"$error":"#N/A"},null,null,null,null,0]
[null,{"$error":"#N/A"},null,{"$error":"#N/A"},null,null,null,null,0]
[null,{"$error":"#N/A"},null,{"$error":"#N/A"},null,null,null,null,0]
[null,{"$error":"#N/A"},null,{"$error":"#N/A"},null,null,null,null,0]
[null,{"$error":"#N/A"},null,{"$error":"#N/A"},null,null,null,null,0]
[null,{"$error":"#N/A"},null,{"$error":"#N/A"},null,null,null,null,0]
[null,{"$error":"#N/A"},null,{"$error":"#N/A"},null,null,null,null,0]
[null,{"$error":"#N/A"},null,{"$error":"#N/A"},null,null,null,null,0]
[null,{"$error":"#N/A"},null,{"$error":"#N/A"},null,null,null,null,0]
[null,{"$error":"#N/A"},null,{"$error":"#N/A"},null,null,null,null,0]
[null,{"$error":"#N/A"},null,{"$error":"#N/A"},null,null,null,null,0]
[null,{"$error":"#N/A"},null,{"$error":"#N/A"},null,null,null,null,0]
[null,{"$f":"VLOOKUP($A133,Members,2,FALSE)","v":{"$error":"#N/A"}},null,{"$f":"VLOOKUP($A133,Members,VLOOKUP(C133,Events,2,FALSE),FALSE)","v":{"$error":"#N/A"}},null,null,null,null,{"$f":"SUM(E133:H133)","v":0}]
[null,{"$error":"#N/A"},null,{"$error":"#N/A"},null,null,null,null,0]
[null,{"$error":"#N/A"},null,{"$error":"#N/A"},null,null,null,null,0]
[null,{"$error":"#N/A"},null,{"$error":"#N/A"},null,null,null,null,0]
[null,{"$error":"#N/A"},null,{"$error":"#N/A"},null,null,null,null,0]
[null,{"$error":"#N/A"},null,{"$error":"#N/A"},null,null,null,null,0]
[null,{"$error":"#N/A"},null,{"$error":"#N/A"},null,null,null,null,0]
[null,{"$error":"#N/A"},null,{"$error":"#N/A"},null,null,null,null,0]
[null,{"$error":"#N/A"},null,{"$error":"#N/A"},null,null,null,null,0]
[null,{"$error":"#N/A"},null,{"$error":"#N/A"},null,null,null,null,0]
[null,{"$error":"#N/A"},null,{"$error":"#N/A"},null,null,null,null,0]
[null,{"$error":"#N/A"},null,{"$error":"#N/A"},null,null,null,null,0]
[null,{"$error":"#N/A"},null,{"$error":"#N/A"},null,null,null,null,0]
[null,{"$error":"#N/A"},null,{"$error":"#N/A"},null,null,null,null,0]
[null,{"$error":"#N/A"},null,{"$error":"#N/A"},null,null,null,null,0]
[null,{"$error":"#N/A"},null,{"$error":"#N/A"},null,null,null,null,0]
[null,{"$error":"#N/A"},null,{"$error":"#N/A"},null,null,null,null,0]
[null,{"$error":"#N/A"},null,{"$error":"#N/A"},null,null,null,null,0]
[null,{"$error":"#N/A"},null,{"$error":"#N/A"},null,null,null,null,0]
[null,{"$error":"#N/A"},null,{"$error":"#N/A"},null,null,null,null,0]
[null,{"$error":"#N/A"},null,{"$error":"#N/A"},null,null,null,null,0]
[null,{"$error":"#N/A"},null,{"$error":"#N/A"},null,null,null,null,0]
[null,{"$error":"#N/A"},null,{"$error":"#N/A"},null,null,null,null,0]
[null,{"$error":"#N/A"},null,{"$error":"#N/A"},null,null,null,null,0]
[null,{"$error":"#N/A"},null,{"$error":"#N/A"},null,null,null,null,0]
[null,{"$error":"#N/A"},null,{"$error":"#N/A"},null,null,null,null,0]
[null,{"$error":"#N/A"},null,{"$error":"#N/A"},null,null,null,null,0]
[null,{"$error":"#N/A"},null,{"$error":"#N/A"},null,null,null,null,0]
[null,{"$error":"#N/A"},null,{"$error":"#N/A"},null,null,null,null,0]
[null,{"$error":"#N/A"},null,{"$error":"#N/A"},null,null,null,null,0]
[null,{"$error":"#N/A"},null,{"$error":"#N/A"},null,null,null,null,0]
[null,{"$error":"#N/A"},null,{"$error":"#N/A"},null,null,null,null,0]
[null,{"$error":"#N/A"},null,{"$error":"#N/A"},null,null,null,null,0]
[null,{"$error":"#N/A"},null,{"$error":"#N/A"},null,null,null,null,0]
[null,{"$error":"#N/A"},null,{"$error":"#N/A"},null,null,null,null,0]
[null,{"$error":"#N/A"},null,{"$error":"#N/A"},null,null,null,null,0]
[null,{"$error":"#N/A"},null,{"$error":"#N/A"},null,null,null,null,0]
[null,{"$error":"#N/A"},null,{"$error":"#N/A"},null,null,null,null,0]
[null,{"$error":"#N/A"},null,{"$error":"#N/A"},null,null,null,null,0]
[null,{"$error":"#N/A"},null,{"$error":"#N/A"},null,null,null,null,0]
[null,{"$error":"#N/A"},null,{"$error":"#N/A"},null,null,null,null,0]
[null,{"$error":"#N/A"},null,{"$error":"#N/A"},null,null,null,null,0]
[null,{"$error":"#N/A"},null,{"$error":"#N/A"},null,null,null,null,0]
[null,{"$error":"#N/A"},null,{"$error":"#N/A"},null,null,null,null,0]
[null,{"$error":"#N/A"},null,{"$error":"#N/A"},null,null,null,null,0]
[null,{"$error":"#N/A"},null,{"$error":"#N/A"},null,null,null,null,0]
[null,{"$error":"#N/A"},null,{"$error":"#N/A"},null,null,null,null,0]
[null,{"$error":"#N/A"},null,{"$error":"#N/A"},null,null,null,null,0]
[null,{"$error":"#N/A"},null,{"$error":"#N/A"},null,null,null,null,0]
[null,{"$error":"#N/A"},null,{"$error":"#N/A"},null,null,null,null,0]
[null,{"$error":"#N/A"},null,{"$error":"#N/A"},null,null,null,null,0]
[null,{"$error":"#N/A"},null,{"$error":"#N/A"},null,null,null,null,0]
[null,{"$error":"#N/A"},null,{"$error":"#N/A"},null,null,null,null,0]
[null,{"$error":"#N/A"},null,{"$error":"#N/A"},null,null,null,null,0]
[null,{"$error":"#N/A"},null,{"$error":"#N/A"},null,null,null,null,0]
[null,{"$error":"#N/A"},null,{"$error":"#N/A"},null,null,null,null,0]
[null,{"$error":"#N/A"},null,{"$error":"#N/A"},null,null,null,null,0]
[null,{"$error":"#N/A"},null,{"$error":"#N/A"},null,null,null,null,0]
[null,{"$error":"#N/A"},null,{"$error":"#N/A"},null,null,null,null,0]
[null,{"$error":"#N/A"},null,{"$error":"#N/A"},null,null,null,null,0]
[null,{"$error":"#N/A"},null,{"$error":"#N/A"},null,null,null,null,0]
[null,{"$error":"#N/A"},null,{"$error":"#N/A"},null,null,null,null,0]
[null,{"$error":"#N/A"},null,{"$error":"#N/A"},null,null,null,null,0]
[null,{"$error":"#N/A"},null,{"$error":"#N/A"},null,null,null,null,0]
[null,{"$f":"VLOOKUP($A197,Members,2,FALSE)","v":{"$error":"#N/A"}},null,{"$f":"VLOOKUP($A197,Members,VLOOKUP(C197,Events,2,FALSE),FALSE)","v":{"$error":"#N/A"}},null,null,null,null,{"$f":"SUM(E197:H197)","v":0}]
[null,{"$error":"#N/A"},null,{"$error":"#N/A"},null,null,null,null,0]
[null,{"$error":"#N/A"},null,{"$error":"#N/A"},null,null,null,null,0]
[null,{"$error":"#N/A"},null,{"$error":"#N/A"},null,null,null,null,0]
[null,{"$error":"#N/A"},null,{"$error":"#N/A"},null,null,null,null,0]
[null,{"$error":"#N/A"},null,{"$error":"#N/A"},null,null,null,null,0]
[null,{"$error":"#N/A"},null,{"$error":"#N/A"},null,null,null,null,0]
[null,{"$error":"#N/A"},null,{"$error":"#N/A"},null,null,null,null,0]
[null,{"$error":"#N/A"},null,{"$error":"#N/A"},null,null,null,null,0]
[null,{"$error":"#N/A"},null,{"$error":"#N/A"},null,null,null,null,0]
[null,{"$error":"#N/A"},null,{"$error":"#N/A"},null,null,null,null,0]
[null,{"$error":"#N/A"},null,{"$error":"#N/A"},null,null,null,null,0]
[null,{"$error":"#N/A"},null,{"$error":"#N/A"},null,null,null,null,0]
[null,{"$error":"#N/A"},null,{"$error":"#N/A"},null,null,null,null,0]
[null,{"$error":"#N/A"},null,{"$error":"#N/A"},null,null,null,null,0]
[null,{"$error":"#N/A"},null,{"$error":"#N/A"},null,null,null,null,0]
[null,{"$error":"#N/A"},null,{"$error":"#N/A"},null,null,null,null,0]
[null,{"$error":"#N/A"},null,{"$error":"#N/A"},null,null,null,null,0]
[null,{"$error":"#N/A"},null,{"$error":"#N/A"},null,null,null,null,0]
[null,{"$error":"#N/A"},null,{"$error":"#N/A"},null,null,null,null,0]
[null,{"$error":"#N/A"},null,{"$error":"#N/A"},null,null,null,null,0]
[null,{"$error":"#N/A"},null,{"$error":"#N/A"},null,null,null,null,0]
[null,{"$error":"#N/A"},null,{"$error":"#N/A"},null,null,null,null,0]
[null,{"$error":"#N/A"},null,{"$error":"#N/A"},null,null,null,null,0]
[null,{"$error":"#N/A"},null,{"$error":"#N/A"},null,null,null,null,0]
[null,{"$error":"#N/A"},null,{"$error":"#N/A"},null,null,null,null,0]
[null,{"$error":"#N/A"},null,{"$error":"#N/A"},null,null,null,null,0]
[null,{"$error":"#N/A"},null,{"$error":"#N/A"},null,null,null,null,0]
[null,{"$error":"#N/A"},null,{"$error":"#N/A"},null,null,null,null,0]
[null,{"$error":"#N/A"},null,{"$error":"#N/A"},null,null,null,null,0]
[null,{"$error":"#N/A"},null,{"$error":"#N/A"},null,null,null,null,0]
[null,{"$error":"#N/A"},null,{"$error":"#N/A"},null,null,null,null,0]
[null,{"$error":"#N/A"},null,{"$error":"#N/A"},null,null,null,null,0]
[null,{"$error":"#N/A"},null,{"$error":"#N/A"},null,null,null,null,0]
[null,{"$error":"#N/A"},null,{"$error":"#N/A"},null,null,null,null,0]
[null,{"$error":"#N/A"},null,{"$error":"#N/A"},null,null,null,null,0]
[null,{"$error":"#N/A"},null,{"$error":"#N/A"},null,null,null,null,0]
[null,{"$error":"#N/A"},null,{"$error":"#N/A"},null,null,null,null,0]
[null,{"$error":"#N/A"},null,{"$error":"#N/A"},null,null,null,null,0]
[null,{"$error":"#N/A"},null,{"$error":"#N/A"},null,null,null,null,0]
[null,{"$error":"#N/A"},null,{"$error":"#N/A"},null,null,null,null,0]
[null,{"$error":"#N/A"},null,{"$error":"#N/A"},null,null,null,null,0]
[null,{"$error":"#N/A"},null,{"$error":"#N/A"},null,null,null,null,0]
[null,{"$error":"#N/A"},null,{"$error":"#N/A"},null,null,null,null,0]
[null,{"$error":"#N/A"},null,{"$error":"#N/A"},null,null,null,null,0]
[null,{"$error":"#N/A"},null,{"$error":"#N/A"},null,null,null,null,0]
[null,{"$error":"#N/A"},null,{"$error":"#N/A"},null,null,null,null,0]
[null,{"$error":"#N/A"},null,{"$error":"#N/A"},null,null,null,null,0]
[null,{"$error":"#N/A"},null,{"$error":"#N/A"},null,null,null,null,0]
[null,{"$error":"#N/A"},null,{"$error":"#N/A"},null,null,null,null,0]
[null,{"$error":"#N/A"},null,{"$error":"#N/A"},null,null,null,null,0]
[null,{"$error":"#N/A"},null,{"$error":"#N/A"},null,null,null,null,0]
[null,{"$error":"#N/A"},null,{"$error":"#N/A"},null,null,null,null,0]
[null,{"$error":"#N/A"},null,{"$error":"#N/A"},null,null,null,null,0]
[null,{"$error":"#N/A"},null,{"$error":"#N/A"},null,null,null,null,0]
[null,{"$error":"#N/A"},null,{"$error":"#N/A"},null,null,null,null,0]
[null,{"$error":"#N/A"},null,{"$error":"#N/A"},null,null,null,null,0]
[null,{"$error":"#N/A"},null,{"$error":"#N/A"},null,null,null,null,0]
[null,{"$error":"#N/A"},null,{"$error":"#N/A"},null,null,null,null,0]
[null,{"$error":"#N/A"},null,{"$error":"#N/A"},null,null,null,null,0]
[null,{"$error":"#N/A"},null,{"$error":"#N/A"},null,null,null,null,0]
[null,{"$error":"#N/A"},null,{"$error":"#N/A"},null,null,null,null,0]
[null,{"$error":"#N/A"},null,{"$error":"#N/A"},null,null,null,null,0]
[null,{"$error":"#N/A"},null,{"$error":"#N/A"},null,null,null,null,0]
[null,{"$f":"VLOOKUP($A261,Members,2,FALSE)","v":{"$error":"#N/A"}},null,{"$f":"VLOOKUP($A261,Members,VLOOKUP(C261,Events,2,FALSE),FALSE)","v":{"$error":"#N/A"}},null,null,null,null,{"$f":"SUM(E261:H261)","v":0}]
[null,{"$error":"#N/A"},null,{"$error":"#N/A"},null,null,null,null,0]
[null,{"$error":"#N/A"},null,{"$error":"#N/A"},null,null,null,null,0]
[null,{"$error":"#N/A"},null,{"$error":"#N/A"},null,null,null,null,0]
[null,{"$error":"#N/A"},null,{"$error":"#N/A"},null,null,null,null,0]
[null,{"$error":"#N/A"},null,{"$error":"#N/A"},null,null,null,null,0]
[null,{"$error":"#N/A"},null,{"$error":"#N/A"},null,null,null,null,0]
[null,{"$error":"#N/A"},null,{"$error":"#N/A"},null,null,null,null,0]
[null,{"$error":"#N/A"},null,{"$error":"#N/A"},null,null,null,null,0]
[null,{"$error":"#N/A"},null,{"$error":"#N/A"},null,null,null,null,0]
[null,{"$error":"#N/A"},null,{"$error":"#N/A"},null,null,null,null,0]
[null,{"$error":"#N/A"},null,{"$error":"#N/A"},null,null,null,null,0]
[null,{"$error":"#N/A"},null,{"$error":"#N/A"},null,null,null,null,0]
[null,{"$error":"#N/A"},null,{"$error":"#N/A"},null,null,null,null,0]
[null,{"$error":"#N/A"},null,{"$error":"#N/A"},null,null,null,null,0]
[null,{"$error":"#N/A"},null,{"$error":"#N/A"},null,null,null,null,0]
[null,{"$error":"#N/A"},null,{"$error":"#N/A"},null,null,null,null,0]
[null,{"$error":"#N/A"},null,{"$error":"#N/A"},null,null,null,null,0]
[null,{"$error":"#N/A"},null,{"$error":"#N/A"},null,null,null,null,0]
[null,{"$error":"#N/A"},null,{"$error":"#N/A"},null,null,null,null,0]
[null,{"$error":"#N/A"},null,{"$error":"#N/A"},null,null,null,null,0]
[null,{"$error":"#N/A"},null,{"$error":"#N/A"},null,null,null,null,0]
[null,{"$error":"#N/A"},null,{"$error":"#N/A"},null,null,null,null,0]
[null,{"$error":"#N/A"},null,{"$error":"#N/A"},null,null,null,null,0]
[null,{"$error":"#N/A"},null,{"$error":"#N/A"},null,null,null,null,0]
[null,{"$error":"#N/A"},null,{"$error":"#N/A"},null,null,null,null,0]
[null,{"$error":"#N/A"},null,{"$error":"#N/A"},null,null,null,null,0]
[null,{"$error":"#N/A"},null,{"$error":"#N/A"},null,null,null,null,0]
[null,{"$error":"#N/A"},null,{"$error":"#N/A"},null,null,null,null,0]
[null,{"$error":"#N/A"},null,{"$error":"#N/A"},null,null,null,null,0]
[null,{"$error":"#N/A"},null,{"$error":"#N/A"},null,null,null,null,0]
[null,{"$error":"#N/A"},null,{"$error":"#N/A"},null,null,null,null,0]
[null,{"$error":"#N/A"},null,{"$error":"#N/A"},null,null,null,null,0]
[null,{"$error":"#N/A"},null,{"$error":"#N/A"},null,null,null,null,0]
[null,{"$error":"#N/A"},null,{"$error":"#N/A"},null,null,null,null,0]
[null,{"$error":"#N/A"},null,{"$error":"#N/A"},null,null,null,null,0]
[null,{"$error":"#N/A"},null,{"$error":"#N/A"},null,null,null,null,0]
[null,{"$error":"#N/A"},null,{"$error":"#N/A"},null,null,null,null,0]
[null,{"$error":"#N/A"},null,{"$error":"#N/A"},null,null,null,null,0]
[null,{"$error":"#N/A"},null,{"$error":"#N/A"},null,null,null,null,0]
[null,{"$error":"#N/A"},null,{"$error":"#N/A"},null,null,null,null,0]
[null,{"$error":"#N/A"},null,{"$error":"#N/A"},null,null,null,null,0]
[null,{"$error":"#N/A"},null,{"$error":"#N/A"},null,null,null,null,0]
[null,{"$error":"#N/A"},null,{"$error":"#N/A"},null,null,null,null,0]
[null,{"$error":"#N/A"},null,{"$error":"#N/A"},null,null,null,null,0]
[null,{"$error":"#N/A"},null,{"$error":"#N/A"},null,null,null,null,0]
[null,{"$error":"#N/A"},null,{"$error":"#N/A"},null,null,null,null,0]
[null,{"$error":"#N/A"},null,{"$error":"#N/A"},null,null,null,null,0]
[null,{"$error":"#N/A"},null,{"$error":"#N/A"},null,null,null,null,0]
[null,{"$error":"#N/A"},null,{"$error":"#N/A"},null,null,null,null,0]
[null,{"$error":"#N/A"},null,{"$error":"#N/A"},null,null,null,null,0]
[null,{"$error":"#N/A"},null,{"$error":"#N/A"},null,null,null,null,0]
[null,{"$error":"#N/A"},null,{"$error":"#N/A"},null,null,null,null,0]
[null,{"$error":"#N/A"},null,{"$error":"#N/A"},null,null,null,null,0]
[null,{"$error":"#N/A"},null,{"$error":"#N/A"},null,null,null,null,0]
[null,{"$error":"#N/A"},null,{"$error":"#N/A"},null,null,null,null,0]
[null,{"$error":"#N/A"},null,{"$error":"#N/A"},null,null,null,null,0]
[null,{"$error":"#N/A"},null,{"$error":"#N/A"},null,null,null,null,0]
[null,{"$error":"#N/A"},null,{"$error":"#N/A"},null,null,null,null,0]
[null,{"$error":"#N/A"},null,{"$error":"#N/A"},null,null,null,null,0]
[null,{"$error":"#N/A"},null,{"$error":"#N/A"},null,null,null,null,0]
[null,{"$error":"#N/A"},null,{"$error":"#N/A"},null,null,null,null,0]
[null,{"$error":"#N/A"},null,{"$error":"#N/A"},null,null,null,null,0]
[null,{"$error":"#N/A"},null,{"$error":"#N/A"},null,null,null,null,0]
[null,{"$f":"VLOOKUP($A325,Members,2,FALSE)","v":{"$error":"#N/A"}},null,{"$f":"VLOOKUP($A325,Members,VLOOKUP(C325,Events,2,FALSE),FALSE)","v":{"$error":"#N/A"}},null,null,null,null,{"$f":"SUM(E325:H325)","v":0}]
[null,{"$error":"#N/A"},null,{"$error":"#N/A"},null,null,null,null,0]
[null,{"$error":"#N/A"},null,{"$error":"#N/A"},null,null,null,null,0]
[null,{"$error":"#N/A"},null,{"$error":"#N/A"},null,null,null,null,0]
[null,{"$error":"#N/A"},null,{"$error":"#N/A"},null,null,null,null,0]
[null,{"$error":"#N/A"},null,{"$error":"#N/A"},null,null,null,null,0]
[null,{"$error":"#N/A"},null,{"$error":"#N/A"},null,null,null,null,0]
[null,{"$error":"#N/A"},null,{"$error":"#N/A"},null,null,null,null,0]
[null,{"$error":"#N/A"},null,{"$error":"#N/A"},null,null,null,null,0]
[null,{"$error":"#N/A"},null,{"$error":"#N/A"},null,null,null,null,0]
[null,{"$error":"#N/A"},null,{"$error":"#N/A"},null,null,null,null,0]
[null,{"$error":"#N/A"},null,{"$error":"#N/A"},null,null,null,null,0]
[null,{"$error":"#N/A"},null,{"$error":"#N/A"},null,null,null,null,0]
[null,{"$error":"#N/A"},null,{"$error":"#N/A"},null,null,null,null,0]
[null,{"$error":"#N/A"},null,{"$error":"#N/A"},null,null,null,null,0]
[null,{"$error":"#N/A"},null,{"$error":"#N/A"},null,null,null,null,0]
[null,{"$error":"#N/A"},null,{"$error":"#N/A"},null,null,null,null,0]
[null,{"$error":"#N/A"},null,{"$error":"#N/A"},null,null,null,null,0]
[null,{"$error":"#N/A"},null,{"$error":"#N/A"},null,null,null,null,0]
[null,{"$error":"#N/A"},null,{"$error":"#N/A"},null,null,null,null,0]
[null,{"$error":"#N/A"},null,{"$error":"#N/A"},null,null,null,null,0]
[null,{"$error":"#N/A"},null,{"$error":"#N/A"},null,null,null,null,0]
[null,{"$error":"#N/A"},null,{"$error":"#N/A"},null,null,null,null,0]
[null,{"$error":"#N/A"},null,{"$error":"#N/A"},null,null,null,null,0]
[null,{"$error":"#N/A"},null,{"$error":"#N/A"},null,null,null,null,0]
[null,{"$error":"#N/A"},null,{"$error":"#N/A"},null,null,null,null,0]
[null,{"$error":"#N/A"},null,{"$error":"#N/A"},null,null,null,null,0]
[null,{"$error":"#N/A"},null,{"$error":"#N/A"},null,null,null,null,0]
[null,{"$error":"#N/A"},null,{"$error":"#N/A"},null,null,null,null,0]
[null,{"$error":"#N/A"},null,{"$error":"#N/A"},null,null,null,null,0]
[null,{"$error":"#N/A"},null,{"$error":"#N/A"},null,null,null,null,0]
[null,{"$error":"#N/A"},null,{"$error":"#N/A"},null,null,null,null,0]
[null,{"$error":"#N/A"},null,{"$error":"#N/A"},null,null,null,null,0]
[null,{"$error":"#N/A"},null,{"$error":"#N/A"},null,null,null,null,0]
[null,{"$error":"#N/A"},null,{"$error":"#N/A"},null,null,null,null,0]
[null,{"$error":"#N/A"},null,{"$error":"#N/A"},null,null,null,null,0]
[null,{"$error":"#N/A"},null,{"$error":"#N/A"},null,null,null,null,0]
[null,{"$error":"#N/A"},null,{"$error":"#N/A"},null,null,null,null,0]
[null,{"$error":"#N/A"},null,{"$error":"#N/A"},null,null,null,null,0]
[null,{"$error":"#N/A"},null,{"$error":"#N/A"},null,null,null,null,0]
[null,{"$error":"#N/A"},null,{"$error":"#N/A"},null,null,null,null,0]
[null,{"$error":"#N/A"},null,{"$error":"#N/A"},null,null,null,null,0]
[null,{"$error":"#N/A"},null,{"$error":"#N/A"},null,null,null,null,0]
[null,{"$error":"#N/A"},null,{"$error":"#N/A"},null,null,null,null,0]
[null,{"$error":"#N/A"},null,{"$error":"#N/A"},null,null,null,null,0]
[null,{"$error":"#N/A"},null,{"$error":"#N/A"},null,null,null,null,0]
[null,{"$error":"#N/A"},null,{"$error":"#N/A"},null,null,null,null,0]
[null,{"$error":"#N/A"},null,{"$error":"#N/A"},null,null,null,null,0]
[null,{"$error":"#N/A"},null,{"$error":"#N/A"},null,null,null,null,0]
[null,{"$error":"#N/A"},null,{"$error":"#N/A"},null,null,null,null,0]
[null,{"$error":"#N/A"},null,{"$error":"#N/A"},null,null,null,null,0]
[null,{"$error":"#N/A"},null,{"$error":"#N/A"},null,null,null,null,0]
[null,{"$error":"#N/A"},null,{"$error":"#N/A"},null,null,null,null,0]
[null,{"$error":"#N/A"},null,{"$error":"#N/A"},null,null,null,null,0]
[null,{"$error":"#N/A"},null,{"$error":"#N/A"},null,null,null,null,0]
[null,{"$error":"#N/A"},null,{"$error":"#N/A"},null,null,null,null,0]
[null,{"$error":"#N/A"},null,{"$error":"#N/A"},null,null,null,null,0]
[null,{"$error":"#N/A"},null,{"$error":"#N/A"},null,null,null,null,0]
[null,{"$error":"#N/A"},null,{"$error":"#N/A"},null,null,null,null,0]
[null,{"$error":"#N/A"},null,{"$error":"#N/A"},null,null,null,null,0]
[null,{"$error":"#N/A"},null,{"$error":"#N/A"},null,null,null,null,0]
[null,{"$error":"#N/A"},null,{"$error":"#N/A"},null,null,null,null,0]
[null,{"$error":"#N/A"},null,{"$error":"#N/A"},null,null,null,null,0]
[null,{"$error":"#N/A"},null,{"$error":"#N/A"},null,null,null,null,0]
[null,{"$f":"VLOOKUP($A389,Members,2,FALSE)","v":{"$error":"#N/A"}},null,{"$f":"VLOOKUP($A389,Members,VLOOKUP(C389,Events,2,FALSE),FALSE)","v":{"$error":"#N/A"}},null,null,null,null,{"$f":"SUM(E389:H389)","v":0}]
[null,{"$error":"#N/A"},null,{"$error":"#N/A"},null,null,null,null,0]
[null,{"$error":"#N/A"},null,{"$error":"#N/A"},null,null,null,null,0]
[null,{"$error":"#N/A"},null,{"$error":"#N/A"},null,null,null,null,0]
[null,{"$error":"#N/A"},null,{"$error":"#N/A"},null,null,null,null,0]
[null,{"$error":"#N/A"},null,{"$error":"#N/A"},null,null,null,null,0]
[null,{"$error":"#N/A"},null,{"$error":"#N/A"},null,null,null,null,0]
[null,{"$error":"#N/A"},null,{"$error":"#N/A"},null,null,null,null,0]
[null,{"$error":"#N/A"},null,{"$error":"#N/A"},null,null,null,null,0]
[null,{"$error":"#N/A"},null,{"$error":"#N/A"},null,null,null,null,0]
[null,{"$error":"#N/A"},null,{"$error":"#N/A"},null,null,null,null,0]
[null,{"$error":"#N/A"},null,{"$error":"#N/A"},null,null,null,null,0]
[null,{"$error":"#N/A"},null,{"$error":"#N/A"},null,null,null,null,0]
[null,{"$error":"#N/A"},null,{"$error":"#N/A"},null,null,null,null,0]
[null,{"$error":"#N/A"},null,{"$error":"#N/A"},null,null,null,null,0]
[null,{"$error":"#N/A"},null,{"$error":"#N/A"},null,null,null,null,0]
[null,{"$error":"#N/A"},null,{"$error":"#N/A"},null,null,null,null,0]
[null,{"$error":"#N/A"},null,{"$error":"#N/A"},null,null,null,null,0]
[null,{"$error":"#N/A"},null,{"$error":"#N/A"},null,null,null,null,0]
[null,{"$error":"#N/A"},null,{"$error":"#N/A"},null,null,null,null,0]
[null,{"$error":"#N/A"},null,{"$error":"#N/A"},null,null,null,null,0]
[null,{"$error":"#N/A"},null,{"$error":"#N/A"},null,null,null,null,0]
[null,{"$error":"#N/A"},null,{"$error":"#N/A"},null,null,null,null,0]
[null,{"$error":"#N/A"},null,{"$error":"#N/A"},null,null,null,null,0]
[null,{"$error":"#N/A"},null,{"$error":"#N/A"},null,null,null,null,0]
[null,{"$error":"#N/A"},null,{"$error":"#N/A"},null,null,null,null,0]
[null,{"$error":"#N/A"},null,{"$error":"#N/A"},null,null,null,null,0]
[null,{"$error":"#N/A"},null,{"$error":"#N/A"},null,null,null,null,0]
[null,{"$error":"#N/A"},null,{"$error":"#N/A"},null,null,null,null,0]
[null,{"$error":"#N/A"},null,{"$error":"#N/A"},null,null,null,null,0]
[null,{"$error":"#N/A"},null,{"$error":"#N/A"},null,null,null,null,0]
[null,{"$error":"#N/A"},null,{"$error":"#N/A"},null,null,null,null,0]
[null,{"$error":"#N/A"},null,{"$error":"#N/A"},null,null,null,null,0]
[null,{"$error":"#N/A"},null,{"$error":"#N/A"},null,null,null,null,0]
[null,{"$error":"#N/A"},null,{"$error":"#N/A"},null,null,null,null,0]
[null,{"$error":"#N/A"},null,{"$error":"#N/A"},null,null,null,null,0]
[null,{"$error":"#N/A"},null,{"$error":"#N/A"},null,null,null,null,0]
[null,{"$error":"#N/A"},null,{"$error":"#N/A"},null,null,null,null,0]
[null,{"$error":"#N/A"},null,{"$error":"#N/A"},null,null,null,null,0]
[null,{"$error":"#N/A"},null,{"$error":"#N/A"},null,null,null,null,0]
[null,{"$error":"#N/A"},null,{"$error":"#N/A"},null,null,null,null,0]
[null,{"$error":"#N/A"},null,{"$error":"#N/A"},null,null,null,null,0]
[null,{"$error":"#N/A"},null,{"$error":"#N/A"},null,null,null,null,0]
[null,{"$error":"#N/A"},null,{"$error":"#N/A"},null,null,null,null,0]
[null,{"$error":"#N/A"},null,{"$error":"#N/A"},null,null,null,null,0]
[null,{"$error":"#N/A"},null,{"$error":"#N/A"},null,null,null,null,0]
[null,{"$error":"#N/A"},null,{"$error":"#N/A"},null,null,null,null,0]
[null,{"$error":"#N/A"},null,{"$error":"#N/A"},null,null,null,null,0]
[null,{"$error":"#N/A"},null,{"$error":"#N/A"},null,null,null,null,0]
[null,{"$error":"#N/A"},null,{"$error":"#N/A"},null,null,null,null,0]
[null,{"$error":"#N/A"},null,{"$error":"#N/A"},null,null,null,null,0]
[null,{"$error":"#N/A"},null,{"$error":"#N/A"},null,null,null,null,0]
[null,{"$error":"#N/A"},null,{"$error":"#N/A"},null,null,null,null,0]
[null,{"$error":"#N/A"},null,{"$error":"#N/A"},null,null,null,null,0]
[null,{"$error":"#N/A"},null,{"$error":"#N/A"},null,null,null,null,0]
[null,{"$error":"#N/A"},null,{"$error":"#N/A"},null,null,null,null,0]
[null,{"$error":"#N/A"},null,{"$error":"#N/A"},null,null,null,null,0]
[null,{"$error":"#N/A"},null,{"$error":"#N/A"},null,null,null,null,0]
[null,{"$error":"#N/A"},null,{"$error":"#N/A"},null,null,null,null,0]
[null,{"$error":"#N/A"},null,{"$error":"#N/A"},null,null,null,null,0]
[null,{"$error":"#N/A"},null,{"$error":"#N/A"},null,null,null,null,0]
[null,{"$error":"#N/A"},null,{"$error":"#N/A"},null,null,null,null,0]
[null,{"$error":"#N/A"},null,{"$error":"#N/A"},null,null,null,null,0]
[null,{"$error":"#N/A"},null,{"$error":"#N/A"},null,null,null,null,0]
[null,{"$f":"VLOOKUP($A453,Members,2,FALSE)","v":{"$error":"#N/A"}},null,{"$f":"VLOOKUP($A453,Members,VLOOKUP(C453,Events,2,FALSE),FALSE)","v":{"$error":"#N/A"}},null,null,null,null,{"$f":"SUM(E453:H453)","v":0}]
[null,{"$error":"#N/A"},null,{"$error":"#N/A"},null,null,null,null,0]
[null,{"$error":"#N/A"},null,{"$error":"#N/A"},null,null,null,null,0]
[null,{"$error":"#N/A"},null,{"$error":"#N/A"},null,null,null,null,0]
[null,{"$error":"#N/A"},null,{"$error":"#N/A"},null,null,null,null,0]
[null,{"$error":"#N/A"},null,{"$error":"#N/A"},null,null,null,null,0]
[null,{"$error":"#N/A"},null,{"$error":"#N/A"},null,null,null,null,0]
[null,{"$error":"#N/A"},null,{"$error":"#N/A"},null,null,null,null,0]
[null,{"$error":"#N/A"},null,{"$error":"#N/A"},null,null,null,null,0]
[null,{"$error":"#N/A"},null,{"$error":"#N/A"},null,null,null,null,0]
[null,{"$error":"#N/A"},null,{"$error":"#N/A"},null,null,null,null,0]
[null,{"$error":"#N/A"},null,{"$error":"#N/A"},null,null,null,null,0]
[null,{"$error":"#N/A"},null,{"$error":"#N/A"},null,null,null,null,0]
[null,{"$error":"#N/A"},null,{"$error":"#N/A"},null,null,null,null,0]
[null,{"$error":"#N/A"},null,{"$error":"#N/A"},null,null,null,null,0]
[null,{"$error":"#N/A"},null,{"$error":"#N/A"},null,null,null,null,0]
[null,{"$error":"#N/A"},null,{"$error":"#N/A"},null,null,null,null,0]
[null,{"$error":"#N/A"},null,{"$error":"#N/A"},null,null,null,null,0]
[null,{"$error":"#N/A"},null,{"$error":"#N/A"},null,null,null,null,0]
[null,{"$error":"#N/A"},null,{"$error":"#N/A"},null,null,null,null,0]
[null,{"$error":"#N/A"},null,{"$error":"#N/A"},null,null,null,null,0]
[null,{"$error":"#N/A"},null,{"$error":"#N/A"},null,null,null,null,0]
[null,{"$error":"#N/A"},null,{"$error":"#N/A"},null,null,null,null,0]
[null,{"$error":"#N/A"},null,{"$error":"#N/A"},null,null,null,null,0]
[null,{"$error":"#N/A"},null,{"$error":"#N/A"},null,null,null,null,0]
[null,{"$error":"#N/A"},null,{"$error":"#N/A"},null,null,null,null,0]
[null,{"$error":"#N/A"},null,{"$error":"#N/A"},null,null,null,null,0]
[null,{"$error":"#N/A"},null,{"$error":"#N/A"},null,null,null,null,0]
[null,{"$error":"#N/A"},null,{"$error":"#N/A"},null,null,null,null,0]
[null,{"$error":"#N/A"},null,{"$error":"#N/A"},null,null,null,null,0]
[null,{"$error":"#N/A"},null,{"$error":"#N/A"},null,null,null,null,0]
[null,{"$error":"#N/A"},null,{"$error":"#N/A"},null,null,null,null,0]
[null,{"$error":"#N/A"},null,{"$error":"#N/A"},null,null,null,null,0]
[null,{"$error":"#N/A"},null,{"$error":"#N/A"},null,null,null,null,0]
[null,{"$error":"#N/A"},null,{"$error":"#N/A"},null,null,null,null,0]
[null,{"$error":"#N/A"},null,{"$error":"#N/A"},null,null,null,null,0]
[null,{"$error":"#N/A"},null,{"$error":"#N/A"},null,null,null,null,0]
[null,{"$error":"#N/A"},null,{"$error":"#N/A"},null,null,null,null,0]
[null,{"$error":"#N/A"},null,{"$error":"#N/A"},null,null,null,null,0]
[null,{"$error":"#N/A"},null,{"$error":"#N/A"},null,null,null,null,0]
[null,{"$error":"#N/A"},null,{"$error":"#N/A"},null,null,null,null,0]
[null,{"$error":"#N/A"},null,{"$error":"#N/A"},null,null,null,null,0]
[null,{"$error":"#N/A"},null,{"$error":"#N/A"},null,null,null,null,0]
[null,{"$error":"#N/A"},null,{"$error":"#N/A"},null,null,null,null,0]
[null,{"$error":"#N/A"},null,{"$error":"#N/A"},null,null,null,null,0]
[null,{"$error":"#N/A"},null,{"$error":"#N/A"},null,null,null,null,0]
[null,{"$error":"#N/A"},null,{"$error":"#N/A"},null,null,null,null,0]
[null,{"$error":"#N/A"},null,{"$error":"#N/A"},null,null,null,null,0]
[null,{"$error":"#N/A"},null,{"$error":"#N/A"},null,null,null,null,0]
[null,{"$error":"#N/A"},null,{"$error":"#N/A"},null,null,null,null,0]
[null,{"$error":"#N/A"},null,{"$error":"#N/A"},null,null,null,null,0]
[null,{"$error":"#N/A"},null,{"$error":"#N/A"},null,null,null,null,0]
[null,{"$error":"#N/A"},null,{"$error":"#N/A"},null,null,null,null,0]
[null,{"$error":"#N/A"},null,{"$error":"#N/A"},null,null,null,null,0]
[null,{"$error":"#N/A"},null,{"$error":"#N/A"},null,null,null,null,0]
[null,{"$error":"#N/A"},null,{"$error":"#N/A"},null,null,null,null,0]
[null,{"$error":"#N/A"},null,{"$error":"#N/A"},null,null,null,null,0]
[null,{"$error":"#N/A"},null,{"$error":"#N/A"},null,null,null,null,0]
[null,{"$error":"#N/A"},null,{"$error":"#N/A"},null,null,null,null,0]
[null,{"$error":"#N/A"},null,{"$error":"#N/A"},null,null,null,null,0]
[null,{"$error":"#N/A"},null,{"$error":"#N/A"},null,null,null,null,0]
[null,{"$error":"#N/A"},null,{"$error":"#N/A"},null,null,null,null,0]
[null,{"$error":"#N/A"},null,{"$error":"#N/A"},null,null,null,null,0]
[null,{"$error":"#N/A"},null,{"$error":"#N/A"},null,null,null,null,0]
[null,{"$f":"VLOOKUP($A517,Members,2,FALSE)","v":{"$error":"#N/A"}},null,{"$f":"VLOOKUP($A517,Members,VLOOKUP(C517,Events,2,FALSE),FALSE)","v":{"$error":"#N/A"}},null,null,null,null,{"$f":"SUM(E517:H517)","v":0}]
[null,{"$error":"#N/A"},null,{"$error":"#N/A"},null,null,null,null,0]
[null,{"$error":"#N/A"},null,{"$error":"#N/A"},null,null,null,null,0]
[null,{"$error":"#N/A"},null,{"$error":"#N/A"},null,null,null,null,0]
[null,{"$error":"#N/A"},null,{"$error":"#N/A"},null,null,null,null,0]
[null,{"$error":"#N/A"},null,{"$error":"#N/A"},null,null,null,null,0]
[null,{"$error":"#N/A"},null,{"$error":"#N/A"},null,null,null,null,0]
[null,{"$error":"#N/A"},null,{"$error":"#N/A"},null,null,null,null,0]
[null,{"$error":"#N/A"},null,{"$error":"#N/A"},null,null,null,null,0]
[null,{"$error":"#N/A"},null,{"$error":"#N/A"},null,null,null,null,0]
[null,{"$error":"#N/A"},null,{"$error":"#N/A"},null,null,null,null,0]
[null,{"$error":"#N/A"},null,{"$error":"#N/A"},null,null,null,null,0]
[null,{"$error":"#N/A"},null,{"$error":"#N/A"},null,null,null,null,0]
[null,{"$error":"#N/A"},null,{"$error":"#N/A"},null,null,null,null,0]
[null,{"$error":"#N/A"},null,{"$error":"#N/A"},null,null,null,null,0]
[null,{"$error":"#N/A"},null,{"$error":"#N/A"},null,null,null,null,0]
[null,{"$error":"#N/A"},null,{"$error":"#N/A"},null,null,null,null,0]
[null,{"$error":"#N/A"},null,{"$error":"#N/A"},null,null,null,null,0]
[null,{"$error":"#N/A"},null,{"$error":"#N/A"},null,null,null,null,0]
[null,{"$error":"#N/A"},null,{"$error":"#N/A"},null,null,null,null,0]
[null,{"$error":"#N/A"},null,{"$error":"#N/A"},null,null,null,null,0]
[null,{"$error":"#N/A"},null,{"$error":"#N/A"},null,null,null,null,0]
[null,{"$error":"#N/A"},null,{"$error":"#N/A"},null,null,null,null,0]
[null,{"$error":"#N/A"},null,{"$error":"#N/A"},null,null,null,null,0]
[null,{"$error":"#N/A"},null,{"$error":"#N/A"},null,null,null,null,0]
[null,{"$error":"#N/A"},null,{"$error":"#N/A"},null,null,null,null,0]
[null,{"$error":"#N/A"},null,{"$error":"#N/A"},null,null,null,null,0]
[null,{"$error":"#N/A"},null,{"$error":"#N/A"},null,null,null,null,0]
[null,{"$error":"#N/A"},null,{"$error":"#N/A"},null,null,null,null,0]
[null,{"$error":"#N/A"},null,{"$error":"#N/A"},null,null,null,null,0]
[null,{"$error":"#N/A"},null,{"$error":"#N/A"},null,null,null,null,0]
[null,{"$error":"#N/A"},null,{"$error":"#N/A"},null,null,null,null,0]
[null,{"$error":"#N/A"},null,{"$error":"#N/A"},null,null,null,null,0]
[null,{"$error":"#N/A"},null,{"$error":"#N/A"},null,null,null,null,0]
[null,{"$error":"#N/A"},null,{"$error":"#N/A"},null,null,null,null,0]
[null,{"$error":"#N/A"},null,{"$error":"#N/A"},null,null,null,null,0]
[null,{"$error":"#N/A"},null,{"$error":"#N/A"},null,null,null,null,0]
[null,{"$error":"#N/A"},null,{"$error":"#N/A"},null,null,null,null,0]
[null,{"$error":"#N/A"},null,{"$error":"#N/A"},null,null,null,null,0]
[null,{"$error":"#N/A"},null,{"$error":"#N/A"},null,null,null,null,0]
[null,{"$error":"#N/A"},null,{"$error":"#N/A"},null,null,null,null,0]
[null,{"$error":"#N/A"},null,{"$error":"#N/A"},null,null,null,null,0]
[null,{"$error":"#N/A"},null,{"$error":"#N/A"},null,null,null,null,0]
[null,{"$error":"#N/A"},null,{"$error":"#N/A"},null,null,null,null,0]
[null,{"$error":"#N/A"},null,{"$error":"#N/A"},null,null,null,null,0]
[null,{"$error":"#N/A"},null,{"$error":"#N/A"},null,null,null,null,0]
[null,{"$error":"#N/A"},null,{"$error":"#N/A"},null,null,null,null,0]
[null,{"$error":"#N/A"},null,{"$error":"#N/A"},null,null,null,null,0]
[null,{"$error":"#N/A"},null,{"$error":"#N/A"},null,null,null,null,0]
[null,{"$error":"#N/A"},null,{"$error":"#N/A"},null,null,null,null,0]
[null,{"$error":"#N/A"},null,{"$error":"#N/A"},null,null,null,null,0]
[null,{"$error":"#N/A"},null,{"$error":"#N/A"},null,null,null,null,0]
[null,{"$error":"#N/A"},null,{"$error":"#N/A"},null,null,null,null,0]
[null,{"$error":"#N/A"},null,{"$error":"#N/A"},null,null,null,null,0]
[null,{"$error":"#N/A"},null,{"$error":"#N/A"},null,null,null,null,0]
[null,{"$error":"#N/A"},null,{"$error":"#N/A"},null,null,null,null,0]
[null,{"$error":"#N/A"},null,{"$error":"#N/A"},null,null,null,null,0]
[null,{"$error":"#N/A"},null,{"$error":"#N/A"},null,null,null,null,0]
[null,{"$error":"#N/A"},null,{"$error":"#N/A"},null,null,null,null,0]
[null,{"$error":"#N/A"},null,{"$error":"#N/A"},null,null,null,null,0]
[null,{"$error":"#N/A"},null,{"$error":"#N/A"},null,null,null,null,0]
[null,{"$error":"#N/A"},null,{"$error":"#N/A"},null,null,null,null,0]
[null,{"$error":"#N/A"},null,{"$error":"#N/A"},null,null,null,null,0]
[null,{"$error":"#N/A"},null,{"$error":"#N/A"},null,null,null,null,0]
[null,{"$f":"VLOOKUP($A581,Members,2,FALSE)","v":{"$error":"#N/A"}},null,{"$f":"VLOOKUP($A581,Members,VLOOKUP(C581,Events,2,FALSE),FALSE)","v":{"$error":"#N/A"}},null,null,null,null,{"$f":"SUM(E581:H581)","v":0}]
[null,{"$error":"#N/A"},null,{"$error":"#N/A"},null,null,null,null,0]
[null,{"$error":"#N/A"},null,{"$error":"#N/A"},null,null,null,null,0]
[null,{"$error":"#N/A"},null,{"$error":"#N/A"},null,null,null,null,0]
[null,{"$error":"#N/A"},null,{"$error":"#N/A"},null,null,null,null,0]
[null,{"$error":"#N/A"},null,{"$error":"#N/A"},null,null,null,null,0]
[null,{"$error":"#N/A"},null,{"$error":"#N/A"},null,null,null,null,0]
[null,{"$error":"#N/A"},null,{"$error":"#N/A"},null,null,null,null,0]
[null,{"$error":"#N/A"},null,{"$error":"#N/A"},null,null,null,null,0]
[null,{"$error":"#N/A"},null,{"$error":"#N/A"},null,null,null,null,0]
[null,{"$error":"#N/A"},null,{"$error":"#N/A"},null,null,null,null,0]
[null,{"$error":"#N/A"},null,{"$error":"#N/A"},null,null,null,null,0]
[null,{"$error":"#N/A"},null,{"$error":"#N/A"},null,null,null,null,0]
[null,{"$error":"#N/A"},null,{"$error":"#N/A"},null,null,null,null,0]

{"sheet":"Competitor Scores","index":6,"n_rows":594,"n_cols":9,"rows_kept":594,"cut":false,"hidden":false,"merged":[[0,2,0,5],[1,3,1,5],[1,7,1,8],[2,0,2,8]]}
[null,null,"Handgun Metallic Silhouette"]
["Range:","Tokoroa","Competition:","Nationals 2018",null,null,"Date:","2018-11-01"]
[]
["PNZ No.","Name","Event","Class","C","P","T","R","Total"]
[null,{"$f":"VLOOKUP($A5,Members,2,FALSE)","v":{"$error":"#N/A"}},null,{"$f":"VLOOKUP($A5,Members,VLOOKUP(C5,Events,2,FALSE),FALSE)","v":{"$error":"#N/A"}},null,null,null,null,{"$f":"SUM(E5:H5)","v":0}]
[null,{"$error":"#N/A"},null,{"$error":"#N/A"},null,null,null,null,0]
[null,{"$error":"#N/A"},null,{"$error":"#N/A"},null,null,null,null,0]
[null,{"$error":"#N/A"},null,{"$error":"#N/A"},null,null,null,null,0]
[null,{"$error":"#N/A"},null,{"$error":"#N/A"},null,null,null,null,0]
[null,{"$error":"#N/A"},null,{"$error":"#N/A"},null,null,null,null,0]
[null,{"$error":"#N/A"},null,{"$error":"#N/A"},null,null,null,null,0]
[null,{"$error":"#N/A"},null,{"$error":"#N/A"},null,null,null,null,0]
[null,{"$error":"#N/A"},null,{"$error":"#N/A"},null,null,null,null,0]
[null,{"$error":"#N/A"},null,{"$error":"#N/A"},null,null,null,null,0]
[null,{"$error":"#N/A"},null,{"$error":"#N/A"},null,null,null,null,0]
[null,{"$error":"#N/A"},null,{"$error":"#N/A"},null,null,null,null,0]
[null,{"$error":"#N/A"},null,{"$error":"#N/A"},null,null,null,null,0]
[null,{"$error":"#N/A"},null,{"$error":"#N/A"},null,null,null,null,0]
[null,{"$error":"#N/A"},null,{"$error":"#N/A"},null,null,null,null,0]
[null,{"$error":"#N/A"},null,{"$error":"#N/A"},null,null,null,null,0]
[null,{"$error":"#N/A"},null,{"$error":"#N/A"},null,null,null,null,0]
[null,{"$error":"#N/A"},null,{"$error":"#N/A"},null,null,null,null,0]
[null,{"$error":"#N/A"},null,{"$error":"#N/A"},null,null,null,null,0]
[null,{"$error":"#N/A"},null,{"$error":"#N/A"},null,null,null,null,0]
[null,{"$error":"#N/A"},null,{"$error":"#N/A"},null,null,null,null,0]
[null,{"$error":"#N/A"},null,{"$error":"#N/A"},null,null,null,null,0]
[null,{"$error":"#N/A"},null,{"$error":"#N/A"},null,null,null,null,0]
[null,{"$error":"#N/A"},null,{"$error":"#N/A"},null,null,null,null,0]
[null,{"$error":"#N/A"},null,{"$error":"#N/A"},null,null,null,null,0]
[null,{"$error":"#N/A"},null,{"$error":"#N/A"},null,null,null,null,0]
[null,{"$error":"#N/A"},null,{"$error":"#N/A"},null,null,null,null,0]
[null,{"$error":"#N/A"},null,{"$error":"#N/A"},null,null,null,null,0]
[null,{"$error":"#N/A"},null,{"$error":"#N/A"},null,null,null,null,0]
[null,{"$error":"#N/A"},null,{"$error":"#N/A"},null,null,null,null,0]
[null,{"$error":"#N/A"},null,{"$error":"#N/A"},null,null,null,null,0]
[null,{"$error":"#N/A"},null,{"$error":"#N/A"},null,null,null,null,0]
[null,{"$error":"#N/A"},null,{"$error":"#N/A"},null,null,null,null,0]
[null,{"$error":"#N/A"},null,{"$error":"#N/A"},null,null,null,null,0]
[null,{"$error":"#N/A"},null,{"$error":"#N/A"},null,null,null,null,0]
[null,{"$error":"#N/A"},null,{"$error":"#N/A"},null,null,null,null,0]
[null,{"$error":"#N/A"},null,{"$error":"#N/A"},null,null,null,null,0]
[null,{"$error":"#N/A"},null,{"$error":"#N/A"},null,null,null,null,0]
[null,{"$error":"#N/A"},null,{"$error":"#N/A"},null,null,null,null,0]
[null,{"$error":"#N/A"},null,{"$error":"#N/A"},null,null,null,null,0]
[null,{"$error":"#N/A"},null,{"$error":"#N/A"},null,null,null,null,0]
[null,{"$error":"#N/A"},null,{"$error":"#N/A"},null,null,null,null,0]
[null,{"$error":"#N/A"},null,{"$error":"#N/A"},null,null,null,null,0]
[null,{"$error":"#N/A"},null,{"$error":"#N/A"},null,null,null,null,0]
[null,{"$error":"#N/A"},null,{"$error":"#N/A"},null,null,null,null,0]
[null,{"$error":"#N/A"},null,{"$error":"#N/A"},null,null,null,null,0]
[null,{"$error":"#N/A"},null,{"$error":"#N/A"},null,null,null,null,0]
[null,{"$error":"#N/A"},null,{"$error":"#N/A"},null,null,null,null,0]
[null,{"$error":"#N/A"},null,{"$error":"#N/A"},null,null,null,null,0]
[null,{"$error":"#N/A"},null,{"$error":"#N/A"},null,null,null,null,0]
[null,{"$error":"#N/A"},null,{"$error":"#N/A"},null,null,null,null,0]
[null,{"$error":"#N/A"},null,{"$error":"#N/A"},null,null,null,null,0]
[null,{"$error":"#N/A"},null,{"$error":"#N/A"},null,null,null,null,0]
[null,{"$error":"#N/A"},null,{"$error":"#N/A"},null,null,null,null,0]
[null,{"$error":"#N/A"},null,{"$error":"#N/A"},null,null,null,null,0]
[null,{"$error":"#N/A"},null,{"$error":"#N/A"},null,null,null,null,0]
[null,{"$error":"#N/A"},null,{"$error":"#N/A"},null,null,null,null,0]
[null,{"$error":"#N/A"},null,{"$error":"#N/A"},null,null,null,null,0]
[null,{"$error":"#N/A"},null,{"$error":"#N/A"},null,null,null,null,0]
[null,{"$error":"#N/A"},null,{"$error":"#N/A"},null,null,null,null,0]
[null,{"$error":"#N/A"},null,{"$error":"#N/A"},null,null,null,null,0]
[null,{"$error":"#N/A"},null,{"$error":"#N/A"},null,null,null,null,0]
[null,{"$error":"#N/A"},null,{"$error":"#N/A"},null,null,null,null,0]
[null,{"$error":"#N/A"},null,{"$error":"#N/A"},null,null,null,null,0]
[null,{"$f":"VLOOKUP($A69,Members,2,FALSE)","v":{"$error":"#N/A"}},null,{"$f":"VLOOKUP($A69,Members,VLOOKUP(C69,Events,2,FALSE),FALSE)","v":{"$error":"#N/A"}},null,null,null,null,{"$f":"SUM(E69:H69)","v":0}]
[null,{"$error":"#N/A"},null,{"$error":"#N/A"},null,null,null,null,0]
[null,{"$error":"#N/A"},null,{"$error":"#N/A"},null,null,null,null,0]
[null,{"$error":"#N/A"},null,{"$error":"#N/A"},null,null,null,null,0]
[null,{"$error":"#N/A"},null,{"$error":"#N/A"},null,null,null,null,0]
[null,{"$error":"#N/A"},null,{"$error":"#N/A"},null,null,null,null,0]
[null,{"$error":"#N/A"},null,{"$error":"#N/A"},null,null,null,null,0]
[null,{"$error":"#N/A"},null,{"$error":"#N/A"},null,null,null,null,0]
[null,{"$error":"#N/A"},null,{"$error":"#N/A"},null,null,null,null,0]
[null,{"$error":"#N/A"},null,{"$error":"#N/A"},null,null,null,null,0]
[null,{"$error":"#N/A"},null,{"$error":"#N/A"},null,null,null,null,0]
[null,{"$error":"#N/A"},null,{"$error":"#N/A"},null,null,null,null,0]
[null,{"$error":"#N/A"},null,{"$error":"#N/A"},null,null,null,null,0]
[null,{"$error":"#N/A"},null,{"$error":"#N/A"},null,null,null,null,0]
[null,{"$error":"#N/A"},null,{"$error":"#N/A"},null,null,null,null,0]
[null,{"$error":"#N/A"},null,{"$error":"#N/A"},null,null,null,null,0]
[null,{"$error":"#N/A"},null,{"$error":"#N/A"},null,null,null,null,0]
[null,{"$error":"#N/A"},null,{"$error":"#N/A"},null,null,null,null,0]
[null,{"$error":"#N/A"},null,{"$error":"#N/A"},null,null,null,null,0]
[null,{"$error":"#N/A"},null,{"$error":"#N/A"},null,null,null,null,0]
[null,{"$error":"#N/A"},null,{"$error":"#N/A"},null,null,null,null,0]
[null,{"$error":"#N/A"},null,{"$error":"#N/A"},null,null,null,null,0]
[null,{"$error":"#N/A"},null,{"$error":"#N/A"},null,null,null,null,0]
[null,{"$error":"#N/A"},null,{"$error":"#N/A"},null,null,null,null,0]
[null,{"$error":"#N/A"},null,{"$error":"#N/A"},null,null,null,null,0]
[null,{"$error":"#N/A"},null,{"$error":"#N/A"},null,null,null,null,0]
[null,{"$error":"#N/A"},null,{"$error":"#N/A"},null,null,null,null,0]
[null,{"$error":"#N/A"},null,{"$error":"#N/A"},null,null,null,null,0]
[null,{"$error":"#N/A"},null,{"$error":"#N/A"},null,null,null,null,0]
[null,{"$error":"#N/A"},null,{"$error":"#N/A"},null,null,null,null,0]
[null,{"$error":"#N/A"},null,{"$error":"#N/A"},null,null,null,null,0]
[null,{"$error":"#N/A"},null,{"$error":"#N/A"},null,null,null,null,0]
[null,{"$error":"#N/A"},null,{"$error":"#N/A"},null,null,null,null,0]
[null,{"$error":"#N/A"},null,{"$error":"#N/A"},null,null,null,null,0]
[null,{"$error":"#N/A"},null,{"$error":"#N/A"},null,null,null,null,0]
[null,{"$error":"#N/A"},null,{"$error":"#N/A"},null,null,null,null,0]
[null,{"$error":"#N/A"},null,{"$error":"#N/A"},null,null,null,null,0]
[null,{"$error":"#N/A"},null,{"$error":"#N/A"},null,null,null,null,0]
[null,{"$error":"#N/A"},null,{"$error":"#N/A"},null,null,null,null,0]
[null,{"$error":"#N/A"},null,{"$error":"#N/A"},null,null,null,null,0]
[null,{"$error":"#N/A"},null,{"$error":"#N/A"},null,null,null,null,0]
[null,{"$error":"#N/A"},null,{"$error":"#N/A"},null,null,null,null,0]
[null,{"$error":"#N/A"},null,{"$error":"#N/A"},null,null,null,null,0]
[null,{"$error":"#N/A"},null,{"$error":"#N/A"},null,null,null,null,0]
[null,{"$error":"#N/A"},null,{"$error":"#N/A"},null,null,null,null,0]
[null,{"$error":"#N/A"},null,{"$error":"#N/A"},null,null,null,null,0]
[null,{"$error":"#N/A"},null,{"$error":"#N/A"},null,null,null,null,0]
[null,{"$error":"#N/A"},null,{"$error":"#N/A"},null,null,null,null,0]
[null,{"$error":"#N/A"},null,{"$error":"#N/A"},null,null,null,null,0]
[null,{"$error":"#N/A"},null,{"$error":"#N/A"},null,null,null,null,0]
[null,{"$error":"#N/A"},null,{"$error":"#N/A"},null,null,null,null,0]
[null,{"$error":"#N/A"},null,{"$error":"#N/A"},null,null,null,null,0]
[null,{"$error":"#N/A"},null,{"$error":"#N/A"},null,null,null,null,0]
[null,{"$error":"#N/A"},null,{"$error":"#N/A"},null,null,null,null,0]
[null,{"$error":"#N/A"},null,{"$error":"#N/A"},null,null,null,null,0]
[null,{"$error":"#N/A"},null,{"$error":"#N/A"},null,null,null,null,0]
[null,{"$error":"#N/A"},null,{"$error":"#N/A"},null,null,null,null,0]
[null,{"$error":"#N/A"},null,{"$error":"#N/A"},null,null,null,null,0]
[null,{"$error":"#N/A"},null,{"$error":"#N/A"},null,null,null,null,0]
[null,{"$error":"#N/A"},null,{"$error":"#N/A"},null,null,null,null,0]
[null,{"$error":"#N/A"},null,{"$error":"#N/A"},null,null,null,null,0]
[null,{"$error":"#N/A"},null,{"$error":"#N/A"},null,null,null,null,0]
[null,{"$error":"#N/A"},null,{"$error":"#N/A"},null,null,null,null,0]
[null,{"$error":"#N/A"},null,{"$error":"#N/A"},null,null,null,null,0]
[null,{"$f":"VLOOKUP($A133,Members,2,FALSE)","v":{"$error":"#N/A"}},null,{"$f":"VLOOKUP($A133,Members,VLOOKUP(C133,Events,2,FALSE),FALSE)","v":{"$error":"#N/A"}},null,null,null,null,{"$f":"SUM(E133:H133)","v":0}]
[null,{"$error":"#N/A"},null,{"$error":"#N/A"},null,null,null,null,0]
[null,{"$error":"#N/A"},null,{"$error":"#N/A"},null,null,null,null,0]
[null,{"$error":"#N/A"},null,{"$error":"#N/A"},null,null,null,null,0]
[null,{"$error":"#N/A"},null,{"$error":"#N/A"},null,null,null,null,0]
[null,{"$error":"#N/A"},null,{"$error":"#N/A"},null,null,null,null,0]
[null,{"$error":"#N/A"},null,{"$error":"#N/A"},null,null,null,null,0]
[null,{"$error":"#N/A"},null,{"$error":"#N/A"},null,null,null,null,0]
[null,{"$error":"#N/A"},null,{"$error":"#N/A"},null,null,null,null,0]
[null,{"$error":"#N/A"},null,{"$error":"#N/A"},null,null,null,null,0]
[null,{"$error":"#N/A"},null,{"$error":"#N/A"},null,null,null,null,0]
[null,{"$error":"#N/A"},null,{"$error":"#N/A"},null,null,null,null,0]
[null,{"$error":"#N/A"},null,{"$error":"#N/A"},null,null,null,null,0]
[null,{"$error":"#N/A"},null,{"$error":"#N/A"},null,null,null,null,0]
[null,{"$error":"#N/A"},null,{"$error":"#N/A"},null,null,null,null,0]
[null,{"$error":"#N/A"},null,{"$error":"#N/A"},null,null,null,null,0]
[null,{"$error":"#N/A"},null,{"$error":"#N/A"},null,null,null,null,0]
[null,{"$error":"#N/A"},null,{"$error":"#N/A"},null,null,null,null,0]
[null,{"$error":"#N/A"},null,{"$error":"#N/A"},null,null,null,null,0]
[null,{"$error":"#N/A"},null,{"$error":"#N/A"},null,null,null,null,0]
[null,{"$error":"#N/A"},null,{"$error":"#N/A"},null,null,null,null,0]
[null,{"$error":"#N/A"},null,{"$error":"#N/A"},null,null,null,null,0]
[null,{"$error":"#N/A"},null,{"$error":"#N/A"},null,null,null,null,0]
[null,{"$error":"#N/A"},null,{"$error":"#N/A"},null,null,null,null,0]
[null,{"$error":"#N/A"},null,{"$error":"#N/A"},null,null,null,null,0]
[null,{"$error":"#N/A"},null,{"$error":"#N/A"},null,null,null,null,0]
[null,{"$error":"#N/A"},null,{"$error":"#N/A"},null,null,null,null,0]
[null,{"$error":"#N/A"},null,{"$error":"#N/A"},null,null,null,null,0]
[null,{"$error":"#N/A"},null,{"$error":"#N/A"},null,null,null,null,0]
[null,{"$error":"#N/A"},null,{"$error":"#N/A"},null,null,null,null,0]
[null,{"$error":"#N/A"},null,{"$error":"#N/A"},null,null,null,null,0]
[null,{"$error":"#N/A"},null,{"$error":"#N/A"},null,null,null,null,0]
[null,{"$error":"#N/A"},null,{"$error":"#N/A"},null,null,null,null,0]
[null,{"$error":"#N/A"},null,{"$error":"#N/A"},null,null,null,null,0]
[null,{"$error":"#N/A"},null,{"$error":"#N/A"},null,null,null,null,0]
[null,{"$error":"#N/A"},null,{"$error":"#N/A"},null,null,null,null,0]
[null,{"$error":"#N/A"},null,{"$error":"#N/A"},null,null,null,null,0]
[null,{"$error":"#N/A"},null,{"$error":"#N/A"},null,null,null,null,0]
[null,{"$error":"#N/A"},null,{"$error":"#N/A"},null,null,null,null,0]
[null,{"$error":"#N/A"},null,{"$error":"#N/A"},null,null,null,null,0]
[null,{"$error":"#N/A"},null,{"$error":"#N/A"},null,null,null,null,0]
[null,{"$error":"#N/A"},null,{"$error":"#N/A"},null,null,null,null,0]
[null,{"$error":"#N/A"},null,{"$error":"#N/A"},null,null,null,null,0]
[null,{"$error":"#N/A"},null,{"$error":"#N/A"},null,null,null,null,0]
[null,{"$error":"#N/A"},null,{"$error":"#N/A"},null,null,null,null,0]
[null,{"$error":"#N/A"},null,{"$error":"#N/A"},null,null,null,null,0]
[null,{"$error":"#N/A"},null,{"$error":"#N/A"},null,null,null,null,0]
[null,{"$error":"#N/A"},null,{"$error":"#N/A"},null,null,null,null,0]
[null,{"$error":"#N/A"},null,{"$error":"#N/A"},null,null,null,null,0]
[null,{"$error":"#N/A"},null,{"$error":"#N/A"},null,null,null,null,0]
[null,{"$error":"#N/A"},null,{"$error":"#N/A"},null,null,null,null,0]
[null,{"$error":"#N/A"},null,{"$error":"#N/A"},null,null,null,null,0]
[null,{"$error":"#N/A"},null,{"$error":"#N/A"},null,null,null,null,0]
[null,{"$error":"#N/A"},null,{"$error":"#N/A"},null,null,null,null,0]
[null,{"$error":"#N/A"},null,{"$error":"#N/A"},null,null,null,null,0]
[null,{"$error":"#N/A"},null,{"$error":"#N/A"},null,null,null,null,0]
[null,{"$error":"#N/A"},null,{"$error":"#N/A"},null,null,null,null,0]
[null,{"$error":"#N/A"},null,{"$error":"#N/A"},null,null,null,null,0]
[null,{"$error":"#N/A"},null,{"$error":"#N/A"},null,null,null,null,0]
[null,{"$error":"#N/A"},null,{"$error":"#N/A"},null,null,null,null,0]
[null,{"$error":"#N/A"},null,{"$error":"#N/A"},null,null,null,null,0]
[null,{"$error":"#N/A"},null,{"$error":"#N/A"},null,null,null,null,0]
[null,{"$error":"#N/A"},null,{"$error":"#N/A"},null,null,null,null,0]
[null,{"$error":"#N/A"},null,{"$error":"#N/A"},null,null,null,null,0]
[null,{"$f":"VLOOKUP($A197,Members,2,FALSE)","v":{"$error":"#N/A"}},null,{"$f":"VLOOKUP($A197,Members,VLOOKUP(C197,Events,2,FALSE),FALSE)","v":{"$error":"#N/A"}},null,null,null,null,{"$f":"SUM(E197:H197)","v":0}]
[null,{"$error":"#N/A"},null,{"$error":"#N/A"},null,null,null,null,0]
[null,{"$error":"#N/A"},null,{"$error":"#N/A"},null,null,null,null,0]
[null,{"$error":"#N/A"},null,{"$error":"#N/A"},null,null,null,null,0]
[null,{"$error":"#N/A"},null,{"$error":"#N/A"},null,null,null,null,0]
[null,{"$error":"#N/A"},null,{"$error":"#N/A"},null,null,null,null,0]
[null,{"$error":"#N/A"},null,{"$error":"#N/A"},null,null,null,null,0]
[null,{"$error":"#N/A"},null,{"$error":"#N/A"},null,null,null,null,0]
[null,{"$error":"#N/A"},null,{"$error":"#N/A"},null,null,null,null,0]
[null,{"$error":"#N/A"},null,{"$error":"#N/A"},null,null,null,null,0]
[null,{"$error":"#N/A"},null,{"$error":"#N/A"},null,null,null,null,0]
[null,{"$error":"#N/A"},null,{"$error":"#N/A"},null,null,null,null,0]
[null,{"$error":"#N/A"},null,{"$error":"#N/A"},null,null,null,null,0]
[null,{"$error":"#N/A"},null,{"$error":"#N/A"},null,null,null,null,0]
[null,{"$error":"#N/A"},null,{"$error":"#N/A"},null,null,null,null,0]
[null,{"$error":"#N/A"},null,{"$error":"#N/A"},null,null,null,null,0]
[null,{"$error":"#N/A"},null,{"$error":"#N/A"},null,null,null,null,0]
[null,{"$error":"#N/A"},null,{"$error":"#N/A"},null,null,null,null,0]
[null,{"$error":"#N/A"},null,{"$error":"#N/A"},null,null,null,null,0]
[null,{"$error":"#N/A"},null,{"$error":"#N/A"},null,null,null,null,0]
[null,{"$error":"#N/A"},null,{"$error":"#N/A"},null,null,null,null,0]
[null,{"$error":"#N/A"},null,{"$error":"#N/A"},null,null,null,null,0]
[null,{"$error":"#N/A"},null,{"$error":"#N/A"},null,null,null,null,0]
[null,{"$error":"#N/A"},null,{"$error":"#N/A"},null,null,null,null,0]
[null,{"$error":"#N/A"},null,{"$error":"#N/A"},null,null,null,null,0]
[null,{"$error":"#N/A"},null,{"$error":"#N/A"},null,null,null,null,0]
[null,{"$error":"#N/A"},null,{"$error":"#N/A"},null,null,null,null,0]
[null,{"$error":"#N/A"},null,{"$error":"#N/A"},null,null,null,null,0]
[null,{"$error":"#N/A"},null,{"$error":"#N/A"},null,null,null,null,0]
[null,{"$error":"#N/A"},null,{"$error":"#N/A"},null,null,null,null,0]
[null,{"$error":"#N/A"},null,{"$error":"#N/A"},null,null,null,null,0]
[null,{"$error":"#N/A"},null,{"$error":"#N/A"},null,null,null,null,0]
[null,{"$error":"#N/A"},null,{"$error":"#N/A"},null,null,null,null,0]
[null,{"$error":"#N/A"},null,{"$error":"#N/A"},null,null,null,null,0]
[null,{"$error":"#N/A"},null,{"$error":"#N/A"},null,null,null,null,0]
[null,{"$error":"#N/A"},null,{"$error":"#N/A"},null,null,null,null,0]
[null,{"$error":"#N/A"},null,{"$error":"#N/A"},null,null,null,null,0]
[null,{"$error":"#N/A"},null,{"$error":"#N/A"},null,null,null,null,0]
[null,{"$error":"#N/A"},null,{"$error":"#N/A"},null,null,null,null,0]
[null,{"$error":"#N/A"},null,{"$error":"#N/A"},null,null,null,null,0]
[null,{"$error":"#N/A"},null,{"$error":"#N/A"},null,null,null,null,0]
[null,{"$error":"#N/A"},null,{"$error":"#N/A"},null,null,null,null,0]
[null,{"$error":"#N/A"},null,{"$error":"#N/A"},null,null,null,null,0]
[null,{"$error":"#N/A"},null,{"$error":"#N/A"},null,null,null,null,0]
[null,{"$error":"#N/A"},null,{"$error":"#N/A"},null,null,null,null,0]
[null,{"$error":"#N/A"},null,{"$error":"#N/A"},null,null,null,null,0]
[null,{"$error":"#N/A"},null,{"$error":"#N/A"},null,null,null,null,0]
[null,{"$error":"#N/A"},null,{"$error":"#N/A"},null,null,null,null,0]
[null,{"$error":"#N/A"},null,{"$error":"#N/A"},null,null,null,null,0]
[null,{"$error":"#N/A"},null,{"$error":"#N/A"},null,null,null,null,0]
[null,{"$error":"#N/A"},null,{"$error":"#N/A"},null,null,null,null,0]
[null,{"$error":"#N/A"},null,{"$error":"#N/A"},null,null,null,null,0]
[null,{"$error":"#N/A"},null,{"$error":"#N/A"},null,null,null,null,0]
[null,{"$error":"#N/A"},null,{"$error":"#N/A"},null,null,null,null,0]
[null,{"$error":"#N/A"},null,{"$error":"#N/A"},null,null,null,null,0]
[null,{"$error":"#N/A"},null,{"$error":"#N/A"},null,null,null,null,0]
[null,{"$error":"#N/A"},null,{"$error":"#N/A"},null,null,null,null,0]
[null,{"$error":"#N/A"},null,{"$error":"#N/A"},null,null,null,null,0]
[null,{"$error":"#N/A"},null,{"$error":"#N/A"},null,null,null,null,0]
[null,{"$error":"#N/A"},null,{"$error":"#N/A"},null,null,null,null,0]
[null,{"$error":"#N/A"},null,{"$error":"#N/A"},null,null,null,null,0]
[null,{"$error":"#N/A"},null,{"$error":"#N/A"},null,null,null,null,0]
[null,{"$error":"#N/A"},null,{"$error":"#N/A"},null,null,null,null,0]
[null,{"$error":"#N/A"},null,{"$error":"#N/A"},null,null,null,null,0]
[null,{"$f":"VLOOKUP($A261,Members,2,FALSE)","v":{"$error":"#N/A"}},null,{"$f":"VLOOKUP($A261,Members,VLOOKUP(C261,Events,2,FALSE),FALSE)","v":{"$error":"#N/A"}},null,null,null,null,{"$f":"SUM(E261:H261)","v":0}]
[null,{"$error":"#N/A"},null,{"$error":"#N/A"},null,null,null,null,0]
[null,{"$error":"#N/A"},null,{"$error":"#N/A"},null,null,null,null,0]
[null,{"$error":"#N/A"},null,{"$error":"#N/A"},null,null,null,null,0]
[null,{"$error":"#N/A"},null,{"$error":"#N/A"},null,null,null,null,0]
[null,{"$error":"#N/A"},null,{"$error":"#N/A"},null,null,null,null,0]
[null,{"$error":"#N/A"},null,{"$error":"#N/A"},null,null,null,null,0]
[null,{"$error":"#N/A"},null,{"$error":"#N/A"},null,null,null,null,0]
[null,{"$error":"#N/A"},null,{"$error":"#N/A"},null,null,null,null,0]
[null,{"$error":"#N/A"},null,{"$error":"#N/A"},null,null,null,null,0]
[null,{"$error":"#N/A"},null,{"$error":"#N/A"},null,null,null,null,0]
[null,{"$error":"#N/A"},null,{"$error":"#N/A"},null,null,null,null,0]
[null,{"$error":"#N/A"},null,{"$error":"#N/A"},null,null,null,null,0]
[null,{"$error":"#N/A"},null,{"$error":"#N/A"},null,null,null,null,0]
[null,{"$error":"#N/A"},null,{"$error":"#N/A"},null,null,null,null,0]
[null,{"$error":"#N/A"},null,{"$error":"#N/A"},null,null,null,null,0]
[null,{"$error":"#N/A"},null,{"$error":"#N/A"},null,null,null,null,0]
[null,{"$error":"#N/A"},null,{"$error":"#N/A"},null,null,null,null,0]
[null,{"$error":"#N/A"},null,{"$error":"#N/A"},null,null,null,null,0]
[null,{"$error":"#N/A"},null,{"$error":"#N/A"},null,null,null,null,0]
[null,{"$error":"#N/A"},null,{"$error":"#N/A"},null,null,null,null,0]
[null,{"$error":"#N/A"},null,{"$error":"#N/A"},null,null,null,null,0]
[null,{"$error":"#N/A"},null,{"$error":"#N/A"},null,null,null,null,0]
[null,{"$error":"#N/A"},null,{"$error":"#N/A"},null,null,null,null,0]
[null,{"$error":"#N/A"},null,{"$error":"#N/A"},null,null,null,null,0]
[null,{"$error":"#N/A"},null,{"$error":"#N/A"},null,null,null,null,0]
[null,{"$error":"#N/A"},null,{"$error":"#N/A"},null,null,null,null,0]
[null,{"$error":"#N/A"},null,{"$error":"#N/A"},null,null,null,null,0]
[null,{"$error":"#N/A"},null,{"$error":"#N/A"},null,null,null,null,0]
[null,{"$error":"#N/A"},null,{"$error":"#N/A"},null,null,null,null,0]
[null,{"$error":"#N/A"},null,{"$error":"#N/A"},null,null,null,null,0]
[null,{"$error":"#N/A"},null,{"$error":"#N/A"},null,null,null,null,0]
[null,{"$error":"#N/A"},null,{"$error":"#N/A"},null,null,null,null,0]
[null,{"$error":"#N/A"},null,{"$error":"#N/A"},null,null,null,null,0]
[null,{"$error":"#N/A"},null,{"$error":"#N/A"},null,null,null,null,0]
[null,{"$error":"#N/A"},null,{"$error":"#N/A"},null,null,null,null,0]
[null,{"$error":"#N/A"},null,{"$error":"#N/A"},null,null,null,null,0]
[null,{"$error":"#N/A"},null,{"$error":"#N/A"},null,null,null,null,0]
[null,{"$error":"#N/A"},null,{"$error":"#N/A"},null,null,null,null,0]
[null,{"$error":"#N/A"},null,{"$error":"#N/A"},null,null,null,null,0]
[null,{"$error":"#N/A"},null,{"$error":"#N/A"},null,null,null,null,0]
[null,{"$error":"#N/A"},null,{"$error":"#N/A"},null,null,null,null,0]
[null,{"$error":"#N/A"},null,{"$error":"#N/A"},null,null,null,null,0]
[null,{"$error":"#N/A"},null,{"$error":"#N/A"},null,null,null,null,0]
[null,{"$error":"#N/A"},null,{"$error":"#N/A"},null,null,null,null,0]
[null,{"$error":"#N/A"},null,{"$error":"#N/A"},null,null,null,null,0]
[null,{"$error":"#N/A"},null,{"$error":"#N/A"},null,null,null,null,0]
[null,{"$error":"#N/A"},null,{"$error":"#N/A"},null,null,null,null,0]
[null,{"$error":"#N/A"},null,{"$error":"#N/A"},null,null,null,null,0]
[null,{"$error":"#N/A"},null,{"$error":"#N/A"},null,null,null,null,0]
[null,{"$error":"#N/A"},null,{"$error":"#N/A"},null,null,null,null,0]
[null,{"$error":"#N/A"},null,{"$error":"#N/A"},null,null,null,null,0]
[null,{"$error":"#N/A"},null,{"$error":"#N/A"},null,null,null,null,0]
[null,{"$error":"#N/A"},null,{"$error":"#N/A"},null,null,null,null,0]
[null,{"$error":"#N/A"},null,{"$error":"#N/A"},null,null,null,null,0]
[null,{"$error":"#N/A"},null,{"$error":"#N/A"},null,null,null,null,0]
[null,{"$error":"#N/A"},null,{"$error":"#N/A"},null,null,null,null,0]
[null,{"$error":"#N/A"},null,{"$error":"#N/A"},null,null,null,null,0]
[null,{"$error":"#N/A"},null,{"$error":"#N/A"},null,null,null,null,0]
[null,{"$error":"#N/A"},null,{"$error":"#N/A"},null,null,null,null,0]
[null,{"$error":"#N/A"},null,{"$error":"#N/A"},null,null,null,null,0]
[null,{"$error":"#N/A"},null,{"$error":"#N/A"},null,null,null,null,0]
[null,{"$error":"#N/A"},null,{"$error":"#N/A"},null,null,null,null,0]
[null,{"$error":"#N/A"},null,{"$error":"#N/A"},null,null,null,null,0]
[null,{"$f":"VLOOKUP($A325,Members,2,FALSE)","v":{"$error":"#N/A"}},null,{"$f":"VLOOKUP($A325,Members,VLOOKUP(C325,Events,2,FALSE),FALSE)","v":{"$error":"#N/A"}},null,null,null,null,{"$f":"SUM(E325:H325)","v":0}]
[null,{"$error":"#N/A"},null,{"$error":"#N/A"},null,null,null,null,0]
[null,{"$error":"#N/A"},null,{"$error":"#N/A"},null,null,null,null,0]
[null,{"$error":"#N/A"},null,{"$error":"#N/A"},null,null,null,null,0]
[null,{"$error":"#N/A"},null,{"$error":"#N/A"},null,null,null,null,0]
[null,{"$error":"#N/A"},null,{"$error":"#N/A"},null,null,null,null,0]
[null,{"$error":"#N/A"},null,{"$error":"#N/A"},null,null,null,null,0]
[null,{"$error":"#N/A"},null,{"$error":"#N/A"},null,null,null,null,0]
[null,{"$error":"#N/A"},null,{"$error":"#N/A"},null,null,null,null,0]
[null,{"$error":"#N/A"},null,{"$error":"#N/A"},null,null,null,null,0]
[null,{"$error":"#N/A"},null,{"$error":"#N/A"},null,null,null,null,0]
[null,{"$error":"#N/A"},null,{"$error":"#N/A"},null,null,null,null,0]
[null,{"$error":"#N/A"},null,{"$error":"#N/A"},null,null,null,null,0]
[null,{"$error":"#N/A"},null,{"$error":"#N/A"},null,null,null,null,0]
[null,{"$error":"#N/A"},null,{"$error":"#N/A"},null,null,null,null,0]
[null,{"$error":"#N/A"},null,{"$error":"#N/A"},null,null,null,null,0]
[null,{"$error":"#N/A"},null,{"$error":"#N/A"},null,null,null,null,0]
[null,{"$error":"#N/A"},null,{"$error":"#N/A"},null,null,null,null,0]
[null,{"$error":"#N/A"},null,{"$error":"#N/A"},null,null,null,null,0]
[null,{"$error":"#N/A"},null,{"$error":"#N/A"},null,null,null,null,0]
[null,{"$error":"#N/A"},null,{"$error":"#N/A"},null,null,null,null,0]
[null,{"$error":"#N/A"},null,{"$error":"#N/A"},null,null,null,null,0]
[null,{"$error":"#N/A"},null,{"$error":"#N/A"},null,null,null,null,0]
[null,{"$error":"#N/A"},null,{"$error":"#N/A"},null,null,null,null,0]
[null,{"$error":"#N/A"},null,{"$error":"#N/A"},null,null,null,null,0]
[null,{"$error":"#N/A"},null,{"$error":"#N/A"},null,null,null,null,0]
[null,{"$error":"#N/A"},null,{"$error":"#N/A"},null,null,null,null,0]
[null,{"$error":"#N/A"},null,{"$error":"#N/A"},null,null,null,null,0]
[null,{"$error":"#N/A"},null,{"$error":"#N/A"},null,null,null,null,0]
[null,{"$error":"#N/A"},null,{"$error":"#N/A"},null,null,null,null,0]
[null,{"$error":"#N/A"},null,{"$error":"#N/A"},null,null,null,null,0]
[null,{"$error":"#N/A"},null,{"$error":"#N/A"},null,null,null,null,0]
[null,{"$error":"#N/A"},null,{"$error":"#N/A"},null,null,null,null,0]
[null,{"$error":"#N/A"},null,{"$error":"#N/A"},null,null,null,null,0]
[null,{"$error":"#N/A"},null,{"$error":"#N/A"},null,null,null,null,0]
[null,{"$error":"#N/A"},null,{"$error":"#N/A"},null,null,null,null,0]
[null,{"$error":"#N/A"},null,{"$error":"#N/A"},null,null,null,null,0]
[null,{"$error":"#N/A"},null,{"$error":"#N/A"},null,null,null,null,0]
[null,{"$error":"#N/A"},null,{"$error":"#N/A"},null,null,null,null,0]
[null,{"$error":"#N/A"},null,{"$error":"#N/A"},null,null,null,null,0]
[null,{"$error":"#N/A"},null,{"$error":"#N/A"},null,null,null,null,0]
[null,{"$error":"#N/A"},null,{"$error":"#N/A"},null,null,null,null,0]
[null,{"$error":"#N/A"},null,{"$error":"#N/A"},null,null,null,null,0]
[null,{"$error":"#N/A"},null,{"$error":"#N/A"},null,null,null,null,0]
[null,{"$error":"#N/A"},null,{"$error":"#N/A"},null,null,null,null,0]
[null,{"$error":"#N/A"},null,{"$error":"#N/A"},null,null,null,null,0]
[null,{"$error":"#N/A"},null,{"$error":"#N/A"},null,null,null,null,0]
[null,{"$error":"#N/A"},null,{"$error":"#N/A"},null,null,null,null,0]
[null,{"$error":"#N/A"},null,{"$error":"#N/A"},null,null,null,null,0]
[null,{"$error":"#N/A"},null,{"$error":"#N/A"},null,null,null,null,0]
[null,{"$error":"#N/A"},null,{"$error":"#N/A"},null,null,null,null,0]
[null,{"$error":"#N/A"},null,{"$error":"#N/A"},null,null,null,null,0]
[null,{"$error":"#N/A"},null,{"$error":"#N/A"},null,null,null,null,0]
[null,{"$error":"#N/A"},null,{"$error":"#N/A"},null,null,null,null,0]
[null,{"$error":"#N/A"},null,{"$error":"#N/A"},null,null,null,null,0]
[null,{"$error":"#N/A"},null,{"$error":"#N/A"},null,null,null,null,0]
[null,{"$error":"#N/A"},null,{"$error":"#N/A"},null,null,null,null,0]
[null,{"$error":"#N/A"},null,{"$error":"#N/A"},null,null,null,null,0]
[null,{"$error":"#N/A"},null,{"$error":"#N/A"},null,null,null,null,0]
[null,{"$error":"#N/A"},null,{"$error":"#N/A"},null,null,null,null,0]
[null,{"$error":"#N/A"},null,{"$error":"#N/A"},null,null,null,null,0]
[null,{"$error":"#N/A"},null,{"$error":"#N/A"},null,null,null,null,0]
[null,{"$error":"#N/A"},null,{"$error":"#N/A"},null,null,null,null,0]
[null,{"$error":"#N/A"},null,{"$error":"#N/A"},null,null,null,null,0]
[null,{"$f":"VLOOKUP($A389,Members,2,FALSE)","v":{"$error":"#N/A"}},null,{"$f":"VLOOKUP($A389,Members,VLOOKUP(C389,Events,2,FALSE),FALSE)","v":{"$error":"#N/A"}},null,null,null,null,{"$f":"SUM(E389:H389)","v":0}]
[null,{"$error":"#N/A"},null,{"$error":"#N/A"},null,null,null,null,0]
[null,{"$error":"#N/A"},null,{"$error":"#N/A"},null,null,null,null,0]
[null,{"$error":"#N/A"},null,{"$error":"#N/A"},null,null,null,null,0]
[null,{"$error":"#N/A"},null,{"$error":"#N/A"},null,null,null,null,0]
[null,{"$error":"#N/A"},null,{"$error":"#N/A"},null,null,null,null,0]
[null,{"$error":"#N/A"},null,{"$error":"#N/A"},null,null,null,null,0]
[null,{"$error":"#N/A"},null,{"$error":"#N/A"},null,null,null,null,0]
[null,{"$error":"#N/A"},null,{"$error":"#N/A"},null,null,null,null,0]
[null,{"$error":"#N/A"},null,{"$error":"#N/A"},null,null,null,null,0]
[null,{"$error":"#N/A"},null,{"$error":"#N/A"},null,null,null,null,0]
[null,{"$error":"#N/A"},null,{"$error":"#N/A"},null,null,null,null,0]
[null,{"$error":"#N/A"},null,{"$error":"#N/A"},null,null,null,null,0]
[null,{"$error":"#N/A"},null,{"$error":"#N/A"},null,null,null,null,0]
[null,{"$error":"#N/A"},null,{"$error":"#N/A"},null,null,null,null,0]
[null,{"$error":"#N/A"},null,{"$error":"#N/A"},null,null,null,null,0]
[null,{"$error":"#N/A"},null,{"$error":"#N/A"},null,null,null,null,0]
[null,{"$error":"#N/A"},null,{"$error":"#N/A"},null,null,null,null,0]
[null,{"$error":"#N/A"},null,{"$error":"#N/A"},null,null,null,null,0]
[null,{"$error":"#N/A"},null,{"$error":"#N/A"},null,null,null,null,0]
[null,{"$error":"#N/A"},null,{"$error":"#N/A"},null,null,null,null,0]
[null,{"$error":"#N/A"},null,{"$error":"#N/A"},null,null,null,null,0]
[null,{"$error":"#N/A"},null,{"$error":"#N/A"},null,null,null,null,0]
[null,{"$error":"#N/A"},null,{"$error":"#N/A"},null,null,null,null,0]
[null,{"$error":"#N/A"},null,{"$error":"#N/A"},null,null,null,null,0]
[null,{"$error":"#N/A"},null,{"$error":"#N/A"},null,null,null,null,0]
[null,{"$error":"#N/A"},null,{"$error":"#N/A"},null,null,null,null,0]
[null,{"$error":"#N/A"},null,{"$error":"#N/A"},null,null,null,null,0]
[null,{"$error":"#N/A"},null,{"$error":"#N/A"},null,null,null,null,0]
[null,{"$error":"#N/A"},null,{"$error":"#N/A"},null,null,null,null,0]
[null,{"$error":"#N/A"},null,{"$error":"#N/A"},null,null,null,null,0]
[null,{"$error":"#N/A"},null,{"$error":"#N/A"},null,null,null,null,0]
[null,{"$error":"#N/A"},null,{"$error":"#N/A"},null,null,null,null,0]
[null,{"$error":"#N/A"},null,{"$error":"#N/A"},null,null,null,null,0]
[null,{"$error":"#N/A"},null,{"$error":"#N/A"},null,null,null,null,0]
[null,{"$error":"#N/A"},null,{"$error":"#N/A"},null,null,null,null,0]
[null,{"$error":"#N/A"},null,{"$error":"#N/A"},null,null,null,null,0]
[null,{"$error":"#N/A"},null,{"$error":"#N/A"},null,null,null,null,0]
[null,{"$error":"#N/A"},null,{"$error":"#N/A"},null,null,null,null,0]
[null,{"$error":"#N/A"},null,{"$error":"#N/A"},null,null,null,null,0]
[null,{"$error":"#N/A"},null,{"$error":"#N/A"},null,null,null,null,0]
[null,{"$error":"#N/A"},null,{"$error":"#N/A"},null,null,null,null,0]
[null,{"$error":"#N/A"},null,{"$error":"#N/A"},null,null,null,null,0]
[null,{"$error":"#N/A"},null,{"$error":"#N/A"},null,null,null,null,0]
[null,{"$error":"#N/A"},null,{"$error":"#N/A"},null,null,null,null,0]
[null,{"$error":"#N/A"},null,{"$error":"#N/A"},null,null,null,null,0]
[null,{"$error":"#N/A"},null,{"$error":"#N/A"},null,null,null,null,0]
[null,{"$error":"#N/A"},null,{"$error":"#N/A"},null,null,null,null,0]
[null,{"$error":"#N/A"},null,{"$error":"#N/A"},null,null,null,null,0]
[null,{"$error":"#N/A"},null,{"$error":"#N/A"},null,null,null,null,0]
[null,{"$error":"#N/A"},null,{"$error":"#N/A"},null,null,null,null,0]
[null,{"$error":"#N/A"},null,{"$error":"#N/A"},null,null,null,null,0]
[null,{"$error":"#N/A"},null,{"$error":"#N/A"},null,null,null,null,0]
[null,{"$error":"#N/A"},null,{"$error":"#N/A"},null,null,null,null,0]
[null,{"$error":"#N/A"},null,{"$error":"#N/A"},null,null,null,null,0]
[null,{"$error":"#N/A"},null,{"$error":"#N/A"},null,null,null,null,0]
[null,{"$error":"#N/A"},null,{"$error":"#N/A"},null,null,null,null,0]
[null,{"$error":"#N/A"},null,{"$error":"#N/A"},null,null,null,null,0]
[null,{"$error":"#N/A"},null,{"$error":"#N/A"},null,null,null,null,0]
[null,{"$error":"#N/A"},null,{"$error":"#N/A"},null,null,null,null,0]
[null,{"$error":"#N/A"},null,{"$error":"#N/A"},null,null,null,null,0]
[null,{"$error":"#N/A"},null,{"$error":"#N/A"},null,null,null,null,0]
[null,{"$error":"#N/A"},null,{"$error":"#N/A"},null,null,null,null,0]
[null,{"$error":"#N/A"},null,{"$error":"#N/A"},null,null,null,null,0]
[null,{"$f":"VLOOKUP($A453,Members,2,FALSE)","v":{"$error":"#N/A"}},null,{"$f":"VLOOKUP($A453,Members,VLOOKUP(C453,Events,2,FALSE),FALSE)","v":{"$error":"#N/A"}},null,null,null,null,{"$f":"SUM(E453:H453)","v":0}]
[null,{"$error":"#N/A"},null,{"$error":"#N/A"},null,null,null,null,0]
[null,{"$error":"#N/A"},null,{"$error":"#N/A"},null,null,null,null,0]
[null,{"$error":"#N/A"},null,{"$error":"#N/A"},null,null,null,null,0]
[null,{"$error":"#N/A"},null,{"$error":"#N/A"},null,null,null,null,0]
[null,{"$error":"#N/A"},null,{"$error":"#N/A"},null,null,null,null,0]
[null,{"$error":"#N/A"},null,{"$error":"#N/A"},null,null,null,null,0]
[null,{"$error":"#N/A"},null,{"$error":"#N/A"},null,null,null,null,0]
[null,{"$error":"#N/A"},null,{"$error":"#N/A"},null,null,null,null,0]
[null,{"$error":"#N/A"},null,{"$error":"#N/A"},null,null,null,null,0]
[null,{"$error":"#N/A"},null,{"$error":"#N/A"},null,null,null,null,0]
[null,{"$error":"#N/A"},null,{"$error":"#N/A"},null,null,null,null,0]
[null,{"$error":"#N/A"},null,{"$error":"#N/A"},null,null,null,null,0]
[null,{"$error":"#N/A"},null,{"$error":"#N/A"},null,null,null,null,0]
[null,{"$error":"#N/A"},null,{"$error":"#N/A"},null,null,null,null,0]
[null,{"$error":"#N/A"},null,{"$error":"#N/A"},null,null,null,null,0]
[null,{"$error":"#N/A"},null,{"$error":"#N/A"},null,null,null,null,0]
[null,{"$error":"#N/A"},null,{"$error":"#N/A"},null,null,null,null,0]
[null,{"$error":"#N/A"},null,{"$error":"#N/A"},null,null,null,null,0]
[null,{"$error":"#N/A"},null,{"$error":"#N/A"},null,null,null,null,0]
[null,{"$error":"#N/A"},null,{"$error":"#N/A"},null,null,null,null,0]
[null,{"$error":"#N/A"},null,{"$error":"#N/A"},null,null,null,null,0]
[null,{"$error":"#N/A"},null,{"$error":"#N/A"},null,null,null,null,0]
[null,{"$error":"#N/A"},null,{"$error":"#N/A"},null,null,null,null,0]
[null,{"$error":"#N/A"},null,{"$error":"#N/A"},null,null,null,null,0]
[null,{"$error":"#N/A"},null,{"$error":"#N/A"},null,null,null,null,0]
[null,{"$error":"#N/A"},null,{"$error":"#N/A"},null,null,null,null,0]
[null,{"$error":"#N/A"},null,{"$error":"#N/A"},null,null,null,null,0]
[null,{"$error":"#N/A"},null,{"$error":"#N/A"},null,null,null,null,0]
[null,{"$error":"#N/A"},null,{"$error":"#N/A"},null,null,null,null,0]
[null,{"$error":"#N/A"},null,{"$error":"#N/A"},null,null,null,null,0]
[null,{"$error":"#N/A"},null,{"$error":"#N/A"},null,null,null,null,0]
[null,{"$error":"#N/A"},null,{"$error":"#N/A"},null,null,null,null,0]
[null,{"$error":"#N/A"},null,{"$error":"#N/A"},null,null,null,null,0]
[null,{"$error":"#N/A"},null,{"$error":"#N/A"},null,null,null,null,0]
[null,{"$error":"#N/A"},null,{"$error":"#N/A"},null,null,null,null,0]
[null,{"$error":"#N/A"},null,{"$error":"#N/A"},null,null,null,null,0]
[null,{"$error":"#N/A"},null,{"$error":"#N/A"},null,null,null,null,0]
[null,{"$error":"#N/A"},null,{"$error":"#N/A"},null,null,null,null,0]
[null,{"$error":"#N/A"},null,{"$error":"#N/A"},null,null,null,null,0]
[null,{"$error":"#N/A"},null,{"$error":"#N/A"},null,null,null,null,0]
[null,{"$error":"#N/A"},null,{"$error":"#N/A"},null,null,null,null,0]
[null,{"$error":"#N/A"},null,{"$error":"#N/A"},null,null,null,null,0]
[null,{"$error":"#N/A"},null,{"$error":"#N/A"},null,null,null,null,0]
[null,{"$error":"#N/A"},null,{"$error":"#N/A"},null,null,null,null,0]
[null,{"$error":"#N/A"},null,{"$error":"#N/A"},null,null,null,null,0]
[null,{"$error":"#N/A"},null,{"$error":"#N/A"},null,null,null,null,0]
[null,{"$error":"#N/A"},null,{"$error":"#N/A"},null,null,null,null,0]
[null,{"$error":"#N/A"},null,{"$error":"#N/A"},null,null,null,null,0]
[null,{"$error":"#N/A"},null,{"$error":"#N/A"},null,null,null,null,0]
[null,{"$error":"#N/A"},null,{"$error":"#N/A"},null,null,null,null,0]
[null,{"$error":"#N/A"},null,{"$error":"#N/A"},null,null,null,null,0]
[null,{"$error":"#N/A"},null,{"$error":"#N/A"},null,null,null,null,0]
[null,{"$error":"#N/A"},null,{"$error":"#N/A"},null,null,null,null,0]
[null,{"$error":"#N/A"},null,{"$error":"#N/A"},null,null,null,null,0]
[null,{"$error":"#N/A"},null,{"$error":"#N/A"},null,null,null,null,0]
[null,{"$error":"#N/A"},null,{"$error":"#N/A"},null,null,null,null,0]
[null,{"$error":"#N/A"},null,{"$error":"#N/A"},null,null,null,null,0]
[null,{"$error":"#N/A"},null,{"$error":"#N/A"},null,null,null,null,0]
[null,{"$error":"#N/A"},null,{"$error":"#N/A"},null,null,null,null,0]
[null,{"$error":"#N/A"},null,{"$error":"#N/A"},null,null,null,null,0]
[null,{"$error":"#N/A"},null,{"$error":"#N/A"},null,null,null,null,0]
[null,{"$error":"#N/A"},null,{"$error":"#N/A"},null,null,null,null,0]
[null,{"$error":"#N/A"},null,{"$error":"#N/A"},null,null,null,null,0]
[null,{"$f":"VLOOKUP($A517,Members,2,FALSE)","v":{"$error":"#N/A"}},null,{"$f":"VLOOKUP($A517,Members,VLOOKUP(C517,Events,2,FALSE),FALSE)","v":{"$error":"#N/A"}},null,null,null,null,{"$f":"SUM(E517:H517)","v":0}]
[null,{"$error":"#N/A"},null,{"$error":"#N/A"},null,null,null,null,0]
[null,{"$error":"#N/A"},null,{"$error":"#N/A"},null,null,null,null,0]
[null,{"$error":"#N/A"},null,{"$error":"#N/A"},null,null,null,null,0]
[null,{"$error":"#N/A"},null,{"$error":"#N/A"},null,null,null,null,0]
[null,{"$error":"#N/A"},null,{"$error":"#N/A"},null,null,null,null,0]
[null,{"$error":"#N/A"},null,{"$error":"#N/A"},null,null,null,null,0]
[null,{"$error":"#N/A"},null,{"$error":"#N/A"},null,null,null,null,0]
[null,{"$error":"#N/A"},null,{"$error":"#N/A"},null,null,null,null,0]
[null,{"$error":"#N/A"},null,{"$error":"#N/A"},null,null,null,null,0]
[null,{"$error":"#N/A"},null,{"$error":"#N/A"},null,null,null,null,0]
[null,{"$error":"#N/A"},null,{"$error":"#N/A"},null,null,null,null,0]
[null,{"$error":"#N/A"},null,{"$error":"#N/A"},null,null,null,null,0]
[null,{"$error":"#N/A"},null,{"$error":"#N/A"},null,null,null,null,0]
[null,{"$error":"#N/A"},null,{"$error":"#N/A"},null,null,null,null,0]
[null,{"$error":"#N/A"},null,{"$error":"#N/A"},null,null,null,null,0]
[null,{"$error":"#N/A"},null,{"$error":"#N/A"},null,null,null,null,0]
[null,{"$error":"#N/A"},null,{"$error":"#N/A"},null,null,null,null,0]
[null,{"$error":"#N/A"},null,{"$error":"#N/A"},null,null,null,null,0]
[null,{"$error":"#N/A"},null,{"$error":"#N/A"},null,null,null,null,0]
[null,{"$error":"#N/A"},null,{"$error":"#N/A"},null,null,null,null,0]
[null,{"$error":"#N/A"},null,{"$error":"#N/A"},null,null,null,null,0]
[null,{"$error":"#N/A"},null,{"$error":"#N/A"},null,null,null,null,0]
[null,{"$error":"#N/A"},null,{"$error":"#N/A"},null,null,null,null,0]
[null,{"$error":"#N/A"},null,{"$error":"#N/A"},null,null,null,null,0]
[null,{"$error":"#N/A"},null,{"$error":"#N/A"},null,null,null,null,0]
[null,{"$error":"#N/A"},null,{"$error":"#N/A"},null,null,null,null,0]
[null,{"$error":"#N/A"},null,{"$error":"#N/A"},null,null,null,null,0]
[null,{"$error":"#N/A"},null,{"$error":"#N/A"},null,null,null,null,0]
[null,{"$error":"#N/A"},null,{"$error":"#N/A"},null,null,null,null,0]
[null,{"$error":"#N/A"},null,{"$error":"#N/A"},null,null,null,null,0]
[null,{"$error":"#N/A"},null,{"$error":"#N/A"},null,null,null,null,0]
[null,{"$error":"#N/A"},null,{"$error":"#N/A"},null,null,null,null,0]
[null,{"$error":"#N/A"},null,{"$error":"#N/A"},null,null,null,null,0]
[null,{"$error":"#N/A"},null,{"$error":"#N/A"},null,null,null,null,0]
[null,{"$error":"#N/A"},null,{"$error":"#N/A"},null,null,null,null,0]
[null,{"$error":"#N/A"},null,{"$error":"#N/A"},null,null,null,null,0]
[null,{"$error":"#N/A"},null,{"$error":"#N/A"},null,null,null,null,0]
[null,{"$error":"#N/A"},null,{"$error":"#N/A"},null,null,null,null,0]
[null,{"$error":"#N/A"},null,{"$error":"#N/A"},null,null,null,null,0]
[null,{"$error":"#N/A"},null,{"$error":"#N/A"},null,null,null,null,0]
[null,{"$error":"#N/A"},null,{"$error":"#N/A"},null,null,null,null,0]
[null,{"$error":"#N/A"},null,{"$error":"#N/A"},null,null,null,null,0]
[null,{"$error":"#N/A"},null,{"$error":"#N/A"},null,null,null,null,0]
[null,{"$error":"#N/A"},null,{"$error":"#N/A"},null,null,null,null,0]
[null,{"$error":"#N/A"},null,{"$error":"#N/A"},null,null,null,null,0]
[null,{"$error":"#N/A"},null,{"$error":"#N/A"},null,null,null,null,0]
[null,{"$error":"#N/A"},null,{"$error":"#N/A"},null,null,null,null,0]
[null,{"$error":"#N/A"},null,{"$error":"#N/A"},null,null,null,null,0]
[null,{"$error":"#N/A"},null,{"$error":"#N/A"},null,null,null,null,0]
[null,{"$error":"#N/A"},null,{"$error":"#N/A"},null,null,null,null,0]
[null,{"$error":"#N/A"},null,{"$error":"#N/A"},null,null,null,null,0]
[null,{"$error":"#N/A"},null,{"$error":"#N/A"},null,null,null,null,0]
[null,{"$error":"#N/A"},null,{"$error":"#N/A"},null,null,null,null,0]
[null,{"$error":"#N/A"},null,{"$error":"#N/A"},null,null,null,null,0]
[null,{"$error":"#N/A"},null,{"$error":"#N/A"},null,null,null,null,0]
[null,{"$error":"#N/A"},null,{"$error":"#N/A"},null,null,null,null,0]
[null,{"$error":"#N/A"},null,{"$error":"#N/A"},null,null,null,null,0]
[null,{"$error":"#N/A"},null,{"$error":"#N/A"},null,null,null,null,0]
[null,{"$error":"#N/A"},null,{"$error":"#N/A"},null,null,null,null,0]
[null,{"$error":"#N/A"},null,{"$error":"#N/A"},null,null,null,null,0]
[null,{"$error":"#N/A"},null,{"$error":"#N/A"},null,null,null,null,0]
[null,{"$error":"#N/A"},null,{"$error":"#N/A"},null,null,null,null,0]
[null,{"$error":"#N/A"},null,{"$error":"#N/A"},null,null,null,null,0]
[null,{"$f":"VLOOKUP($A581,Members,2,FALSE)","v":{"$error":"#N/A"}},null,{"$f":"VLOOKUP($A581,Members,VLOOKUP(C581,Events,2,FALSE),FALSE)","v":{"$error":"#N/A"}},null,null,null,null,{"$f":"SUM(E581:H581)","v":0}]
[null,{"$error":"#N/A"},null,{"$error":"#N/A"},null,null,null,null,0]
[null,{"$error":"#N/A"},null,{"$error":"#N/A"},null,null,null,null,0]
[null,{"$error":"#N/A"},null,{"$error":"#N/A"},null,null,null,null,0]
[null,{"$error":"#N/A"},null,{"$error":"#N/A"},null,null,null,null,0]
[null,{"$error":"#N/A"},null,{"$error":"#N/A"},null,null,null,null,0]
[null,{"$error":"#N/A"},null,{"$error":"#N/A"},null,null,null,null,0]
[null,{"$error":"#N/A"},null,{"$error":"#N/A"},null,null,null,null,0]
[null,{"$error":"#N/A"},null,{"$error":"#N/A"},null,null,null,null,0]
[null,{"$error":"#N/A"},null,{"$error":"#N/A"},null,null,null,null,0]
[null,{"$error":"#N/A"},null,{"$error":"#N/A"},null,null,null,null,0]
[null,{"$error":"#N/A"},null,{"$error":"#N/A"},null,null,null,null,0]
[null,{"$error":"#N/A"},null,{"$error":"#N/A"},null,null,null,null,0]
[null,{"$error":"#N/A"},null,{"$error":"#N/A"},null,null,null,null,0]